{"text_format":"1","workbook":"xlsx","n_sheets":21,"sheets":["Inhalt","Vorbemerkung","Instruktion","Pfarrpersonen","Pfarrkonvent","Erw_Pfarramt","Erw_Verk.&GD","Tabelle2","Tabelle1","A&V_Verk.&GD","Erw_Diak.&Seels.","A&V_Diak.&Seels.","Tabelle3","Erw_Bild.&Spirit.","A&V_Bild.&Spirit.","Erw_Aufb.&Leit.","A&V_Aufb.&Leit.","Erw_W.Dienste","A&V_W.Dienste","Stellenbeschrieb Einzelperson","Gesetzestexte"],"not_rendered":{"charts":0,"images":3,"macros":1,"external_links":0,"defined_names":72,"comments":0,"pivot_tables":1},"unopened":[],"bounds":{"document_bytes":16777216,"sheet_cells":100000,"rows_first":2000,"rows_last":500,"rows_between":2000,"halvings":0,"cell_chars":16384,"cell_head_chars":4096},"cells_cut":0,"cells_raw":0,"read":"whole","date_system":"1900"}

{"sheet":"Inhalt","index":0,"n_rows":51,"n_cols":2,"rows_kept":51,"cut":false,"hidden":false,"merged":[[22,1,22,2],[33,1,33,5],[31,1,31,2]]}
[]
[]
[]
[]
[]
[null,"Leitfaden und Formular"]
[]
[null,"Pfarrdienstordnung"]
[]
[null,"unter Berücksichtigung der Aufgaben- und "]
[null,"Verantwortungsbereiche im Gemeindepfarramt"]
[null,"und der strategischen Vorgaben durch die Kirchenpflegen"]
[]
[null,"Vorbemerkungen"]
[]
[null,"Instruktion"]
[]
[null,"Übersicht Pfarrpersonen und Pfarrstellenprozente"]
[]
[null,"Pfarrkonvent"]
[null,"- Pfarrkonvent Kirchgemeinde …"]
[]
[null,"Handlungsfelder und pfarramtliche Aufgaben- und Verantwortungsbereiche (A&V)"]
[null,"- Erwägungen (dunkelgrüne Laschen)"]
[null,"- Pfarramtliche Aufgaben- und Verantwortungsbereiche (hellgrüne Laschen)"]
[null," - Verkündigung und Gottesdienst (A&V_Verk.&GD)"]
[null," - Diakonie und Seelsorge (A&V_Diak.&Seels.)"]
[null," - Bildung und Spiritualität (A&V_Bild.&Spirit.)"]
[null," - Gemeindeaufbau und Leitung (A&V_Aufb.&Leit.)"]
[null," - Weitere Dienste (A&V_W.Dienste)"]
[]
[null,"Stellenbeschrieb Einzelperson"]
[]
[]
[]
[]
[]
[]
[]
[]
[]
[]
[]
[]
[]
[]
[]
[]
[]
[]
[null,"PDO 3.0 18.01.2021"]

{"sheet":"Vorbemerkung","index":1,"n_rows":0,"n_cols":0,"rows_kept":0,"cut":false,"hidden":false,"merged":[]}

{"sheet":"Instruktion","index":2,"n_rows":0,"n_cols":0,"rows_kept":0,"cut":false,"hidden":false,"merged":[]}

{"sheet":"Pfarrpersonen","index":3,"n_rows":61,"n_cols":11,"rows_kept":61,"cut":false,"hidden":false,"merged":[[18,1,18,2],[17,1,17,2],[6,1,6,2],[7,1,7,2],[8,1,8,2],[9,1,9,2],[10,1,10,2],[11,1,11,2],[12,1,12,2],[13,1,13,2],[14,1,14,2],[15,1,15,2],[16,1,16,2],[19,1,19,2],[20,1,20,2],[21,1,21,2],[22,1,22,2],[22,11,22,13]]}
[]
[]
[null,null,null,null,null,null,null,"Anzahl Gemeinde-mitglieder","Stellenprozente Gesamtgemeinde \n(2000 Gemeindemitglieder = 100% Stelle; ab 2000 Mitglieder jeweils \n5 Stellenprozente zusätzlich pro 825 Mitglieder)"]
["Übersicht Pfarrpersonen und Pfarrstellenprozente",null,null,null,null,null,null,null,{"$f":"IF(H4>2000,H4/2000+(ROUNDUP(H4/825,0)*5/100),H4/2000)","v":0}]
[]
[]
["Kürzel","Name",null,"Vorname","AHV-Nummer","Alter","Beschäftigungsgrad in Stellenprozenten","Zur Verfügung stehende Arbeitstage","Status \n(Stellvertretung, Projektstelle, \ngemeindeeigene Stelle, etc.)","In der KG seit","Datum der Wahl"]
["Gesamtpensum",null,null,null,null,null,{"$f":"G23","v":0},{"$f":"H23","v":0}]
["Delta",null,null,null,null,null,null,{"$f":"IF(F9>59,(($B$33-(5.5-0.75))*G9),$B$33*G9)","v":0}]
[null,null,null,null,null,null,null,{"$f":"IF(F10>59,(($B$33-(5.5-0.75))*G10),$B$33*G10)","v":0}]
[null,null,null,null,null,null,null,0]
[null,null,null,null,null,null,null,0]
[null,null,null,null,null,null,null,0]
[null,null,null,null,null,null,null,0]
[null,null,null,null,null,null,null,0]
[null,null,null,null,null,null,null,0]
[null,null,null,null,null,null,null,0]
[null,null,null,null,null,null,null,0]
[null,null,null,null,null,null,null,0]
[null,null,null,null,null,null,null,0]
[null,null,null,null,null,null,null,0]
[null,null,null,null,null,null,null,0]
["Total",null,null,null,null,null,{"$f":"SUM(G10:G22)","v":0},{"$f":"SUM(H10:H22)","v":0}]
["Berechnungsgrundlage 100%-Pensum: (Angaben dienen ausschliesslich zur Kalkulation. Es besteht keinerlei Anspruch auf den Bezug von vollen oder halben Tagen für die Erfüllung einzelner Aufgabenbereiche)"]
[null,365,"Kalendertage im Jahr"]
["./. ",{"$f":"1.5*52","v":78},"Wochenendtage (1.5 Tage * 52 Wochen)"]
[null,{"$f":"B25-B26","v":287},"Bruttoarbeitstage"]
["./. ",33,"Ferientage (6 x 5.5 Tage, ab dem 60. Altersjahr 7 Wochen)"]
["./. ",5,"Weiterbildungstage (pro zwei Amtsjahre 10 Tage)"]
["./. ",{"$f":"(52-6)*0.25","v":11.5},"Arbeitstage für allgemeine Administrationsaufgaben (1/4 AT pro Netto-Jahresarbeitswoche) "]
["./. ",{"$f":"(52-6)*0.25","v":11.5},"Arbeitstage für Unvorhergesehenes (1/4 AT pro Netto-Jahresarbeitswoche) "]
["./. ",{"$f":"(52-6)*0.25","v":11.5},"Arbeitstage für theologische Existenz und Spiritualität (1/4 AT pro Natto-Jahresarbeitswoche)"]
["=",{"$f":"B27-B28-B29-B30-B31-B32","v":214.5},"Nettoarbeitstage"]
[]
[]
[]
[]
[]
[]
[]
[]
[]
[]
[]
[]
[]
[]
[]
[]
[]
[]
[]
[null,null,"Zeilenbeschriftungen"]
[null,null,"abc",null,"abc"]
[null,null,"cde"]
[null,null,"def"]
[null,null,"Delta"]
[null,null,"Gesamtpensum"]
[null,null,"xyz"]
[null,null,"(Leer)"]
[null,null,"Gesamtergebnis"]

{"sheet":"Pfarrkonvent","index":4,"n_rows":24,"n_cols":9,"rows_kept":24,"cut":false,"hidden":false,"merged":[[21,0,21,11],[1,5,1,10],[10,0,10,11],[13,0,13,11],[16,0,16,11],[19,0,19,11]]}
[]
[null,null,null,null,"Pfarrkonvent Kirchgemeinde"]
[]
["1. Stellenzuteilung"]
["Der Kirchgemeinde wurden ",null,null,null," Pfarrstellenprozente zur Ausgestaltung des Pfarramts"]
["gemäss Art. 115 der Kirchenordnung der evangelisch reformierten Landeskirche Zürich \n"]
["(KO; LS 181.10) zugeteilt."]
["Allenfalls verfügt die Kirchgemeinde über ",null,null,null,null,null," Pfarrstellenprozente an sogenannt „weiteren "]
["Pfarrstellen“ gemäss Art. 117 Abs. 4 KO oder über ",null,null,null,null,null,null,null," Pfarrstellenprozente "]
["an gemeindeeigenen Pfarrstellen. "]
["Die Kirchenpflege entscheidet über die Verteilung des Gesamtpools auf einzelne Pfarrstellen und Pfarrpersonen. (Liste der Pfarrstellen mit Stellenpensum und Name der Pfarrpersonen im Anhang.)\n\n"]
[]
["2. Pfarrkonvent und Pfarrdienstordnung"]
["Der Pfarrkonvent vertritt das Pfarramt und erstellt eine Pfarrdienstordnung im Einvernehmen mit der Kirchenpflege.\nDie Pfarrdienstordnung regelt den Pfarrdienst und legt die und Verantwortungs- und Aufgabenbereiche der Pfarrpersonen fest.\n\n"]
[]
["3. Strategische Ziele, Kommissions- und Teamaufträge, Projekte"]
["Die Kirchenpflege legt in Zusammenarbeit mit dem Pfarr- und dem Gemeindekonvent die strategischen Ziele fest und erteilt entsprechende Aufträge. Diese werden in der Pfarrdienstordnung abgebildet. Der Pfarrkonvent kann eigene Projekte zu Handen der Kirchenpflege entwickeln zur Förderung von Innovation und Pionierarbeit im Pfarramt und zur Förderung der Vielfalt kirchlicher Orte und Formen des gemeindlichen Lebens. Er achtet auf lebensweltliche und lebensräumliche Orientierung."]
[]
["4. Allgemeine pfarramtliche Dienste"]
["Die Teilnahme an den Sitzungen der Kirchenpflege wird von der durch den Pfarrkonvent bestimmten Vertretung wahrgenommen.\nDie Teilnahme an den Sitzungen des Pfarrkonvents ist für alle Pfarrpersonen verbindlich. \nDie Übernahme von allgemeinen Aufgaben für die Gemeindeleitung, den Pfarrkonvent und das Pfarrkapitel ist Teil des pfarramtlichen Dienstes.\nWeiterbildung ist Teil des pfarramtlichen Dienstes. \nDer Pfarrkonvent regelt die Erreichbarkeit und Verfügbarkeit im Pfarramt. \n\n\n\n\n\n\n"]
["5. Organisation des Pfarrkonvents"]
["Der Pfarrkonvent konstituiert sich selbst und trifft sich in der Regel monatlich. Der Pfarrkonvent wird von einer Pfarrperson geleitet. \nDer Pfarrkonvent bestimmt aus seiner Mitte auf bestimmte Dauer die Vorsitzende oder den Vorsitzenden sowie die weiteren Pfarrerinnen und Pfarrer, die neben der oder dem Vorsitzenden an den Sitzungen der Kirchenpflege teilnehmen (Art. 114 Abs. 3 lit a und b KO).\nDer Pfarrkonvent kann der Kirchenpflege die Einsetzung von Kommissionen für besondere pfarramtliche Aufgaben beantragen. Der Pfarrkonvent unterbreitet der Kirchenpflege Vorschläge für die Delegationen von Pfarrpersonen in Kommissionen und Arbeitsgruppen.\n\n"]
["Ort und Datum:"]
["Unterschrift Kirchenpflege:",null,null,null,null,"Unterschrift Konvent:"]

{"sheet":"Erw_Pfarramt","index":5,"n_rows":3,"n_cols":4,"rows_kept":3,"cut":false,"hidden":false,"merged":[[0,1,0,2],[2,3,13,3]]}
[null,"Erwägung Pfarramt"]
[]
[null,null,null,"Hier ist festzuhalten, wie das Pfarramt zusammengesetzt ist bezüglich Berufserfahrung, besonderer Fähigkeiten und Kompetenzen, Zusatzausbildungen, theologischer Ausrichtung etc. der einzelnen Pfarrpersonen. "]

{"sheet":"Erw_Verk.&GD","index":6,"n_rows":141,"n_cols":4,"rows_kept":141,"cut":false,"hidden":false,"merged":[[0,1,0,2],[139,1,139,2],[2,3,13,3],[27,3,38,3],[54,3,65,3],[104,3,116,3]]}
[null,"Pfarramtliche Verantwortungsbereiche im Handlungsfeld \nVerkündigung und Gottesdienst"]
[]
[null,null,null,"Hier ist festzuhalten, wie Verkündigung und Gottesdienst grundsätzlich organisiert sind und wie die Vorgaben der Kirchenpflege umgesetzt werden. Einzutragen ist auch, wie die Erreichbarkeit des Pfarramts organisiert ist, insbesondere betreffend Kasualien. Die theologische Reflexion des Handlungfeldes sollte sich hier zusammengefasst abbilden. "]
[]
[]
[]
[]
[]
[]
[]
[]
[]
[]
[]
[]
[]
[]
[]
[]
[]
[]
[]
[]
[]
[]
[]
[]
[null,null,null,"Hier ist festzuhalten, welche Team- oder Kommissionsaufträge, Projekte oder Schwerpunkte bestehen. Hier sind auch die bestehenden Teams zu erwähnen und wie sie organisiert sind. Mit der Einbettung des Pfarramts in die Gesamtheit der Mitarbeitenden wird die interprofessionelle Zusammenarbeit gefördert. "]
[]
[]
[]
[]
[]
[]
[]
[]
[]
[]
[]
[]
[]
[]
[]
[]
[]
[]
[]
[]
[]
[]
[]
[]
[]
[]
[null,null,null,"Hier ist festzuhalten, welches Engagement bei grösseren Gemeindezusammenschlüssen für die Gesamtgemeinde oder die Region geleistet wird. "]
[]
[]
[]
[]
[]
[]
[]
[]
[]
[]
[]
[]
[]
[]
[]
[]
[]
[]
[]
[]
[]
[]
[]
[]
[]
[]
[]
[]
[]
[]
[]
[]
[]
[]
[]
[]
[]
[]
[]
[]
[]
[]
[]
[]
[]
[]
[]
[]
[]
[null,null,null,"Hier ist festzuhalten, welche besonderen Projekte oder Innovationen bestehen oder für die unmittelbare Zukunft geplant sind. Ein besonderes Augenmerk ist dabei auf die Förderung der Vielfalt kirchlicher Orte und auf vielfältige Formen des gemeindlichen Lebens zu legen wie auch auf Formen der Partizipation. "]
[]
[]
[]
[]
[]
[]
[]
[]
[]
[]
[]
[]
[]
[]
[]
[]
[]
[]
[]
[]
[]
[]
[]
[]
[]
[]
[]
[]
[]
[]
[]
[]
[]
[]
[null,"Die Sonntagsgottesdienste finden in der Kirchgemeinde statt. Kasualien finden in der Regel in den jeweiligen Gottesdienstorten statt. "]
[null,"Gottesdienstorte\n(In der Regel ein Ortsteil/eine Kirche in der Kirchgemeinde, \nin der regelmässig Gottesdienste stattfinden)","Gottesdienstzeiten"]

{"sheet":"Tabelle2","index":7,"n_rows":0,"n_cols":0,"rows_kept":0,"cut":false,"hidden":false,"merged":[]}

{"sheet":"Tabelle1","index":8,"n_rows":0,"n_cols":0,"rows_kept":0,"cut":false,"hidden":false,"merged":[]}

{"sheet":"A&V_Verk.&GD","index":9,"n_rows":194,"n_cols":8,"rows_kept":194,"cut":false,"hidden":false,"merged":[[1,7,4,7],[1,8,4,8],[11,2,13,5],[2,2,2,6],[9,2,9,6],[10,2,10,5]]}
[null,null,"Pfarramtliche Aufgaben- und Verantwortungsbereiche im Handlungsfeld Verkündigung und Gottesdienst"]
[]
[]
[]
[]
[]
[]
[]
[]
[]
[]
[]
[]
[]
[]
[null,null,"Pfarrpersonen",null,null,{"$f":"Pfarrpersonen!A8","v":"Gesamtpensum"}]
[{"$f":"CONCATENATE($F$16,B17)","v":"GesamtpensumGD0"},"GD0","Arbeitsbereich Gottesdienst / Kasualien",null,null,"Anzahl","Bemerkung (Hauptverantwortung, Planung, konzeptioneller Ansatz)","Erklärungen zu den Berechnung / Kalkulations-Faktoren "]
[]
[{"$f":"CONCATENATE($F$16,B19)","v":"GesamtpensumGD1"},"GD1","Predigtgottesdienste",null,null,null,null,"Durchschnittlicher Aufwand  1.2 AT pro GD"]
["GesamtpensumGD2","GD2","Festtagsgottesdienste",null,null,null,null,"Durchschnittlicher Aufwand  1 .5 AT pro GD"]
["GesamtpensumGD3","GD3","Liturgische Feiern",null,null,null,null,"Durchschnittlicher Aufwand  0.5 AT pro Feier"]
["GesamtpensumGD4","GD4","Abdankungen",null,null,null,null,"Durchschnittlicher Aufwand  1.5  AT pro Abdankung"]
["GesamtpensumGD5","GD5","Beisetzung am Grab",null,null,null,null,"Durchschnittlicher Aufwand  0.8  AT pro Stille Beisetzung"]
["GesamtpensumGD6","GD6","Taufen (im Gemeindegottesdienst)",null,null,null,null,"Durchschnittlicher Aufwand  0.5  AT pro Taufe"]
["GesamtpensumGD7","GD7","Trauungen als eigene gottesdienstliche Feier",null,null,null,null,"Durchschnittlicher Aufwand  2  AT pro Trauung"]
["GesamtpensumGD8","GD8","Taufen als eigene gottesdienstliche Feier",null,null,0,null,"Durchschnittlicher Aufwand  0.5 AT pro Heim-GD"]
["GesamtpensumGD9","GD9","Heim-Gottesdienste",null,null,0]
["GesamtpensumGD10","GD10","Besondere und übrige Aufgaben"]
["GesamtpensumGD11","GD11","…"]
["GesamtpensumGD12","GD12","…"]
["GesamtpensumGD13","GD13","…"]
["GesamtpensumGD14","GD14","…"]
[]
[null,null,{"$f":"Pfarrpersonen!A8","v":"Gesamtpensum"},null,null,{"$f":"Pfarrpersonen!A9","v":"Delta"}]
[{"$f":"CONCATENATE($F$34,B35)","v":"DeltaGD0"},{"$f":"B17","v":"GD0"},{"$f":"$C$17","v":"Arbeitsbereich Gottesdienst / Kasualien"},null,null,{"$f":"$F$17","v":"Anzahl"},{"$f":"$G$17","v":"Bemerkung (Hauptverantwortung, Planung, konzeptioneller Ansatz)"},{"$f":"$H$17","v":"Erklärungen zu den Berechnung / Kalkulations-Faktoren "}]
[null,null,null,null,null,{"$f":"$F$18","v":0}]
[{"$f":"CONCATENATE($F$34,B37)","v":"DeltaGD1"},{"$f":"B19","v":"GD1"},{"$f":"C$19","v":"Predigtgottesdienste"},null,null,null,null,{"$f":"$H$19","v":"Durchschnittlicher Aufwand  1.2 AT pro GD"}]
["DeltaGD2","GD2",{"$f":"C$20","v":"Festtagsgottesdienste"},null,null,null,null,{"$f":"$H$20","v":"Durchschnittlicher Aufwand  1 .5 AT pro GD"}]
["DeltaGD3","GD3",{"$f":"C$21","v":"Liturgische Feiern"},null,null,null,null,{"$f":"$H$21","v":"Durchschnittlicher Aufwand  0.5 AT pro Feier"}]
["DeltaGD4","GD4",{"$f":"C$22","v":"Abdankungen"},null,null,null,null,{"$f":"$H$22","v":"Durchschnittlicher Aufwand  1.5  AT pro Abdankung"}]
["DeltaGD5","GD5",{"$f":"C$23","v":"Beisetzung am Grab"},null,null,null,null,{"$f":"$H$23","v":"Durchschnittlicher Aufwand  0.8  AT pro Stille Beisetzung"}]
["DeltaGD6","GD6",{"$f":"C$24","v":"Taufen (im Gemeindegottesdienst)"},null,null,null,null,{"$f":"$H$24","v":"Durchschnittlicher Aufwand  0.5  AT pro Taufe"}]
["DeltaGD7","GD7",{"$f":"C$25","v":"Trauungen als eigene gottesdienstliche Feier"},null,null,null,null,{"$f":"$H$25","v":"Durchschnittlicher Aufwand  2  AT pro Trauung"}]
["DeltaGD8","GD8",{"$f":"C$26","v":"Taufen als eigene gottesdienstliche Feier"},null,null,null,null,{"$f":"$H$26","v":"Durchschnittlicher Aufwand  0.5 AT pro Heim-GD"}]
["DeltaGD9","GD9",{"$f":"C$27","v":"Heim-Gottesdienste"}]
["DeltaGD10","GD10",{"$f":"C$28","v":"Besondere und übrige Aufgaben"}]
["DeltaGD11","GD11",{"$f":"C$29","v":"…"}]
["DeltaGD12","GD12",{"$f":"C$30","v":"…"}]
["DeltaGD13","GD13",{"$f":"C$31","v":"…"}]
["DeltaGD14","GD14",{"$f":"C$32","v":"…"}]
[]
[null,null,"Pfarrperson"]
[{"$f":"CONCATENATE($F$52,B53)","v":"GD0"},{"$f":"B35","v":"GD0"},{"$f":"$C$17","v":"Arbeitsbereich Gottesdienst / Kasualien"},null,null,{"$f":"$F$17","v":"Anzahl"},{"$f":"$G$17","v":"Bemerkung (Hauptverantwortung, Planung, konzeptioneller Ansatz)"},{"$f":"$H$17","v":"Erklärungen zu den Berechnung / Kalkulations-Faktoren "}]
["",null,null,null,null,{"$f":"$F$18","v":0}]
["GD1",{"$f":"B37","v":"GD1"},{"$f":"$C$19","v":"Predigtgottesdienste"},null,null,null,null,{"$f":"$H$19","v":"Durchschnittlicher Aufwand  1.2 AT pro GD"}]
["GD2","GD2",{"$f":"$C$20","v":"Festtagsgottesdienste"},null,null,null,null,{"$f":"$H$20","v":"Durchschnittlicher Aufwand  1 .5 AT pro GD"}]
["GD3","GD3",{"$f":"$C$21","v":"Liturgische Feiern"},null,null,null,null,{"$f":"$H$21","v":"Durchschnittlicher Aufwand  0.5 AT pro Feier"}]
["GD4","GD4",{"$f":"$C$22","v":"Abdankungen"},null,null,null,null,{"$f":"$H$22","v":"Durchschnittlicher Aufwand  1.5  AT pro Abdankung"}]
["GD5","GD5",{"$f":"$C$23","v":"Beisetzung am Grab"},null,null,null,null,{"$f":"$H$23","v":"Durchschnittlicher Aufwand  0.8  AT pro Stille Beisetzung"}]
["GD6","GD6",{"$f":"$C$24","v":"Taufen (im Gemeindegottesdienst)"},null,null,null,null,{"$f":"$H$24","v":"Durchschnittlicher Aufwand  0.5  AT pro Taufe"}]
["GD7","GD7",{"$f":"$C$25","v":"Trauungen als eigene gottesdienstliche Feier"},null,null,null,null,{"$f":"$H$25","v":"Durchschnittlicher Aufwand  2  AT pro Trauung"}]
["GD8","GD8",{"$f":"$C$26","v":"Taufen als eigene gottesdienstliche Feier"},null,null,null,null,{"$f":"$H$26","v":"Durchschnittlicher Aufwand  0.5 AT pro Heim-GD"}]
["GD9","GD9",{"$f":"$C$27","v":"Heim-Gottesdienste"}]
["GD10","GD10",{"$f":"$C$28","v":"Besondere und übrige Aufgaben"}]
["GD11","GD11",{"$f":"$C$29","v":"…"}]
["GD12","GD12",{"$f":"$C$30","v":"…"}]
["GD13","GD13",{"$f":"$C$31","v":"…"}]
["GD14","GD14",{"$f":"$C$32","v":"…"}]
[]
[null,null,"Pfarrperson"]
[{"$f":"CONCATENATE($F$70,B71)","v":"GD0"},{"$f":"B53","v":"GD0"},{"$f":"$C$17","v":"Arbeitsbereich Gottesdienst / Kasualien"},null,null,{"$f":"$F$17","v":"Anzahl"},{"$f":"$G$17","v":"Bemerkung (Hauptverantwortung, Planung, konzeptioneller Ansatz)"},{"$f":"$H$17","v":"Erklärungen zu den Berechnung / Kalkulations-Faktoren "}]
["",null,null,null,null,{"$f":"$F$18","v":0}]
["GD1",{"$f":"B55","v":"GD1"},{"$f":"C$19","v":"Predigtgottesdienste"},null,null,null,null,{"$f":"$H$19","v":"Durchschnittlicher Aufwand  1.2 AT pro GD"}]
["GD2","GD2",{"$f":"C$20","v":"Festtagsgottesdienste"},null,null,null,null,{"$f":"$H$20","v":"Durchschnittlicher Aufwand  1 .5 AT pro GD"}]
["GD3","GD3",{"$f":"C$21","v":"Liturgische Feiern"},null,null,null,null,{"$f":"$H$21","v":"Durchschnittlicher Aufwand  0.5 AT pro Feier"}]
["GD4","GD4",{"$f":"C$22","v":"Abdankungen"},null,null,null,null,{"$f":"$H$22","v":"Durchschnittlicher Aufwand  1.5  AT pro Abdankung"}]
["GD5","GD5",{"$f":"C$23","v":"Beisetzung am Grab"},null,null,null,null,{"$f":"$H$23","v":"Durchschnittlicher Aufwand  0.8  AT pro Stille Beisetzung"}]
["GD6","GD6",{"$f":"C$24","v":"Taufen (im Gemeindegottesdienst)"},null,null,null,null,{"$f":"$H$24","v":"Durchschnittlicher Aufwand  0.5  AT pro Taufe"}]
["GD7","GD7",{"$f":"C$25","v":"Trauungen als eigene gottesdienstliche Feier"},null,null,null,null,{"$f":"$H$25","v":"Durchschnittlicher Aufwand  2  AT pro Trauung"}]
["GD8","GD8",{"$f":"C$26","v":"Taufen als eigene gottesdienstliche Feier"},null,null,null,null,{"$f":"$H$26","v":"Durchschnittlicher Aufwand  0.5 AT pro Heim-GD"}]
["GD9","GD9",{"$f":"C$27","v":"Heim-Gottesdienste"}]
["GD10","GD10",{"$f":"C$28","v":"Besondere und übrige Aufgaben"}]
["GD11","GD11",{"$f":"C$29","v":"…"}]
["GD12","GD12",{"$f":"C$30","v":"…"}]
["GD13","GD13",{"$f":"C$31","v":"…"}]
["GD14","GD14",{"$f":"C$32","v":"…"}]
[]
[null,null,"Pfarrperson"]
[{"$f":"CONCATENATE($F$88,B89)","v":"GD0"},{"$f":"B71","v":"GD0"},{"$f":"$C$17","v":"Arbeitsbereich Gottesdienst / Kasualien"},null,null,{"$f":"$F$17","v":"Anzahl"},{"$f":"$G$17","v":"Bemerkung (Hauptverantwortung, Planung, konzeptioneller Ansatz)"},{"$f":"$H$17","v":"Erklärungen zu den Berechnung / Kalkulations-Faktoren "}]
["",null,null,null,null,{"$f":"$F$18","v":0}]
["GD1",{"$f":"B73","v":"GD1"},{"$f":"C$19","v":"Predigtgottesdienste"},null,null,null,null,{"$f":"$H$19","v":"Durchschnittlicher Aufwand  1.2 AT pro GD"}]
["GD2","GD2",{"$f":"C$20","v":"Festtagsgottesdienste"},null,null,null,null,{"$f":"$H$20","v":"Durchschnittlicher Aufwand  1 .5 AT pro GD"}]
["GD3","GD3",{"$f":"C$21","v":"Liturgische Feiern"},null,null,null,null,{"$f":"$H$21","v":"Durchschnittlicher Aufwand  0.5 AT pro Feier"}]
["GD4","GD4",{"$f":"C$22","v":"Abdankungen"},null,null,null,null,{"$f":"$H$22","v":"Durchschnittlicher Aufwand  1.5  AT pro Abdankung"}]
["GD5","GD5",{"$f":"C$23","v":"Beisetzung am Grab"},null,null,null,null,{"$f":"$H$23","v":"Durchschnittlicher Aufwand  0.8  AT pro Stille Beisetzung"}]
["GD6","GD6",{"$f":"C$24","v":"Taufen (im Gemeindegottesdienst)"},null,null,null,null,{"$f":"$H$24","v":"Durchschnittlicher Aufwand  0.5  AT pro Taufe"}]
["GD7","GD7",{"$f":"C$25","v":"Trauungen als eigene gottesdienstliche Feier"},null,null,null,null,{"$f":"$H$25","v":"Durchschnittlicher Aufwand  2  AT pro Trauung"}]
["GD8","GD8",{"$f":"C$26","v":"Taufen als eigene gottesdienstliche Feier"},null,null,null,null,{"$f":"$H$26","v":"Durchschnittlicher Aufwand  0.5 AT pro Heim-GD"}]
["GD9","GD9",{"$f":"C$27","v":"Heim-Gottesdienste"}]
["GD10","GD10",{"$f":"C$28","v":"Besondere und übrige Aufgaben"}]
["GD11","GD11",{"$f":"C$29","v":"…"}]
["GD12","GD12",{"$f":"C$30","v":"…"}]
["GD13","GD13",{"$f":"C$31","v":"…"}]
["GD14","GD14",{"$f":"C$32","v":"…"}]
[]
[null,null,"Pfarrperson"]
[{"$f":"CONCATENATE($F$106,B107)","v":"GD0"},{"$f":"B89","v":"GD0"},{"$f":"$C$17","v":"Arbeitsbereich Gottesdienst / Kasualien"},null,null,{"$f":"$F$17","v":"Anzahl"},{"$f":"$G$17","v":"Bemerkung (Hauptverantwortung, Planung, konzeptioneller Ansatz)"},{"$f":"$H$17","v":"Erklärungen zu den Berechnung / Kalkulations-Faktoren "}]
["",null,null,null,null,{"$f":"$F$18","v":0}]
["GD1",{"$f":"B91","v":"GD1"},{"$f":"C$19","v":"Predigtgottesdienste"},null,null,null,null,{"$f":"$H$19","v":"Durchschnittlicher Aufwand  1.2 AT pro GD"}]
["GD2","GD2",{"$f":"C$20","v":"Festtagsgottesdienste"},null,null,null,null,{"$f":"$H$20","v":"Durchschnittlicher Aufwand  1 .5 AT pro GD"}]
["GD3","GD3",{"$f":"C$21","v":"Liturgische Feiern"},null,null,null,null,{"$f":"$H$21","v":"Durchschnittlicher Aufwand  0.5 AT pro Feier"}]
["GD4","GD4",{"$f":"C$22","v":"Abdankungen"},null,null,null,null,{"$f":"$H$22","v":"Durchschnittlicher Aufwand  1.5  AT pro Abdankung"}]
["GD5","GD5",{"$f":"C$23","v":"Beisetzung am Grab"},null,null,null,null,{"$f":"$H$23","v":"Durchschnittlicher Aufwand  0.8  AT pro Stille Beisetzung"}]
["GD6","GD6",{"$f":"C$24","v":"Taufen (im Gemeindegottesdienst)"},null,null,null,null,{"$f":"$H$24","v":"Durchschnittlicher Aufwand  0.5  AT pro Taufe"}]
["GD7","GD7",{"$f":"C$25","v":"Trauungen als eigene gottesdienstliche Feier"},null,null,null,null,{"$f":"$H$25","v":"Durchschnittlicher Aufwand  2  AT pro Trauung"}]
["GD8","GD8",{"$f":"C$26","v":"Taufen als eigene gottesdienstliche Feier"},null,null,null,null,{"$f":"$H$26","v":"Durchschnittlicher Aufwand  0.5 AT pro Heim-GD"}]
["GD9","GD9",{"$f":"C$27","v":"Heim-Gottesdienste"}]
["GD10","GD10",{"$f":"C$28","v":"Besondere und übrige Aufgaben"}]
["GD11","GD11",{"$f":"C$29","v":"…"}]
["GD12","GD12",{"$f":"C$30","v":"…"}]
["GD13","GD13",{"$f":"C$31","v":"…"}]
["GD14","GD14",{"$f":"C$32","v":"…"}]
[]
[null,null,"Pfarrperson"]
[{"$f":"CONCATENATE($F$124,B125)","v":"GD0"},{"$f":"B107","v":"GD0"},{"$f":"$C$17","v":"Arbeitsbereich Gottesdienst / Kasualien"},null,null,{"$f":"$F$17","v":"Anzahl"},{"$f":"$G$17","v":"Bemerkung (Hauptverantwortung, Planung, konzeptioneller Ansatz)"},{"$f":"$H$17","v":"Erklärungen zu den Berechnung / Kalkulations-Faktoren "}]
["",null,null,null,null,{"$f":"$F$18","v":0}]
["GD1",{"$f":"B109","v":"GD1"},{"$f":"C$19","v":"Predigtgottesdienste"},null,null,null,null,{"$f":"$H$19","v":"Durchschnittlicher Aufwand  1.2 AT pro GD"}]
["GD2","GD2",{"$f":"C$20","v":"Festtagsgottesdienste"},null,null,null,null,{"$f":"$H$20","v":"Durchschnittlicher Aufwand  1 .5 AT pro GD"}]
["GD3","GD3",{"$f":"C$21","v":"Liturgische Feiern"},null,null,null,null,{"$f":"$H$21","v":"Durchschnittlicher Aufwand  0.5 AT pro Feier"}]
["GD4","GD4",{"$f":"C$22","v":"Abdankungen"},null,null,null,null,{"$f":"$H$22","v":"Durchschnittlicher Aufwand  1.5  AT pro Abdankung"}]
["GD5","GD5",{"$f":"C$23","v":"Beisetzung am Grab"},null,null,null,null,{"$f":"$H$23","v":"Durchschnittlicher Aufwand  0.8  AT pro Stille Beisetzung"}]
["GD6","GD6",{"$f":"C$24","v":"Taufen (im Gemeindegottesdienst)"},null,null,null,null,{"$f":"$H$24","v":"Durchschnittlicher Aufwand  0.5  AT pro Taufe"}]
["GD7","GD7",{"$f":"C$25","v":"Trauungen als eigene gottesdienstliche Feier"},null,null,null,null,{"$f":"$H$25","v":"Durchschnittlicher Aufwand  2  AT pro Trauung"}]
["GD8","GD8",{"$f":"C$26","v":"Taufen als eigene gottesdienstliche Feier"},null,null,null,null,{"$f":"$H$26","v":"Durchschnittlicher Aufwand  0.5 AT pro Heim-GD"}]
["GD9","GD9",{"$f":"C$27","v":"Heim-Gottesdienste"}]
["GD10","GD10",{"$f":"C$28","v":"Besondere und übrige Aufgaben"}]
["GD11","GD11",{"$f":"C$29","v":"…"}]
["GD12","GD12",{"$f":"C$30","v":"…"}]
["GD13","GD13",{"$f":"C$31","v":"…"}]
["GD14","GD14",{"$f":"C$32","v":"…"}]
[]
[null,null,"Pfarrperson"]
[{"$f":"CONCATENATE($F$142,B143)","v":"GD0"},{"$f":"B125","v":"GD0"},{"$f":"$C$17","v":"Arbeitsbereich Gottesdienst / Kasualien"},null,null,{"$f":"$F$17","v":"Anzahl"},{"$f":"$G$17","v":"Bemerkung (Hauptverantwortung, Planung, konzeptioneller Ansatz)"},{"$f":"$H$17","v":"Erklärungen zu den Berechnung / Kalkulations-Faktoren "}]
["",null,null,null,null,{"$f":"$F$18","v":0}]
["GD1",{"$f":"B127","v":"GD1"},{"$f":"C$19","v":"Predigtgottesdienste"},null,null,null,null,{"$f":"$H$19","v":"Durchschnittlicher Aufwand  1.2 AT pro GD"}]
["GD2","GD2",{"$f":"C$20","v":"Festtagsgottesdienste"},null,null,null,null,{"$f":"$H$20","v":"Durchschnittlicher Aufwand  1 .5 AT pro GD"}]
["GD3","GD3",{"$f":"C$21","v":"Liturgische Feiern"},null,null,null,null,{"$f":"$H$21","v":"Durchschnittlicher Aufwand  0.5 AT pro Feier"}]
["GD4","GD4",{"$f":"C$22","v":"Abdankungen"},null,null,null,null,{"$f":"$H$22","v":"Durchschnittlicher Aufwand  1.5  AT pro Abdankung"}]
["GD5","GD5",{"$f":"C$23","v":"Beisetzung am Grab"},null,null,null,null,{"$f":"$H$23","v":"Durchschnittlicher Aufwand  0.8  AT pro Stille Beisetzung"}]
["GD6","GD6",{"$f":"C$24","v":"Taufen (im Gemeindegottesdienst)"},null,null,null,null,{"$f":"$H$24","v":"Durchschnittlicher Aufwand  0.5  AT pro Taufe"}]
["GD7","GD7",{"$f":"C$25","v":"Trauungen als eigene gottesdienstliche Feier"},null,null,null,null,{"$f":"$H$25","v":"Durchschnittlicher Aufwand  2  AT pro Trauung"}]
["GD8","GD8",{"$f":"C$26","v":"Taufen als eigene gottesdienstliche Feier"},null,null,null,null,{"$f":"$H$26","v":"Durchschnittlicher Aufwand  0.5 AT pro Heim-GD"}]
["GD9","GD9",{"$f":"C$27","v":"Heim-Gottesdienste"}]
["GD10","GD10",{"$f":"C$28","v":"Besondere und übrige Aufgaben"}]
["GD11","GD11",{"$f":"C$29","v":"…"}]
["GD12","GD12",{"$f":"C$30","v":"…"}]
["GD13","GD13",{"$f":"C$31","v":"…"}]
["GD14","GD14",{"$f":"C$32","v":"…"}]
[]
[null,null,"Pfarrperson"]
[{"$f":"CONCATENATE($F$160,B161)","v":"GD0"},{"$f":"B143","v":"GD0"},{"$f":"$C$17","v":"Arbeitsbereich Gottesdienst / Kasualien"},null,null,{"$f":"$F$17","v":"Anzahl"},{"$f":"$G$17","v":"Bemerkung (Hauptverantwortung, Planung, konzeptioneller Ansatz)"},{"$f":"$H$17","v":"Erklärungen zu den Berechnung / Kalkulations-Faktoren "}]
["",null,null,null,null,{"$f":"$F$18","v":0}]
["GD1",{"$f":"B145","v":"GD1"},{"$f":"C$19","v":"Predigtgottesdienste"},null,null,null,null,{"$f":"$H$19","v":"Durchschnittlicher Aufwand  1.2 AT pro GD"}]
["GD2","GD2",{"$f":"C$20","v":"Festtagsgottesdienste"},null,null,null,null,{"$f":"$H$20","v":"Durchschnittlicher Aufwand  1 .5 AT pro GD"}]
["GD3","GD3",{"$f":"C$21","v":"Liturgische Feiern"},null,null,null,null,{"$f":"$H$21","v":"Durchschnittlicher Aufwand  0.5 AT pro Feier"}]
["GD4","GD4",{"$f":"C$22","v":"Abdankungen"},null,null,null,null,{"$f":"$H$22","v":"Durchschnittlicher Aufwand  1.5  AT pro Abdankung"}]
["GD5","GD5",{"$f":"C$23","v":"Beisetzung am Grab"},null,null,null,null,{"$f":"$H$23","v":"Durchschnittlicher Aufwand  0.8  AT pro Stille Beisetzung"}]
["GD6","GD6",{"$f":"C$24","v":"Taufen (im Gemeindegottesdienst)"},null,null,null,null,{"$f":"$H$24","v":"Durchschnittlicher Aufwand  0.5  AT pro Taufe"}]
["GD7","GD7",{"$f":"C$25","v":"Trauungen als eigene gottesdienstliche Feier"},null,null,null,null,{"$f":"$H$25","v":"Durchschnittlicher Aufwand  2  AT pro Trauung"}]
["GD8","GD8",{"$f":"C$26","v":"Taufen als eigene gottesdienstliche Feier"},null,null,null,null,{"$f":"$H$26","v":"Durchschnittlicher Aufwand  0.5 AT pro Heim-GD"}]
["GD9","GD9",{"$f":"C$27","v":"Heim-Gottesdienste"}]
["GD10","GD10",{"$f":"C$28","v":"Besondere und übrige Aufgaben"}]
["GD11","GD11",{"$f":"C$29","v":"…"}]
["GD12","GD12",{"$f":"C$30","v":"…"}]
["GD13","GD13",{"$f":"C$31","v":"…"}]
["GD14","GD14",{"$f":"C$32","v":"…"}]
[]
[null,null,"Pfarrperson"]
[{"$f":"CONCATENATE($F$178,B179)","v":"GD0"},{"$f":"B161","v":"GD0"},{"$f":"$C$17","v":"Arbeitsbereich Gottesdienst / Kasualien"},null,null,{"$f":"$F$17","v":"Anzahl"},{"$f":"$G$17","v":"Bemerkung (Hauptverantwortung, Planung, konzeptioneller Ansatz)"},{"$f":"$H$17","v":"Erklärungen zu den Berechnung / Kalkulations-Faktoren "}]
["",null,null,null,null,{"$f":"$F$18","v":0}]
["GD1",{"$f":"B163","v":"GD1"},{"$f":"C$19","v":"Predigtgottesdienste"},null,null,null,null,{"$f":"$H$19","v":"Durchschnittlicher Aufwand  1.2 AT pro GD"}]
["GD2","GD2",{"$f":"C$20","v":"Festtagsgottesdienste"},null,null,null,null,{"$f":"$H$20","v":"Durchschnittlicher Aufwand  1 .5 AT pro GD"}]
["GD3","GD3",{"$f":"C$21","v":"Liturgische Feiern"},null,null,null,null,{"$f":"$H$21","v":"Durchschnittlicher Aufwand  0.5 AT pro Feier"}]
["GD4","GD4",{"$f":"C$22","v":"Abdankungen"},null,null,null,null,{"$f":"$H$22","v":"Durchschnittlicher Aufwand  1.5  AT pro Abdankung"}]
["GD5","GD5",{"$f":"C$23","v":"Beisetzung am Grab"},null,null,null,null,{"$f":"$H$23","v":"Durchschnittlicher Aufwand  0.8  AT pro Stille Beisetzung"}]
["GD6","GD6",{"$f":"C$24","v":"Taufen (im Gemeindegottesdienst)"},null,null,null,null,{"$f":"$H$24","v":"Durchschnittlicher Aufwand  0.5  AT pro Taufe"}]
["GD7","GD7",{"$f":"C$25","v":"Trauungen als eigene gottesdienstliche Feier"},null,null,null,null,{"$f":"$H$25","v":"Durchschnittlicher Aufwand  2  AT pro Trauung"}]
["GD8","GD8",{"$f":"C$26","v":"Taufen als eigene gottesdienstliche Feier"},null,null,null,null,{"$f":"$H$26","v":"Durchschnittlicher Aufwand  0.5 AT pro Heim-GD"}]
["GD9","GD9",{"$f":"C$27","v":"Heim-Gottesdienste"}]
["GD10","GD10",{"$f":"C$28","v":"Besondere und übrige Aufgaben"}]
["GD11","GD11",{"$f":"C$29","v":"…"}]
["GD12","GD12",{"$f":"C$30","v":"…"}]
["GD13","GD13",{"$f":"C$31","v":"…"}]
["GD14","GD14",{"$f":"C$32","v":"…"}]

{"sheet":"Erw_Diak.&Seels.","index":10,"n_rows":105,"n_cols":4,"rows_kept":105,"cut":false,"hidden":false,"merged":[[0,1,0,2],[2,3,13,3],[27,3,38,3],[54,3,65,3],[104,3,116,3]]}
[null,"Pfarramtliche Verantwortungsbereiche im Handlungsfeld \nDiakonie und Seelsorge"]
[]
[null,null,null,"Hier ist festzuhalten, wie Diakonie und Seelsorge grundsätzlich organisiert sind und wie die Vorgaben der Kirchenpflege umgesetzt werden. Die theologische Reflexion des Handlungsfeldes sollte sich hier zusammengefasst abbilden. "]
[]
[]
[]
[]
[]
[]
[]
[]
[]
[]
[]
[]
[]
[]
[]
[]
[]
[]
[]
[]
[]
[]
[]
[]
[null,null,null,"Hier ist festzuhalten, welche Team- oder Kommissionsaufträge, Projekte oder Schwerpunkte bestehen. Hier sind auch die bestehenden Teams zu erwähnen und wie sie organisiert sind. Mit der Einbettung des Pfarramts in die Gesamtheit der Mitarbeitenden wird die interprofessionelle Zusammenarbeit gefördert."]
[]
[]
[]
[]
[]
[]
[]
[]
[]
[]
[]
[]
[]
[]
[]
[]
[]
[]
[]
[]
[]
[]
[]
[]
[]
[]
[null,null,null,"Hier ist festzuhalten, welches Engagement bei grösseren Gemeindezusammenschlüssen für die Gesamtgemeinde oder die Region geleistet wird."]
[]
[]
[]
[]
[]
[]
[]
[]
[]
[]
[]
[]
[]
[]
[]
[]
[]
[]
[]
[]
[]
[]
[]
[]
[]
[]
[]
[]
[]
[]
[]
[]
[]
[]
[]
[]
[]
[]
[]
[]
[]
[]
[]
[]
[]
[]
[]
[]
[]
[null,null,null,"Hier ist festzuhalten, welche besonderen Projekte oder Innovationen bestehen oder für die unmittelbare Zukunft geplant sind. Ein besonderes Augenmerk ist dabei auf die Förderung der Vielfalt kirchlicher Orte und auf vielfältige Formen des gemeindlichen Lebens zu legen wie auch auf  Formen der Partizipation."]

{"sheet":"A&V_Diak.&Seels.","index":11,"n_rows":437,"n_cols":8,"rows_kept":437,"cut":false,"hidden":false,"merged":[[9,2,9,6],[1,7,4,7],[2,2,2,6]]}
[null,null,"Pfarramtliche Aufgaben- und Verantwortungsbereiche im Handlungsfeld Diakonie und Seelsorge"]
[]
[]
[]
[]
[]
[]
[]
[]
[]
[]
[]
[]
[]
[null,null,"Seelsorge "]
[null,null,"Pfarrpersonen",null,null,{"$f":"Pfarrpersonen!A8","v":"Gesamtpensum"}]
[{"$f":"CONCATENATE($F$16,B17)","v":"GesamtpensumSEE0"},"SEE0","Arbeitsbereich Seelsorge",null,null,"Anzahl","Bemerkung (Hauptverantwortung, Planung, konzeptioneller Ansatz)","Erklärungen zu den Berechnung / Kalkulations-Faktoren "]
[]
[{"$f":"CONCATENATE($F$16,B19)","v":"GesamtpensumSEE1"},"SEE1","Seelsorge in der Gemeinde \n(Anzahl zugewandte Mitglieder)",null,null,null,null,"Eingabe: Anzahl zugewandter Gemeindemitglieder, \nFaktor: durchschn. 0.01 AT pro Mitglied pro Jahr  bzw. 0.5AT pro Woche \nin einem 100% Pensum "]
["GesamtpensumSEE2","SEE2","Betreuung von Gruppen \n(AZ Gruppen)",null,null,null,null,"Eingabe: Anzahl Gruppen, Faktor: 1 AT pro Gruppe pro Jahr"]
["GesamtpensumSEE3","SEE3","Besuche an Institutionen ",null,null,null,null,"Eingabe: Anzahl Stunden für Besuche por Jahr "]
["GesamtpensumSEE4","SEE4","Notfallseelsorge"]
["GesamtpensumSEE5","SEE5","Besondere und übrige Aufgaben"]
["GesamtpensumSEE6","SEE6","…"]
["GesamtpensumSEE7","SEE7","…"]
["GesamtpensumSEE8","SEE8","…"]
["GesamtpensumSEE9","SEE9","…"]
["GesamtpensumSEE10","SEE10","…"]
[]
[null,null,{"$f":"Pfarrpersonen!A8","v":"Gesamtpensum"},null,null,{"$f":"Pfarrpersonen!A9","v":"Delta"}]
[{"$f":"CONCATENATE($F$30,B31)","v":"DeltaSEE0"},{"$f":"B17","v":"SEE0"},{"$f":"$C$17","v":"Arbeitsbereich Seelsorge"},null,null,{"$f":"$F$17","v":"Anzahl"},{"$f":"$G$17","v":"Bemerkung (Hauptverantwortung, Planung, konzeptioneller Ansatz)"},{"$f":"$H$17","v":"Erklärungen zu den Berechnung / Kalkulations-Faktoren "}]
[null,0,null,null,null,{"$f":"$F$18","v":0},null,{"$f":"$H$18","v":0}]
[{"$f":"CONCATENATE($F$30,B33)","v":"DeltaSEE1"},"SEE1",{"$f":"C$19","v":"Seelsorge in der Gemeinde \n(Anzahl zugewandte Mitglieder)"},null,null,null,null,{"$f":"$H$19","v":"Eingabe: Anzahl zugewandter Gemeindemitglieder, \nFaktor: durchschn. 0.01 AT pro Mitglied pro Jahr  bzw. 0.5AT pro Woche \nin einem 100% Pensum "}]
["DeltaSEE2","SEE2",{"$f":"C$20","v":"Betreuung von Gruppen \n(AZ Gruppen)"},null,null,null,null,{"$f":"$H$20","v":"Eingabe: Anzahl Gruppen, Faktor: 1 AT pro Gruppe pro Jahr"}]
["DeltaSEE3","SEE3",{"$f":"C$21","v":"Besuche an Institutionen "},null,null,null,null,{"$f":"$H$21","v":"Eingabe: Anzahl Stunden für Besuche por Jahr "}]
["DeltaSEE4","SEE4",{"$f":"C$22","v":"Notfallseelsorge"},null,null,null,null,{"$f":"$H$22","v":0}]
["DeltaSEE5","SEE5",{"$f":"C$23","v":"Besondere und übrige Aufgaben"},null,null,null,null,{"$f":"$H$23","v":0}]
["DeltaSEE6","SEE6",{"$f":"C$24","v":"…"},null,null,null,null,{"$f":"$H$23","v":0}]
["DeltaSEE7","SEE7",{"$f":"C$25","v":"…"},null,null,null,null,{"$f":"$H$28","v":0}]
["DeltaSEE8","SEE8",{"$f":"C$26","v":"…"},null,null,null,null,{"$f":"$H$23","v":0}]
["DeltaSEE9","SEE9",{"$f":"C$27","v":"…"},null,null,null,null,{"$f":"$H$28","v":0}]
["DeltaSEE10","SEE10",{"$f":"C$28","v":"…"},null,null,null,null,{"$f":"$H$28","v":0}]
[]
[null,null,"Pfarrperson"]
[{"$f":"CONCATENATE($F$44,B45)","v":"SEE0"},{"$f":"B31","v":"SEE0"},{"$f":"$C$17","v":"Arbeitsbereich Seelsorge"},null,null,{"$f":"$F$17","v":"Anzahl"},{"$f":"$G$17","v":"Bemerkung (Hauptverantwortung, Planung, konzeptioneller Ansatz)"},{"$f":"$H$17","v":"Erklärungen zu den Berechnung / Kalkulations-Faktoren "}]
["0",0,null,null,null,{"$f":"$F$18","v":0},null,{"$f":"$H$18","v":0}]
["SEE1","SEE1",{"$f":"C$19","v":"Seelsorge in der Gemeinde \n(Anzahl zugewandte Mitglieder)"},null,null,null,null,{"$f":"$H$19","v":"Eingabe: Anzahl zugewandter Gemeindemitglieder, \nFaktor: durchschn. 0.01 AT pro Mitglied pro Jahr  bzw. 0.5AT pro Woche \nin einem 100% Pensum "}]
["SEE2","SEE2",{"$f":"C$20","v":"Betreuung von Gruppen \n(AZ Gruppen)"},null,null,null,null,{"$f":"$H$20","v":"Eingabe: Anzahl Gruppen, Faktor: 1 AT pro Gruppe pro Jahr"}]
["SEE3","SEE3",{"$f":"C$21","v":"Besuche an Institutionen "},null,null,null,null,{"$f":"$H$21","v":"Eingabe: Anzahl Stunden für Besuche por Jahr "}]
["SEE4","SEE4",{"$f":"C$22","v":"Notfallseelsorge"},null,null,null,null,{"$f":"$H$22","v":0}]
["SEE5","SEE5",{"$f":"C$23","v":"Besondere und übrige Aufgaben"},null,null,null,null,{"$f":"$H$23","v":0}]
["SEE6","SEE6",{"$f":"C$24","v":"…"},null,null,null,null,{"$f":"$H$23","v":0}]
["SEE7","SEE7",{"$f":"C$25","v":"…"},null,null,null,null,{"$f":"$H$23","v":0}]
["SEE8","SEE8",{"$f":"C$26","v":"…"},null,null,null,null,{"$f":"$H$23","v":0}]
["SEE9","SEE9",{"$f":"C$27","v":"…"},null,null,null,null,{"$f":"$H$23","v":0}]
["SEE10","SEE10",{"$f":"C$28","v":"…"},null,null,null,null,{"$f":"$H$28","v":0}]
[]
[null,null,"Pfarrperson"]
[{"$f":"CONCATENATE($F$58,B59)","v":"SEE0"},{"$f":"B45","v":"SEE0"},{"$f":"$C$17","v":"Arbeitsbereich Seelsorge"},null,null,{"$f":"$F$17","v":"Anzahl"},{"$f":"$G$17","v":"Bemerkung (Hauptverantwortung, Planung, konzeptioneller Ansatz)"},{"$f":"$H$17","v":"Erklärungen zu den Berechnung / Kalkulations-Faktoren "}]
["0",0,null,null,null,{"$f":"$F$18","v":0},null,{"$f":"$H$18","v":0}]
["SEE1","SEE1",{"$f":"C$19","v":"Seelsorge in der Gemeinde \n(Anzahl zugewandte Mitglieder)"},null,null,null,null,{"$f":"$H$19","v":"Eingabe: Anzahl zugewandter Gemeindemitglieder, \nFaktor: durchschn. 0.01 AT pro Mitglied pro Jahr  bzw. 0.5AT pro Woche \nin einem 100% Pensum "}]
["SEE2","SEE2",{"$f":"C$20","v":"Betreuung von Gruppen \n(AZ Gruppen)"},null,null,null,null,{"$f":"$H$20","v":"Eingabe: Anzahl Gruppen, Faktor: 1 AT pro Gruppe pro Jahr"}]
["SEE3","SEE3",{"$f":"C$21","v":"Besuche an Institutionen "},null,null,null,null,{"$f":"$H$21","v":"Eingabe: Anzahl Stunden für Besuche por Jahr "}]
["SEE4","SEE4",{"$f":"C$22","v":"Notfallseelsorge"},null,null,null,null,{"$f":"$H$22","v":0}]
["SEE5","SEE5",{"$f":"C$23","v":"Besondere und übrige Aufgaben"},null,null,null,null,{"$f":"$H$23","v":0}]
["SEE6","SEE6",{"$f":"C$24","v":"…"},null,null,null,null,{"$f":"$H$23","v":0}]
["SEE7","SEE7",{"$f":"C$25","v":"…"},null,null,null,null,{"$f":"$H$23","v":0}]
["SEE8","SEE8",{"$f":"C$26","v":"…"},null,null,null,null,{"$f":"$H$23","v":0}]
["SEE9","SEE9",{"$f":"C$27","v":"…"},null,null,null,null,{"$f":"$H$28","v":0}]
["SEE10","SEE10",{"$f":"C$28","v":"…"},null,null,null,null,{"$f":"$H$28","v":0}]
[]
[null,null,"Pfarrperson"]
[{"$f":"CONCATENATE($F$72,B73)","v":"SEE0"},{"$f":"B59","v":"SEE0"},{"$f":"$C$17","v":"Arbeitsbereich Seelsorge"},null,null,{"$f":"$F$17","v":"Anzahl"},{"$f":"$G$17","v":"Bemerkung (Hauptverantwortung, Planung, konzeptioneller Ansatz)"},{"$f":"$H$17","v":"Erklärungen zu den Berechnung / Kalkulations-Faktoren "}]
["0",0,null,null,null,{"$f":"$F$18","v":0},null,{"$f":"$H$18","v":0}]
["SEE1","SEE1",{"$f":"C$19","v":"Seelsorge in der Gemeinde \n(Anzahl zugewandte Mitglieder)"},null,null,null,null,{"$f":"$H$19","v":"Eingabe: Anzahl zugewandter Gemeindemitglieder, \nFaktor: durchschn. 0.01 AT pro Mitglied pro Jahr  bzw. 0.5AT pro Woche \nin einem 100% Pensum "}]
["SEE2","SEE2",{"$f":"C$20","v":"Betreuung von Gruppen \n(AZ Gruppen)"},null,null,null,null,{"$f":"$H$20","v":"Eingabe: Anzahl Gruppen, Faktor: 1 AT pro Gruppe pro Jahr"}]
["SEE3","SEE3",{"$f":"C$21","v":"Besuche an Institutionen "},null,null,null,null,{"$f":"$H$21","v":"Eingabe: Anzahl Stunden für Besuche por Jahr "}]
["SEE4","SEE4",{"$f":"C$22","v":"Notfallseelsorge"},null,null,null,null,{"$f":"$H$22","v":0}]
["SEE5","SEE5",{"$f":"C$23","v":"Besondere und übrige Aufgaben"},null,null,null,null,{"$f":"$H$23","v":0}]
["SEE6","SEE6",{"$f":"C$24","v":"…"},null,null,null,null,{"$f":"$H$23","v":0}]
["SEE7","SEE7",{"$f":"C$25","v":"…"},null,null,null,null,{"$f":"$H$23","v":0}]
["SEE8","SEE8",{"$f":"C$26","v":"…"},null,null,null,null,{"$f":"$H$23","v":0}]
["SEE9","SEE9",{"$f":"C$27","v":"…"},null,null,null,null,{"$f":"$H$23","v":0}]
["SEE10",{"$f":"B70","v":"SEE10"},{"$f":"C$28","v":"…"},null,null,null,null,{"$f":"$H$28","v":0}]
[]
[null,null,"Pfarrperson"]
[{"$f":"CONCATENATE($F$86,B87)","v":"SEE0"},{"$f":"B73","v":"SEE0"},{"$f":"$C$17","v":"Arbeitsbereich Seelsorge"},null,null,{"$f":"$F$17","v":"Anzahl"},{"$f":"$G$17","v":"Bemerkung (Hauptverantwortung, Planung, konzeptioneller Ansatz)"},{"$f":"$H$17","v":"Erklärungen zu den Berechnung / Kalkulations-Faktoren "}]
["0",0,null,null,null,{"$f":"$F$18","v":0},null,{"$f":"$H$18","v":0}]
["SEE1","SEE1",{"$f":"C$19","v":"Seelsorge in der Gemeinde \n(Anzahl zugewandte Mitglieder)"},null,null,null,null,{"$f":"$H$19","v":"Eingabe: Anzahl zugewandter Gemeindemitglieder, \nFaktor: durchschn. 0.01 AT pro Mitglied pro Jahr  bzw. 0.5AT pro Woche \nin einem 100% Pensum "}]
["SEE2","SEE2",{"$f":"C$20","v":"Betreuung von Gruppen \n(AZ Gruppen)"},null,null,null,null,{"$f":"$H$20","v":"Eingabe: Anzahl Gruppen, Faktor: 1 AT pro Gruppe pro Jahr"}]
["SEE3","SEE3",{"$f":"C$21","v":"Besuche an Institutionen "},null,null,null,null,{"$f":"$H$21","v":"Eingabe: Anzahl Stunden für Besuche por Jahr "}]
["SEE4","SEE4",{"$f":"C$22","v":"Notfallseelsorge"},null,null,null,null,{"$f":"$H$22","v":0}]
["SEE5","SEE5",{"$f":"C$23","v":"Besondere und übrige Aufgaben"},null,null,null,null,{"$f":"$H$23","v":0}]
["SEE6","SEE6",{"$f":"C$24","v":"…"},null,null,null,null,{"$f":"$H$23","v":0}]
["SEE7","SEE7",{"$f":"C$25","v":"…"},null,null,null,null,{"$f":"$H$23","v":0}]
["SEE8","SEE8",{"$f":"C$26","v":"…"},null,null,null,null,{"$f":"$H$23","v":0}]
["SEE9","SEE9",{"$f":"C$27","v":"…"},null,null,null,null,{"$f":"$H$23","v":0}]
["SEE10","SEE10",{"$f":"C$28","v":"…"},null,null,null,null,{"$f":"$H$28","v":0}]
[]
[null,null,"Pfarrperson"]
[{"$f":"CONCATENATE($F$100,B101)","v":"SEE0"},{"$f":"B87","v":"SEE0"},{"$f":"$C$17","v":"Arbeitsbereich Seelsorge"},null,null,{"$f":"$F$17","v":"Anzahl"},{"$f":"$G$17","v":"Bemerkung (Hauptverantwortung, Planung, konzeptioneller Ansatz)"},{"$f":"$H$17","v":"Erklärungen zu den Berechnung / Kalkulations-Faktoren "}]
["0",0,null,null,null,{"$f":"$F$18","v":0},null,{"$f":"$H$18","v":0}]
["SEE1","SEE1",{"$f":"C$19","v":"Seelsorge in der Gemeinde \n(Anzahl zugewandte Mitglieder)"},null,null,null,null,{"$f":"$H$19","v":"Eingabe: Anzahl zugewandter Gemeindemitglieder, \nFaktor: durchschn. 0.01 AT pro Mitglied pro Jahr  bzw. 0.5AT pro Woche \nin einem 100% Pensum "}]
["SEE2","SEE2",{"$f":"C$20","v":"Betreuung von Gruppen \n(AZ Gruppen)"},null,null,null,null,{"$f":"$H$20","v":"Eingabe: Anzahl Gruppen, Faktor: 1 AT pro Gruppe pro Jahr"}]
["SEE3","SEE3",{"$f":"C$21","v":"Besuche an Institutionen "},null,null,null,null,{"$f":"$H$21","v":"Eingabe: Anzahl Stunden für Besuche por Jahr "}]
["SEE4","SEE4",{"$f":"C$22","v":"Notfallseelsorge"},null,null,null,null,{"$f":"$H$22","v":0}]
["SEE5","SEE5",{"$f":"C$23","v":"Besondere und übrige Aufgaben"},null,null,null,null,{"$f":"$H$23","v":0}]
["SEE6","SEE6",{"$f":"C$24","v":"…"},null,null,null,null,{"$f":"$H$23","v":0}]
["SEE7","SEE7",{"$f":"C$25","v":"…"},null,null,null,null,{"$f":"$H$23","v":0}]
["SEE8","SEE8",{"$f":"C$26","v":"…"},null,null,null,null,{"$f":"$H$23","v":0}]
["SEE9","SEE9",{"$f":"C$27","v":"…"},null,null,null,null,{"$f":"$H$23","v":0}]
["SEE10","SEE10",{"$f":"C$28","v":"…"},null,null,null,null,{"$f":"$H$28","v":0}]
[]
[null,null,"Pfarrperson"]
[{"$f":"CONCATENATE($F$114,B115)","v":"SEE0"},{"$f":"B101","v":"SEE0"},{"$f":"$C$17","v":"Arbeitsbereich Seelsorge"},null,null,{"$f":"$F$17","v":"Anzahl"},{"$f":"$G$17","v":"Bemerkung (Hauptverantwortung, Planung, konzeptioneller Ansatz)"},{"$f":"$H$17","v":"Erklärungen zu den Berechnung / Kalkulations-Faktoren "}]
["0",0,null,null,null,{"$f":"$F$18","v":0},null,{"$f":"$H$18","v":0}]
["SEE1","SEE1",{"$f":"C$19","v":"Seelsorge in der Gemeinde \n(Anzahl zugewandte Mitglieder)"},null,null,null,null,{"$f":"$H$19","v":"Eingabe: Anzahl zugewandter Gemeindemitglieder, \nFaktor: durchschn. 0.01 AT pro Mitglied pro Jahr  bzw. 0.5AT pro Woche \nin einem 100% Pensum "}]
["SEE2","SEE2",{"$f":"C$20","v":"Betreuung von Gruppen \n(AZ Gruppen)"},null,null,null,null,{"$f":"$H$20","v":"Eingabe: Anzahl Gruppen, Faktor: 1 AT pro Gruppe pro Jahr"}]
["SEE3","SEE3",{"$f":"C$21","v":"Besuche an Institutionen "},null,null,null,null,{"$f":"$H$21","v":"Eingabe: Anzahl Stunden für Besuche por Jahr "}]
["SEE4","SEE4",{"$f":"C$22","v":"Notfallseelsorge"},null,null,null,null,{"$f":"$H$22","v":0}]
["SEE5","SEE5",{"$f":"C$23","v":"Besondere und übrige Aufgaben"},null,null,null,null,{"$f":"$H$23","v":0}]
["SEE6","SEE6",{"$f":"C$24","v":"…"},null,null,null,null,{"$f":"$H$23","v":0}]
["SEE7","SEE7",{"$f":"C$25","v":"…"},null,null,null,null,{"$f":"$H$23","v":0}]
["SEE8","SEE8",{"$f":"C$26","v":"…"},null,null,null,null,{"$f":"$H$23","v":0}]
["SEE9","SEE9",{"$f":"C$27","v":"…"},null,null,null,null,{"$f":"$H$23","v":0}]
["SEE10","SEE10",{"$f":"C$28","v":"…"},null,null,null,null,{"$f":"$H$28","v":0}]
[]
[null,null,"Pfarrperson"]
[{"$f":"CONCATENATE($F$128,B129)","v":"SEE0"},{"$f":"B115","v":"SEE0"},{"$f":"$C$17","v":"Arbeitsbereich Seelsorge"},null,null,{"$f":"$F$17","v":"Anzahl"},{"$f":"$G$17","v":"Bemerkung (Hauptverantwortung, Planung, konzeptioneller Ansatz)"},{"$f":"$H$17","v":"Erklärungen zu den Berechnung / Kalkulations-Faktoren "}]
["0",0,null,null,null,{"$f":"$F$18","v":0},null,{"$f":"$H$18","v":0}]
["SEE1","SEE1",{"$f":"C$19","v":"Seelsorge in der Gemeinde \n(Anzahl zugewandte Mitglieder)"},null,null,null,null,{"$f":"$H$19","v":"Eingabe: Anzahl zugewandter Gemeindemitglieder, \nFaktor: durchschn. 0.01 AT pro Mitglied pro Jahr  bzw. 0.5AT pro Woche \nin einem 100% Pensum "}]
["SEE2","SEE2",{"$f":"C$20","v":"Betreuung von Gruppen \n(AZ Gruppen)"},null,null,null,null,{"$f":"$H$20","v":"Eingabe: Anzahl Gruppen, Faktor: 1 AT pro Gruppe pro Jahr"}]
["SEE3","SEE3",{"$f":"C$21","v":"Besuche an Institutionen "},null,null,null,null,{"$f":"$H$21","v":"Eingabe: Anzahl Stunden für Besuche por Jahr "}]
["SEE4","SEE4",{"$f":"C$22","v":"Notfallseelsorge"},null,null,null,null,{"$f":"$H$22","v":0}]
["SEE5","SEE5",{"$f":"C$23","v":"Besondere und übrige Aufgaben"},null,null,null,null,{"$f":"$H$23","v":0}]
["SEE6","SEE6",{"$f":"C$24","v":"…"},null,null,null,null,{"$f":"$H$23","v":0}]
["SEE7","SEE7",{"$f":"C$25","v":"…"},null,null,null,null,{"$f":"$H$23","v":0}]
["SEE8","SEE8",{"$f":"C$26","v":"…"},null,null,null,null,{"$f":"$H$23","v":0}]
["SEE9","SEE9",{"$f":"C$27","v":"…"},null,null,null,null,{"$f":"$H$23","v":0}]
["SEE10","SEE10",{"$f":"C$28","v":"…"},null,null,null,null,{"$f":"$H$28","v":0}]
[]
[null,null,"Pfarrperson"]
[{"$f":"CONCATENATE($F$142,B143)","v":"SEE0"},{"$f":"B129","v":"SEE0"},{"$f":"$C$17","v":"Arbeitsbereich Seelsorge"},null,null,{"$f":"$F$17","v":"Anzahl"},{"$f":"$G$17","v":"Bemerkung (Hauptverantwortung, Planung, konzeptioneller Ansatz)"},{"$f":"$H$17","v":"Erklärungen zu den Berechnung / Kalkulations-Faktoren "}]
["0",0,null,null,null,{"$f":"$F$18","v":0},null,{"$f":"$H$18","v":0}]
["SEE1","SEE1",{"$f":"C$19","v":"Seelsorge in der Gemeinde \n(Anzahl zugewandte Mitglieder)"},null,null,null,null,{"$f":"$H$19","v":"Eingabe: Anzahl zugewandter Gemeindemitglieder, \nFaktor: durchschn. 0.01 AT pro Mitglied pro Jahr  bzw. 0.5AT pro Woche \nin einem 100% Pensum "}]
["SEE2","SEE2",{"$f":"C$20","v":"Betreuung von Gruppen \n(AZ Gruppen)"},null,null,null,null,{"$f":"$H$20","v":"Eingabe: Anzahl Gruppen, Faktor: 1 AT pro Gruppe pro Jahr"}]
["SEE3","SEE3",{"$f":"C$21","v":"Besuche an Institutionen "},null,null,null,null,{"$f":"$H$21","v":"Eingabe: Anzahl Stunden für Besuche por Jahr "}]
["SEE4","SEE4",{"$f":"C$22","v":"Notfallseelsorge"},null,null,null,null,{"$f":"$H$22","v":0}]
["SEE5","SEE5",{"$f":"C$23","v":"Besondere und übrige Aufgaben"},null,null,null,null,{"$f":"$H$23","v":0}]
["SEE6","SEE6",{"$f":"C$24","v":"…"},null,null,null,null,{"$f":"$H$23","v":0}]
["SEE7","SEE7",{"$f":"C$25","v":"…"},null,null,null,null,{"$f":"$H$23","v":0}]
["SEE8","SEE8",{"$f":"C$26","v":"…"},null,null,null,null,{"$f":"$H$23","v":0}]
["SEE9","SEE9",{"$f":"C$27","v":"…"},null,null,null,null,{"$f":"$H$23","v":0}]
["SEE10","SEE10",{"$f":"C$28","v":"…"},null,null,null,null,{"$f":"$H$28","v":0}]
[]
[]
[null,null,"Diakonie"]
[null,null,"Pfarrpersonen",null,null,{"$f":"Pfarrpersonen!A8","v":"Gesamtpensum"}]
[{"$f":"CONCATENATE($F$158,B159)","v":"GesamtpensumD0"},"D0","Arbeitsbereich Diakonie",null,null,"Anzahl","Bemerkung (Hauptverantwortung, Planung, konzeptioneller Ansatz)","Erklärungen zu den Berechnung / Kalkulations-Faktoren "]
[]
[{"$f":"CONCATENATE($F$158,B161)","v":"GesamtpensumD1"},"D1","Veranstaltungen (AZ Stunden der Anlässe-> +AZ Std. * AZ Anlässe)",null,null,null,null,"Eingabe: Anzahl Stunden, Faktor: 1,5h pro Anlassstunde"]
["GesamtpensumD2","D2","Projekte (va Bene, letzte Hilfe etc.)",null,null,null,null,"Eingabe: Anzahl Stunden, Faktor: 1h"]
["GesamtpensumD3","D3","Gruppen/Freiwillige",null,null,null,null,"Eingabe: Anzahl Stunden, Faktor: 1h"]
["GesamtpensumD4","D4","Besondere und übrige Aufgaben"]
["GesamtpensumD5","D5","…"]
["GesamtpensumD6","D6","…"]
["GesamtpensumD7","D7","…"]
["GesamtpensumD8","D8","…"]
["GesamtpensumD9","D9","…"]
[]
[null,null,{"$f":"Pfarrpersonen!A8","v":"Gesamtpensum"},null,null,{"$f":"Pfarrpersonen!A9","v":"Delta"}]
[{"$f":"CONCATENATE($F$171,B172)","v":"DeltaD0"},{"$f":"B159","v":"D0"},{"$f":"$C$159","v":"Arbeitsbereich Diakonie"},null,null,{"$f":"$F$159","v":"Anzahl"},{"$f":"$G$159","v":"Bemerkung (Hauptverantwortung, Planung, konzeptioneller Ansatz)"},{"$f":"$H$159","v":"Erklärungen zu den Berechnung / Kalkulations-Faktoren "}]
[null,0,null,null,null,{"$f":"$F$18","v":0},null,{"$f":"$H$160","v":0}]
[{"$f":"CONCATENATE($F$171,B174)","v":"DeltaD1"},"D1",{"$f":"C$161","v":"Veranstaltungen (AZ Stunden der Anlässe-> +AZ Std. * AZ Anlässe)"},null,null,null,null,{"$f":"$H$161","v":"Eingabe: Anzahl Stunden, Faktor: 1,5h pro Anlassstunde"}]
["DeltaD2","D2",{"$f":"C$162","v":"Projekte (va Bene, letzte Hilfe etc.)"},null,null,null,null,{"$f":"$H$162","v":"Eingabe: Anzahl Stunden, Faktor: 1h"}]
["DeltaD3","D3",{"$f":"C$163","v":"Gruppen/Freiwillige"},null,null,null,null,{"$f":"$H$163","v":"Eingabe: Anzahl Stunden, Faktor: 1h"}]
["DeltaD4","D4",{"$f":"C$164","v":"Besondere und übrige Aufgaben"},null,null,null,null,{"$f":"$H$164","v":0}]
["DeltaD5","D5",{"$f":"C$165","v":"…"},null,null,null,null,{"$f":"$H$167","v":0}]
["DeltaD6","D6",{"$f":"C$166","v":"…"},null,null,null,null,{"$f":"$H$168","v":0}]
["DeltaD7","D7",{"$f":"C$167","v":"…"},null,null,null,null,{"$f":"$H$167","v":0}]
["DeltaD8","D8",{"$f":"C$168","v":"…"},null,null,null,null,{"$f":"$H$168","v":0}]
["DeltaD9","D9",{"$f":"C$169","v":"…"},null,null,null,null,{"$f":"$H$169","v":0}]
[]
[null,null,"Pfarrperson"]
[{"$f":"CONCATENATE($F$184,B185)","v":"D0"},{"$f":"B172","v":"D0"},{"$f":"$C$159","v":"Arbeitsbereich Diakonie"},null,null,{"$f":"$F$159","v":"Anzahl"},{"$f":"$G$159","v":"Bemerkung (Hauptverantwortung, Planung, konzeptioneller Ansatz)"},{"$f":"$H$159","v":"Erklärungen zu den Berechnung / Kalkulations-Faktoren "}]
["0",0,null,null,null,{"$f":"$F$18","v":0},null,{"$f":"$H$160","v":0}]
["D1","D1",{"$f":"C$161","v":"Veranstaltungen (AZ Stunden der Anlässe-> +AZ Std. * AZ Anlässe)"},null,null,null,null,{"$f":"$H$161","v":"Eingabe: Anzahl Stunden, Faktor: 1,5h pro Anlassstunde"}]
["D2","D2",{"$f":"C$162","v":"Projekte (va Bene, letzte Hilfe etc.)"},null,null,null,null,{"$f":"$H$162","v":"Eingabe: Anzahl Stunden, Faktor: 1h"}]
["D3","D3",{"$f":"C$163","v":"Gruppen/Freiwillige"},null,null,null,null,{"$f":"$H$163","v":"Eingabe: Anzahl Stunden, Faktor: 1h"}]
["D4","D4",{"$f":"C$164","v":"Besondere und übrige Aufgaben"},null,null,null,null,{"$f":"$H$164","v":0}]
["D5","D5",{"$f":"C$165","v":"…"},null,null,null,null,{"$f":"$H$167","v":0}]
["D6","D6",{"$f":"C$166","v":"…"},null,null,null,null,{"$f":"$H$168","v":0}]
["D7","D7",{"$f":"C$167","v":"…"},null,null,null,null,{"$f":"$H$167","v":0}]
["D8","D8",{"$f":"C$168","v":"…"},null,null,null,null,{"$f":"$H$168","v":0}]
["D9","D9",{"$f":"C$169","v":"…"},null,null,null,null,{"$f":"$H$169","v":0}]
[]
[null,null,"Pfarrperson"]
[{"$f":"CONCATENATE($F$197,B198)","v":"D0"},{"$f":"B185","v":"D0"},{"$f":"$C$159","v":"Arbeitsbereich Diakonie"},null,null,{"$f":"$F$159","v":"Anzahl"},{"$f":"$G$159","v":"Bemerkung (Hauptverantwortung, Planung, konzeptioneller Ansatz)"},{"$f":"$H$159","v":"Erklärungen zu den Berechnung / Kalkulations-Faktoren "}]
["0",0,null,null,null,{"$f":"$F$18","v":0},null,{"$f":"$H$160","v":0}]
["D1","D1",{"$f":"C$161","v":"Veranstaltungen (AZ Stunden der Anlässe-> +AZ Std. * AZ Anlässe)"},null,null,null,null,{"$f":"$H$161","v":"Eingabe: Anzahl Stunden, Faktor: 1,5h pro Anlassstunde"}]
["D2","D2",{"$f":"C$162","v":"Projekte (va Bene, letzte Hilfe etc.)"},null,null,null,null,{"$f":"$H$162","v":"Eingabe: Anzahl Stunden, Faktor: 1h"}]
["D3","D3",{"$f":"C$163","v":"Gruppen/Freiwillige"},null,null,null,null,{"$f":"$H$163","v":"Eingabe: Anzahl Stunden, Faktor: 1h"}]
["D4","D4",{"$f":"C$164","v":"Besondere und übrige Aufgaben"},null,null,null,null,{"$f":"$H$164","v":0}]
["D5","D5",{"$f":"C$165","v":"…"},null,null,null,null,{"$f":"$H$167","v":0}]
["D6","D6",{"$f":"C$166","v":"…"},null,null,null,null,{"$f":"$H$168","v":0}]
["D7","D7",{"$f":"C$167","v":"…"},null,null,null,null,{"$f":"$H$167","v":0}]
["D8","D8",{"$f":"C$168","v":"…"},null,null,null,null,{"$f":"$H$168","v":0}]
["D9","D9",{"$f":"C$169","v":"…"},null,null,null,null,{"$f":"$H$169","v":0}]
[]
[null,null,"Pfarrperson"]
[{"$f":"CONCATENATE($F$210,B211)","v":"D0"},{"$f":"B198","v":"D0"},{"$f":"$C$159","v":"Arbeitsbereich Diakonie"},null,null,{"$f":"$F$159","v":"Anzahl"},{"$f":"$G$159","v":"Bemerkung (Hauptverantwortung, Planung, konzeptioneller Ansatz)"},{"$f":"$H$159","v":"Erklärungen zu den Berechnung / Kalkulations-Faktoren "}]
["0",0,null,null,null,{"$f":"$F$18","v":0},null,{"$f":"$H$160","v":0}]
["D1","D1",{"$f":"C$161","v":"Veranstaltungen (AZ Stunden der Anlässe-> +AZ Std. * AZ Anlässe)"},null,null,null,null,{"$f":"$H$161","v":"Eingabe: Anzahl Stunden, Faktor: 1,5h pro Anlassstunde"}]
["D2","D2",{"$f":"C$162","v":"Projekte (va Bene, letzte Hilfe etc.)"},null,null,null,null,{"$f":"$H$162","v":"Eingabe: Anzahl Stunden, Faktor: 1h"}]
["D3","D3",{"$f":"C$163","v":"Gruppen/Freiwillige"},null,null,null,null,{"$f":"$H$163","v":"Eingabe: Anzahl Stunden, Faktor: 1h"}]
["D4","D4",{"$f":"C$164","v":"Besondere und übrige Aufgaben"},null,null,null,null,{"$f":"$H$164","v":0}]
["D5","D5",{"$f":"C$165","v":"…"},null,null,null,null,{"$f":"$H$167","v":0}]
["D6","D6",{"$f":"C$166","v":"…"},null,null,null,null,{"$f":"$H$168","v":0}]
["D7","D7",{"$f":"C$167","v":"…"},null,null,null,null,{"$f":"$H$167","v":0}]
["D8","D8",{"$f":"C$168","v":"…"},null,null,null,null,{"$f":"$H$168","v":0}]
["D9","D9",{"$f":"C$169","v":"…"},null,null,null,null,{"$f":"$H$169","v":0}]
[]
[null,null,"Pfarrperson"]
[{"$f":"CONCATENATE($F$223,B224)","v":"D0"},{"$f":"B211","v":"D0"},{"$f":"$C$159","v":"Arbeitsbereich Diakonie"},null,null,{"$f":"$F$159","v":"Anzahl"},{"$f":"$G$159","v":"Bemerkung (Hauptverantwortung, Planung, konzeptioneller Ansatz)"},{"$f":"$H$159","v":"Erklärungen zu den Berechnung / Kalkulations-Faktoren "}]
["0",0,null,null,null,{"$f":"$F$18","v":0},null,{"$f":"$H$160","v":0}]
["D1","D1",{"$f":"C$161","v":"Veranstaltungen (AZ Stunden der Anlässe-> +AZ Std. * AZ Anlässe)"},null,null,null,null,{"$f":"$H$161","v":"Eingabe: Anzahl Stunden, Faktor: 1,5h pro Anlassstunde"}]
["D2","D2",{"$f":"C$162","v":"Projekte (va Bene, letzte Hilfe etc.)"},null,null,null,null,{"$f":"$H$162","v":"Eingabe: Anzahl Stunden, Faktor: 1h"}]
["D3","D3",{"$f":"C$163","v":"Gruppen/Freiwillige"},null,null,null,null,{"$f":"$H$163","v":"Eingabe: Anzahl Stunden, Faktor: 1h"}]
["D4","D4",{"$f":"C$164","v":"Besondere und übrige Aufgaben"},null,null,null,null,{"$f":"$H$164","v":0}]
["D5","D5",{"$f":"C$165","v":"…"},null,null,null,null,{"$f":"$H$167","v":0}]
["D6","D6",{"$f":"C$166","v":"…"},null,null,null,null,{"$f":"$H$168","v":0}]
["D7","D7",{"$f":"C$167","v":"…"},null,null,null,null,{"$f":"$H$167","v":0}]
["D8","D8",{"$f":"C$168","v":"…"},null,null,null,null,{"$f":"$H$168","v":0}]
["D9","D9",{"$f":"C$169","v":"…"},null,null,null,null,{"$f":"$H$169","v":0}]
[]
[null,null,"Pfarrperson"]
[{"$f":"CONCATENATE($F$236,B237)","v":"D0"},{"$f":"B224","v":"D0"},{"$f":"$C$159","v":"Arbeitsbereich Diakonie"},null,null,{"$f":"$F$159","v":"Anzahl"},{"$f":"$G$159","v":"Bemerkung (Hauptverantwortung, Planung, konzeptioneller Ansatz)"},{"$f":"$H$159","v":"Erklärungen zu den Berechnung / Kalkulations-Faktoren "}]
["0",0,null,null,null,{"$f":"$F$18","v":0},null,{"$f":"$H$160","v":0}]
["D1","D1",{"$f":"C$161","v":"Veranstaltungen (AZ Stunden der Anlässe-> +AZ Std. * AZ Anlässe)"},null,null,null,null,{"$f":"$H$161","v":"Eingabe: Anzahl Stunden, Faktor: 1,5h pro Anlassstunde"}]
["D2","D2",{"$f":"C$162","v":"Projekte (va Bene, letzte Hilfe etc.)"},null,null,null,null,{"$f":"$H$162","v":"Eingabe: Anzahl Stunden, Faktor: 1h"}]
["D3","D3",{"$f":"C$163","v":"Gruppen/Freiwillige"},null,null,null,null,{"$f":"$H$163","v":"Eingabe: Anzahl Stunden, Faktor: 1h"}]
["D4","D4",{"$f":"C$164","v":"Besondere und übrige Aufgaben"},null,null,null,null,{"$f":"$H$164","v":0}]
["D5","D5",{"$f":"C$165","v":"…"},null,null,null,null,{"$f":"$H$167","v":0}]
["D6","D6",{"$f":"C$166","v":"…"},null,null,null,null,{"$f":"$H$168","v":0}]
["D7","D7",{"$f":"C$167","v":"…"},null,null,null,null,{"$f":"$H$167","v":0}]
["D8","D8",{"$f":"C$168","v":"…"},null,null,null,null,{"$f":"$H$168","v":0}]
["D9","D9",{"$f":"C$169","v":"…"},null,null,null,null,{"$f":"$H$169","v":0}]
[]
[null,null,"Pfarrperson"]
[{"$f":"CONCATENATE($F$249,B250)","v":"D0"},{"$f":"B237","v":"D0"},{"$f":"$C$159","v":"Arbeitsbereich Diakonie"},null,null,{"$f":"$F$159","v":"Anzahl"},{"$f":"$G$159","v":"Bemerkung (Hauptverantwortung, Planung, konzeptioneller Ansatz)"},{"$f":"$H$159","v":"Erklärungen zu den Berechnung / Kalkulations-Faktoren "}]
["0",0,null,null,null,{"$f":"$F$18","v":0},null,{"$f":"$H$160","v":0}]
["D1","D1",{"$f":"C$161","v":"Veranstaltungen (AZ Stunden der Anlässe-> +AZ Std. * AZ Anlässe)"},null,null,null,null,{"$f":"$H$161","v":"Eingabe: Anzahl Stunden, Faktor: 1,5h pro Anlassstunde"}]
["D2","D2",{"$f":"C$162","v":"Projekte (va Bene, letzte Hilfe etc.)"},null,null,null,null,{"$f":"$H$162","v":"Eingabe: Anzahl Stunden, Faktor: 1h"}]
["D3","D3",{"$f":"C$163","v":"Gruppen/Freiwillige"},null,null,null,null,{"$f":"$H$163","v":"Eingabe: Anzahl Stunden, Faktor: 1h"}]
["D4","D4",{"$f":"C$164","v":"Besondere und übrige Aufgaben"},null,null,null,null,{"$f":"$H$164","v":0}]
["D5","D5",{"$f":"C$165","v":"…"},null,null,null,null,{"$f":"$H$167","v":0}]
["D6","D6",{"$f":"C$166","v":"…"},null,null,null,null,{"$f":"$H$168","v":0}]
["D7","D7",{"$f":"C$167","v":"…"},null,null,null,null,{"$f":"$H$167","v":0}]
["D8","D8",{"$f":"C$168","v":"…"},null,null,null,null,{"$f":"$H$168","v":0}]
["D9","D9",{"$f":"C$169","v":"…"},null,null,null,null,{"$f":"$H$169","v":0}]
[]
[null,null,"Pfarrperson"]
[{"$f":"CONCATENATE($F$262,B263)","v":"D0"},{"$f":"B250","v":"D0"},{"$f":"$C$159","v":"Arbeitsbereich Diakonie"},null,null,{"$f":"$F$159","v":"Anzahl"},{"$f":"$G$159","v":"Bemerkung (Hauptverantwortung, Planung, konzeptioneller Ansatz)"},{"$f":"$H$159","v":"Erklärungen zu den Berechnung / Kalkulations-Faktoren "}]
["0",0,null,null,null,{"$f":"$F$18","v":0},null,{"$f":"$H$160","v":0}]
["D1","D1",{"$f":"C$161","v":"Veranstaltungen (AZ Stunden der Anlässe-> +AZ Std. * AZ Anlässe)"},null,null,null,null,{"$f":"$H$161","v":"Eingabe: Anzahl Stunden, Faktor: 1,5h pro Anlassstunde"}]
["D2","D2",{"$f":"C$162","v":"Projekte (va Bene, letzte Hilfe etc.)"},null,null,null,null,{"$f":"$H$162","v":"Eingabe: Anzahl Stunden, Faktor: 1h"}]
["D3","D3",{"$f":"C$163","v":"Gruppen/Freiwillige"},null,null,null,null,{"$f":"$H$163","v":"Eingabe: Anzahl Stunden, Faktor: 1h"}]
["D4","D4",{"$f":"C$164","v":"Besondere und übrige Aufgaben"},null,null,null,null,{"$f":"$H$164","v":0}]
["D5","D5",{"$f":"C$165","v":"…"},null,null,null,null,{"$f":"$H$167","v":0}]
["D6","D6",{"$f":"C$166","v":"…"},null,null,null,null,{"$f":"$H$168","v":0}]
["D7","D7",{"$f":"C$167","v":"…"},null,null,null,null,{"$f":"$H$167","v":0}]
["D8","D8",{"$f":"C$168","v":"…"},null,null,null,null,{"$f":"$H$168","v":0}]
["D9","D9",{"$f":"C$169","v":"…"},null,null,null,null,{"$f":"$H$169","v":0}]
[]
[null,null,"Pfarrperson"]
[{"$f":"CONCATENATE($F$275,B276)","v":"D0"},{"$f":"B263","v":"D0"},{"$f":"$C$159","v":"Arbeitsbereich Diakonie"},null,null,{"$f":"$F$159","v":"Anzahl"},{"$f":"$G$159","v":"Bemerkung (Hauptverantwortung, Planung, konzeptioneller Ansatz)"},{"$f":"$H$159","v":"Erklärungen zu den Berechnung / Kalkulations-Faktoren "}]
["0",0,null,null,null,{"$f":"$F$18","v":0},null,{"$f":"$H$160","v":0}]
["D1","D1",{"$f":"C$161","v":"Veranstaltungen (AZ Stunden der Anlässe-> +AZ Std. * AZ Anlässe)"},null,null,null,null,{"$f":"$H$161","v":"Eingabe: Anzahl Stunden, Faktor: 1,5h pro Anlassstunde"}]
["D2","D2",{"$f":"C$162","v":"Projekte (va Bene, letzte Hilfe etc.)"},null,null,null,null,{"$f":"$H$162","v":"Eingabe: Anzahl Stunden, Faktor: 1h"}]
["D3","D3",{"$f":"C$163","v":"Gruppen/Freiwillige"},null,null,null,null,{"$f":"$H$163","v":"Eingabe: Anzahl Stunden, Faktor: 1h"}]
["D4","D4",{"$f":"C$164","v":"Besondere und übrige Aufgaben"},null,null,null,null,{"$f":"$H$164","v":0}]
["D5","D5",{"$f":"C$165","v":"…"},null,null,null,null,{"$f":"$H$167","v":0}]
["D6","D6",{"$f":"C$166","v":"…"},null,null,null,null,{"$f":"$H$168","v":0}]
["D7","D7",{"$f":"C$167","v":"…"},null,null,null,null,{"$f":"$H$167","v":0}]
["D8","D8",{"$f":"C$168","v":"…"},null,null,null,null,{"$f":"$H$168","v":0}]
["D9","D9",{"$f":"C$169","v":"…"},null,null,null,null,{"$f":"$H$169","v":0}]
[]
[null,null,"Seniorenarbeit"]
[null,null,"Pfarrpersonen",null,null,{"$f":"Pfarrpersonen!A8","v":"Gesamtpensum"}]
[{"$f":"CONCATENATE($F$289,B290)","v":"GesamtpensumSEN0"},"SEN0","Arbeitsbereich Seniorenarbeit",null,null,"Anzahl ","Bemerkung (Hauptverantwortung, Planung, konzeptioneller Ansatz)","Erklärungen zu den Berechnung / Kalkulations-Faktoren "]
[]
[{"$f":"CONCATENATE($F$289,B292)","v":"GesamtpensumSEN1"},"SEN1","Veranstaltungen (Seniorennachmittage, Ausflüge, Pilgern, AZ Stunden der Anlässe)",null,null,null,null,"Eingabe: Anzahl Stunden, Faktor: 1,5h pro Anlassstunde"]
["GesamtpensumSEN2","SEN2","Seniorenreisen (Tagesausflüge, Tagesreisen, AZ Reisetage)",null,null,null,null,"Eingabe: Anzahl Tagesausflüge pro Jahr, Faktor: 1.5 AT por Anlasstag"]
["GesamtpensumSEN3","SEN3","Seniorenferien (Mehrtägige Reisen, AZ Reisetage)",null,null,null,null,"Eingabe: Anzahl  Ferientage pro Jahr, Faktor: 1.5 AT por Ferientag"]
["GesamtpensumSEN4","SEN4","Seniorengruppen/Freiwillige (AZ Stunden)",null,null,null,null,"Eingabe: Anzahl Stunden, Faktor: 1h"]
["GesamtpensumSEN5","SEN5","Geburtstagsbesuche",null,null,null,null,"Eingabe: Anzahl Besuche, Faktor 1h pro Besuch"]
["GesamtpensumSEN6","SEN6","Besondere und übrige Aufgaben"]
["GesamtpensumSEN7","SEN7","…"]
["GesamtpensumSEN8","SEN8","…"]
["GesamtpensumSEN9","SEN9","…"]
["GesamtpensumSEN10","SEN10","…"]
["GesamtpensumSEN11","SEN11","…"]
[]
[null,null,{"$f":"Pfarrpersonen!A8","v":"Gesamtpensum"},null,null,{"$f":"Pfarrpersonen!A9","v":"Delta"}]
[{"$f":"CONCATENATE($F$304,B305)","v":"DeltaSEN0"},"SEN0",{"$f":"$C$290","v":"Arbeitsbereich Seniorenarbeit"},null,null,{"$f":"$F$290","v":"Anzahl "},{"$f":"$G$290","v":"Bemerkung (Hauptverantwortung, Planung, konzeptioneller Ansatz)"},{"$f":"$H$290","v":"Erklärungen zu den Berechnung / Kalkulations-Faktoren "}]
[null,null,null,null,null,{"$f":"$F$18","v":0},null,{"$f":"$H$291","v":0}]
[{"$f":"CONCATENATE($F$304,B307)","v":"DeltaSEN1"},"SEN1",{"$f":"C$292","v":"Veranstaltungen (Seniorennachmittage, Ausflüge, Pilgern, AZ Stunden der Anlässe)"},null,null,null,null,{"$f":"$H$292","v":"Eingabe: Anzahl Stunden, Faktor: 1,5h pro Anlassstunde"}]
["DeltaSEN2","SEN2",{"$f":"C$293","v":"Seniorenreisen (Tagesausflüge, Tagesreisen, AZ Reisetage)"},null,null,null,null,{"$f":"$H$293","v":"Eingabe: Anzahl Tagesausflüge pro Jahr, Faktor: 1.5 AT por Anlasstag"}]
["DeltaSEN3","SEN3",{"$f":"C$294","v":"Seniorenferien (Mehrtägige Reisen, AZ Reisetage)"},null,null,null,null,{"$f":"$H$294","v":"Eingabe: Anzahl  Ferientage pro Jahr, Faktor: 1.5 AT por Ferientag"}]
["DeltaSEN4","SEN4",{"$f":"C$295","v":"Seniorengruppen/Freiwillige (AZ Stunden)"},null,null,null,null,{"$f":"$H$295","v":"Eingabe: Anzahl Stunden, Faktor: 1h"}]
["DeltaSEN5","SEN5",{"$f":"C$296","v":"Geburtstagsbesuche"},null,null,null,null,{"$f":"$H$296","v":"Eingabe: Anzahl Besuche, Faktor 1h pro Besuch"}]
["DeltaSEN6","SEN6",{"$f":"C$297","v":"Besondere und übrige Aufgaben"},null,null,null,null,{"$f":"$H$297","v":0}]
["DeltaSEN7","SEN7",{"$f":"C$298","v":"…"},null,null,null,null,{"$f":"$H$301","v":0}]
["DeltaSEN8","SEN8",{"$f":"C$299","v":"…"},null,null,null,null,{"$f":"$H$301","v":0}]
["DeltaSEN9","SEN9",{"$f":"C$300","v":"…"},null,null,null,null,{"$f":"$H$302","v":0}]
["DeltaSEN10","SEN10",{"$f":"C$301","v":"…"},null,null,null,null,{"$f":"$H$301","v":0}]
["DeltaSEN11","SEN11",{"$f":"C$302","v":"…"},null,null,null,null,{"$f":"$H$302","v":0}]
[]
[null,null,"Pfarrperson"]
[{"$f":"CONCATENATE($F$319,B320)","v":"SEN0"},"SEN0",{"$f":"$C$290","v":"Arbeitsbereich Seniorenarbeit"},null,null,{"$f":"$F$290","v":"Anzahl "},{"$f":"$G$290","v":"Bemerkung (Hauptverantwortung, Planung, konzeptioneller Ansatz)"},{"$f":"$H$290","v":"Erklärungen zu den Berechnung / Kalkulations-Faktoren "}]
["",null,null,null,null,{"$f":"$F$18","v":0},null,{"$f":"$H$291","v":0}]
["SEN1","SEN1",{"$f":"C$292","v":"Veranstaltungen (Seniorennachmittage, Ausflüge, Pilgern, AZ Stunden der Anlässe)"},null,null,null,null,{"$f":"$H$292","v":"Eingabe: Anzahl Stunden, Faktor: 1,5h pro Anlassstunde"}]
["SEN2","SEN2",{"$f":"C$293","v":"Seniorenreisen (Tagesausflüge, Tagesreisen, AZ Reisetage)"},null,null,null,null,{"$f":"$H$293","v":"Eingabe: Anzahl Tagesausflüge pro Jahr, Faktor: 1.5 AT por Anlasstag"}]
["SEN3","SEN3",{"$f":"C$294","v":"Seniorenferien (Mehrtägige Reisen, AZ Reisetage)"},null,null,null,null,{"$f":"$H$294","v":"Eingabe: Anzahl  Ferientage pro Jahr, Faktor: 1.5 AT por Ferientag"}]
["SEN4","SEN4",{"$f":"C$295","v":"Seniorengruppen/Freiwillige (AZ Stunden)"},null,null,null,null,{"$f":"$H$295","v":"Eingabe: Anzahl Stunden, Faktor: 1h"}]
["SEN5","SEN5",{"$f":"C$296","v":"Geburtstagsbesuche"},null,null,null,null,{"$f":"$H$296","v":"Eingabe: Anzahl Besuche, Faktor 1h pro Besuch"}]
["SEN6","SEN6",{"$f":"C$297","v":"Besondere und übrige Aufgaben"},null,null,null,null,{"$f":"$H$297","v":0}]
["SEN7","SEN7",{"$f":"C$298","v":"…"},null,null,null,null,{"$f":"$H$301","v":0}]
["SEN8","SEN8",{"$f":"C$299","v":"…"},null,null,null,null,{"$f":"$H$301","v":0}]
["SEN9","SEN9",{"$f":"C$300","v":"…"},null,null,null,null,{"$f":"$H$302","v":0}]
["SEN10","SEN10",{"$f":"C$301","v":"…"},null,null,null,null,{"$f":"$H$301","v":0}]
["SEN11","SEN11",{"$f":"C$302","v":"…"},null,null,null,null,{"$f":"$H$302","v":0}]
[]
[null,null,"Pfarrperson"]
[{"$f":"CONCATENATE($F$334,B335)","v":"SEN0"},"SEN0",{"$f":"$C$290","v":"Arbeitsbereich Seniorenarbeit"},null,null,{"$f":"$F$290","v":"Anzahl "},{"$f":"$G$290","v":"Bemerkung (Hauptverantwortung, Planung, konzeptioneller Ansatz)"},{"$f":"$H$290","v":"Erklärungen zu den Berechnung / Kalkulations-Faktoren "}]
["",null,null,null,null,{"$f":"$F$18","v":0},null,{"$f":"$H$291","v":0}]
["SEN1","SEN1",{"$f":"C$292","v":"Veranstaltungen (Seniorennachmittage, Ausflüge, Pilgern, AZ Stunden der Anlässe)"},null,null,null,null,{"$f":"$H$292","v":"Eingabe: Anzahl Stunden, Faktor: 1,5h pro Anlassstunde"}]
["SEN2","SEN2",{"$f":"C$293","v":"Seniorenreisen (Tagesausflüge, Tagesreisen, AZ Reisetage)"},null,null,null,null,{"$f":"$H$293","v":"Eingabe: Anzahl Tagesausflüge pro Jahr, Faktor: 1.5 AT por Anlasstag"}]
["SEN3","SEN3",{"$f":"C$294","v":"Seniorenferien (Mehrtägige Reisen, AZ Reisetage)"},null,null,null,null,{"$f":"$H$294","v":"Eingabe: Anzahl  Ferientage pro Jahr, Faktor: 1.5 AT por Ferientag"}]
["SEN4","SEN4",{"$f":"C$295","v":"Seniorengruppen/Freiwillige (AZ Stunden)"},null,null,null,null,{"$f":"$H$295","v":"Eingabe: Anzahl Stunden, Faktor: 1h"}]
["SEN5","SEN5",{"$f":"C$296","v":"Geburtstagsbesuche"},null,null,null,null,{"$f":"$H$296","v":"Eingabe: Anzahl Besuche, Faktor 1h pro Besuch"}]
["SEN6","SEN6",{"$f":"C$297","v":"Besondere und übrige Aufgaben"},null,null,null,null,{"$f":"$H$297","v":0}]
["SEN7","SEN7",{"$f":"C$298","v":"…"},null,null,null,null,{"$f":"$H$301","v":0}]
["SEN8","SEN8",{"$f":"C$299","v":"…"},null,null,null,null,{"$f":"$H$301","v":0}]
["SEN9","SEN9",{"$f":"C$300","v":"…"},null,null,null,null,{"$f":"$H$302","v":0}]
["SEN10","SEN10",{"$f":"C$301","v":"…"},null,null,null,null,{"$f":"$H$301","v":0}]
["SEN11","SEN11",{"$f":"C$302","v":"…"},null,null,null,null,{"$f":"$H$302","v":0}]
[]
[null,null,"Pfarrperson",null,null,"abc"]
[{"$f":"CONCATENATE($F$349,B350)","v":"abcSEN0"},"SEN0",{"$f":"$C$290","v":"Arbeitsbereich Seniorenarbeit"},null,null,{"$f":"$F$290","v":"Anzahl "},{"$f":"$G$290","v":"Bemerkung (Hauptverantwortung, Planung, konzeptioneller Ansatz)"},{"$f":"$H$290","v":"Erklärungen zu den Berechnung / Kalkulations-Faktoren "}]
["abc",null,null,null,null,{"$f":"$F$18","v":0},null,{"$f":"$H$291","v":0}]
["abcSEN1","SEN1",{"$f":"C$292","v":"Veranstaltungen (Seniorennachmittage, Ausflüge, Pilgern, AZ Stunden der Anlässe)"},null,null,null,null,{"$f":"$H$292","v":"Eingabe: Anzahl Stunden, Faktor: 1,5h pro Anlassstunde"}]
["abcSEN2","SEN2",{"$f":"C$293","v":"Seniorenreisen (Tagesausflüge, Tagesreisen, AZ Reisetage)"},null,null,null,null,{"$f":"$H$293","v":"Eingabe: Anzahl Tagesausflüge pro Jahr, Faktor: 1.5 AT por Anlasstag"}]
["abcSEN3","SEN3",{"$f":"C$294","v":"Seniorenferien (Mehrtägige Reisen, AZ Reisetage)"},null,null,null,null,{"$f":"$H$294","v":"Eingabe: Anzahl  Ferientage pro Jahr, Faktor: 1.5 AT por Ferientag"}]
["abcSEN4","SEN4",{"$f":"C$295","v":"Seniorengruppen/Freiwillige (AZ Stunden)"},null,null,null,null,{"$f":"$H$295","v":"Eingabe: Anzahl Stunden, Faktor: 1h"}]
["abcSEN5","SEN5",{"$f":"C$296","v":"Geburtstagsbesuche"},null,null,null,null,{"$f":"$H$296","v":"Eingabe: Anzahl Besuche, Faktor 1h pro Besuch"}]
["abcSEN6","SEN6",{"$f":"C$297","v":"Besondere und übrige Aufgaben"},null,null,null,null,{"$f":"$H$297","v":0}]
["abcSEN7","SEN7",{"$f":"C$298","v":"…"}]
[{"$f":"CONCATENATE($F$349,B359)","v":"abcSEN8"},"SEN8",{"$f":"C$299","v":"…"},null,null,null,null,{"$f":"$H$302","v":0}]
[{"$f":"CONCATENATE($F$349,B360)","v":"abcSEN9"},"SEN9",{"$f":"C$300","v":"…"},null,null,null,null,{"$f":"$H$301","v":0}]
[{"$f":"CONCATENATE($F$349,B361)","v":"abcSEN10"},"SEN10",{"$f":"C$301","v":"…"},null,null,null,null,{"$f":"$H$302","v":0}]
[{"$f":"CONCATENATE($F$349,B362)","v":"abcSEN11"},"SEN11",{"$f":"C$302","v":"…"},null,null,null,null,{"$f":"$H$301","v":0}]
[]
[null,null,"Pfarrperson"]
[{"$f":"CONCATENATE($F$364,B365)","v":"SEN0"},"SEN0",{"$f":"$C$290","v":"Arbeitsbereich Seniorenarbeit"},null,null,{"$f":"$F$290","v":"Anzahl "},{"$f":"$G$290","v":"Bemerkung (Hauptverantwortung, Planung, konzeptioneller Ansatz)"},{"$f":"$H$290","v":"Erklärungen zu den Berechnung / Kalkulations-Faktoren "}]
["",null,null,null,null,{"$f":"$F$18","v":0},null,{"$f":"$H$291","v":0}]
["SEN1","SEN1",{"$f":"C$292","v":"Veranstaltungen (Seniorennachmittage, Ausflüge, Pilgern, AZ Stunden der Anlässe)"},null,null,null,null,{"$f":"$H$292","v":"Eingabe: Anzahl Stunden, Faktor: 1,5h pro Anlassstunde"}]
["SEN2","SEN2",{"$f":"C$293","v":"Seniorenreisen (Tagesausflüge, Tagesreisen, AZ Reisetage)"},null,null,null,null,{"$f":"$H$293","v":"Eingabe: Anzahl Tagesausflüge pro Jahr, Faktor: 1.5 AT por Anlasstag"}]
["SEN3","SEN3",{"$f":"C$294","v":"Seniorenferien (Mehrtägige Reisen, AZ Reisetage)"},null,null,null,null,{"$f":"$H$294","v":"Eingabe: Anzahl  Ferientage pro Jahr, Faktor: 1.5 AT por Ferientag"}]
["SEN4","SEN4",{"$f":"C$295","v":"Seniorengruppen/Freiwillige (AZ Stunden)"},null,null,null,null,{"$f":"$H$295","v":"Eingabe: Anzahl Stunden, Faktor: 1h"}]
["SEN5","SEN5",{"$f":"C$296","v":"Geburtstagsbesuche"},null,null,null,null,{"$f":"$H$296","v":"Eingabe: Anzahl Besuche, Faktor 1h pro Besuch"}]
["SEN6","SEN6",{"$f":"C$297","v":"Besondere und übrige Aufgaben"},null,null,null,null,{"$f":"$H$297","v":0}]
["SEN7","SEN7",{"$f":"C$298","v":"…"},null,null,null,null,{"$f":"$H$301","v":0}]
["SEN8","SEN8",{"$f":"C$299","v":"…"},null,null,null,null,{"$f":"$H$302","v":0}]
["SEN9","SEN9",{"$f":"C$300","v":"…"},null,null,null,null,{"$f":"$H$301","v":0}]
["SEN10","SEN10",{"$f":"C$301","v":"…"},null,null,null,null,{"$f":"$H$301","v":0}]
["SEN11","SEN11",{"$f":"C$302","v":"…"},null,null,null,null,{"$f":"$H$302","v":0}]
[]
[null,null,"Pfarrperson"]
[{"$f":"CONCATENATE($F$379,B380)","v":"SEN0"},"SEN0",{"$f":"$C$290","v":"Arbeitsbereich Seniorenarbeit"},null,null,{"$f":"$F$290","v":"Anzahl "},{"$f":"$G$290","v":"Bemerkung (Hauptverantwortung, Planung, konzeptioneller Ansatz)"},{"$f":"$H$290","v":"Erklärungen zu den Berechnung / Kalkulations-Faktoren "}]
["",null,null,null,null,{"$f":"$F$18","v":0},null,{"$f":"$H$291","v":0}]
["SEN1","SEN1",{"$f":"C$292","v":"Veranstaltungen (Seniorennachmittage, Ausflüge, Pilgern, AZ Stunden der Anlässe)"},null,null,null,null,{"$f":"$H$292","v":"Eingabe: Anzahl Stunden, Faktor: 1,5h pro Anlassstunde"}]
["SEN2","SEN2",{"$f":"C$293","v":"Seniorenreisen (Tagesausflüge, Tagesreisen, AZ Reisetage)"},null,null,null,null,{"$f":"$H$293","v":"Eingabe: Anzahl Tagesausflüge pro Jahr, Faktor: 1.5 AT por Anlasstag"}]
["SEN3","SEN3",{"$f":"C$294","v":"Seniorenferien (Mehrtägige Reisen, AZ Reisetage)"},null,null,null,null,{"$f":"$H$294","v":"Eingabe: Anzahl  Ferientage pro Jahr, Faktor: 1.5 AT por Ferientag"}]
["SEN4","SEN4",{"$f":"C$295","v":"Seniorengruppen/Freiwillige (AZ Stunden)"},null,null,null,null,{"$f":"$H$295","v":"Eingabe: Anzahl Stunden, Faktor: 1h"}]
["SEN5","SEN5",{"$f":"C$296","v":"Geburtstagsbesuche"},null,null,null,null,{"$f":"$H$296","v":"Eingabe: Anzahl Besuche, Faktor 1h pro Besuch"}]
["SEN6","SEN6",{"$f":"C$297","v":"Besondere und übrige Aufgaben"},null,null,null,null,{"$f":"$H$297","v":0}]
["SEN7","SEN7",{"$f":"C$298","v":"…"},null,null,null,null,{"$f":"$H$301","v":0}]
["SEN8","SEN8",{"$f":"C$299","v":"…"},null,null,null,null,{"$f":"$H$301","v":0}]
["SEN9","SEN9",{"$f":"C$300","v":"…"},null,null,null,null,{"$f":"$H$302","v":0}]
["SEN10","SEN10",{"$f":"C$301","v":"…"},null,null,null,null,{"$f":"$H$301","v":0}]
["SEN11","SEN11",{"$f":"C$302","v":"…"},null,null,null,null,{"$f":"$H$302","v":0}]
[]
[null,null,"Pfarrperson"]
[{"$f":"CONCATENATE($F$394,B395)","v":"SEN0"},"SEN0",{"$f":"$C$290","v":"Arbeitsbereich Seniorenarbeit"},null,null,{"$f":"$F$290","v":"Anzahl "},{"$f":"$G$290","v":"Bemerkung (Hauptverantwortung, Planung, konzeptioneller Ansatz)"},{"$f":"$H$290","v":"Erklärungen zu den Berechnung / Kalkulations-Faktoren "}]
["",null,null,null,null,{"$f":"$F$18","v":0},null,{"$f":"$H$291","v":0}]
["SEN1","SEN1",{"$f":"C$292","v":"Veranstaltungen (Seniorennachmittage, Ausflüge, Pilgern, AZ Stunden der Anlässe)"},null,null,null,null,{"$f":"$H$292","v":"Eingabe: Anzahl Stunden, Faktor: 1,5h pro Anlassstunde"}]
["SEN2","SEN2",{"$f":"C$293","v":"Seniorenreisen (Tagesausflüge, Tagesreisen, AZ Reisetage)"},null,null,null,null,{"$f":"$H$293","v":"Eingabe: Anzahl Tagesausflüge pro Jahr, Faktor: 1.5 AT por Anlasstag"}]
["SEN3","SEN3",{"$f":"C$294","v":"Seniorenferien (Mehrtägige Reisen, AZ Reisetage)"},null,null,null,null,{"$f":"$H$294","v":"Eingabe: Anzahl  Ferientage pro Jahr, Faktor: 1.5 AT por Ferientag"}]
["SEN4","SEN4",{"$f":"C$295","v":"Seniorengruppen/Freiwillige (AZ Stunden)"},null,null,null,null,{"$f":"$H$295","v":"Eingabe: Anzahl Stunden, Faktor: 1h"}]
["SEN5","SEN5",{"$f":"C$296","v":"Geburtstagsbesuche"},null,null,null,null,{"$f":"$H$296","v":"Eingabe: Anzahl Besuche, Faktor 1h pro Besuch"}]
["SEN6","SEN6",{"$f":"C$297","v":"Besondere und übrige Aufgaben"},null,null,null,null,{"$f":"$H$297","v":0}]
["SEN7","SEN7",{"$f":"C$298","v":"…"},null,null,null,null,{"$f":"$H$301","v":0}]
["SEN8","SEN8",{"$f":"C$299","v":"…"},null,null,null,null,{"$f":"$H$301","v":0}]
["SEN9","SEN9",{"$f":"C$300","v":"…"},null,null,null,null,{"$f":"$H$302","v":0}]
["SEN10","SEN10",{"$f":"C$301","v":"…"},null,null,null,null,{"$f":"$H$301","v":0}]
["SEN11","SEN11",{"$f":"C$302","v":"…"},null,null,null,null,{"$f":"$H$302","v":0}]
[]
[null,null,"Pfarrperson"]
[{"$f":"CONCATENATE($F$409,B410)","v":"SEN0"},"SEN0",{"$f":"$C$290","v":"Arbeitsbereich Seniorenarbeit"},null,null,{"$f":"$F$290","v":"Anzahl "},{"$f":"$G$290","v":"Bemerkung (Hauptverantwortung, Planung, konzeptioneller Ansatz)"},{"$f":"$H$290","v":"Erklärungen zu den Berechnung / Kalkulations-Faktoren "}]
["",null,null,null,null,{"$f":"$F$18","v":0},null,{"$f":"$H$291","v":0}]
["SEN1","SEN1",{"$f":"C$292","v":"Veranstaltungen (Seniorennachmittage, Ausflüge, Pilgern, AZ Stunden der Anlässe)"},null,null,null,null,{"$f":"$H$292","v":"Eingabe: Anzahl Stunden, Faktor: 1,5h pro Anlassstunde"}]
["SEN2","SEN2",{"$f":"C$293","v":"Seniorenreisen (Tagesausflüge, Tagesreisen, AZ Reisetage)"},null,null,null,null,{"$f":"$H$293","v":"Eingabe: Anzahl Tagesausflüge pro Jahr, Faktor: 1.5 AT por Anlasstag"}]
["SEN3","SEN3",{"$f":"C$294","v":"Seniorenferien (Mehrtägige Reisen, AZ Reisetage)"},null,null,null,null,{"$f":"$H$294","v":"Eingabe: Anzahl  Ferientage pro Jahr, Faktor: 1.5 AT por Ferientag"}]
["SEN4","SEN4",{"$f":"C$295","v":"Seniorengruppen/Freiwillige (AZ Stunden)"},null,null,null,null,{"$f":"$H$295","v":"Eingabe: Anzahl Stunden, Faktor: 1h"}]
["SEN5","SEN5",{"$f":"C$296","v":"Geburtstagsbesuche"},null,null,null,null,{"$f":"$H$296","v":"Eingabe: Anzahl Besuche, Faktor 1h pro Besuch"}]
["SEN6","SEN6",{"$f":"C$297","v":"Besondere und übrige Aufgaben"},null,null,null,null,{"$f":"$H$297","v":0}]
["SEN7","SEN7",{"$f":"C$298","v":"…"},null,null,null,null,{"$f":"$H$301","v":0}]
["SEN8","SEN8",{"$f":"C$299","v":"…"},null,null,null,null,{"$f":"$H$301","v":0}]
["SEN9","SEN9",{"$f":"C$300","v":"…"},null,null,null,null,{"$f":"$H$302","v":0}]
["SEN10","SEN10",{"$f":"C$301","v":"…"},null,null,null,null,{"$f":"$H$301","v":0}]
["SEN11","SEN11",{"$f":"C$302","v":"…"},null,null,null,null,{"$f":"$H$302","v":0}]
[]
[null,null,"Pfarrperson"]
[{"$f":"CONCATENATE($F$424,B425)","v":"SEN0"},"SEN0",{"$f":"$C$290","v":"Arbeitsbereich Seniorenarbeit"},null,null,{"$f":"$F$290","v":"Anzahl "},{"$f":"$G$290","v":"Bemerkung (Hauptverantwortung, Planung, konzeptioneller Ansatz)"},{"$f":"$H$290","v":"Erklärungen zu den Berechnung / Kalkulations-Faktoren "}]
["",null,null,null,null,{"$f":"$F$18","v":0},null,{"$f":"$H$291","v":0}]
["SEN1","SEN1",{"$f":"C$292","v":"Veranstaltungen (Seniorennachmittage, Ausflüge, Pilgern, AZ Stunden der Anlässe)"},null,null,null,null,{"$f":"$H$292","v":"Eingabe: Anzahl Stunden, Faktor: 1,5h pro Anlassstunde"}]
["SEN2","SEN2",{"$f":"C$293","v":"Seniorenreisen (Tagesausflüge, Tagesreisen, AZ Reisetage)"},null,null,null,null,{"$f":"$H$293","v":"Eingabe: Anzahl Tagesausflüge pro Jahr, Faktor: 1.5 AT por Anlasstag"}]
["SEN3","SEN3",{"$f":"C$294","v":"Seniorenferien (Mehrtägige Reisen, AZ Reisetage)"},null,null,null,null,{"$f":"$H$294","v":"Eingabe: Anzahl  Ferientage pro Jahr, Faktor: 1.5 AT por Ferientag"}]
["SEN4","SEN4",{"$f":"C$295","v":"Seniorengruppen/Freiwillige (AZ Stunden)"},null,null,null,null,{"$f":"$H$295","v":"Eingabe: Anzahl Stunden, Faktor: 1h"}]
["SEN5","SEN5",{"$f":"C$296","v":"Geburtstagsbesuche"},null,null,null,null,{"$f":"$H$296","v":"Eingabe: Anzahl Besuche, Faktor 1h pro Besuch"}]
["SEN6","SEN6",{"$f":"C$297","v":"Besondere und übrige Aufgaben"},null,null,null,null,{"$f":"$H$297","v":0}]
["SEN7","SEN7",{"$f":"C$298","v":"…"},null,null,null,null,{"$f":"$H$301","v":0}]
["SEN8","SEN8",{"$f":"C$299","v":"…"},null,null,null,null,{"$f":"$H$301","v":0}]
["SEN9","SEN9",{"$f":"C$300","v":"…"},null,null,null,null,{"$f":"$H$302","v":0}]
["SEN10","SEN10",{"$f":"C$301","v":"…"},null,null,null,null,{"$f":"$H$301","v":0}]
["SEN11","SEN11",{"$f":"C$302","v":"…"},null,null,null,null,{"$f":"$H$302","v":0}]

{"sheet":"Tabelle3","index":12,"n_rows":0,"n_cols":0,"rows_kept":0,"cut":false,"hidden":false,"merged":[]}

{"sheet":"Erw_Bild.&Spirit.","index":13,"n_rows":105,"n_cols":4,"rows_kept":105,"cut":false,"hidden":false,"merged":[[0,1,0,2],[2,3,13,3],[27,3,38,3],[54,3,65,3],[104,3,116,3]]}
[null,"Pfarramtliche Verantwortungsbereiche im Handlungsfeld \nBildung und Spiritualität"]
[]
[null,null,null,"Hier ist festzuhalten, wie Bildung und Spiritualität grundsätzlich organisiert sind und wie die Vorgaben der Kirchenpflege umgesetzt werden. Die theologische Reflexion des Handlungsfeldes sollte sich hier zusammengefasst abbilden. "]
[]
[]
[]
[]
[]
[]
[]
[]
[]
[]
[]
[]
[]
[]
[]
[]
[]
[]
[]
[]
[]
[]
[]
[]
[null,null,null,"Hier ist festzuhalten, welche Team- oder Kommissionsaufträge, Projekte oder Schwerpunkte bestehen. Hier sind auch die bestehenden Teams zu erwähnen und wie sie organisiert sind. Mit der Einbettung des Pfarramts in die Gesamtheit der Mitarbeitenden wird die interprofessionelle Zusammenarbeit gefördert."]
[]
[]
[]
[]
[]
[]
[]
[]
[]
[]
[]
[]
[]
[]
[]
[]
[]
[]
[]
[]
[]
[]
[]
[]
[]
[]
[null,null,null,"Hier ist festzuhalten, welches Engagement bei grösseren Gemeindezusammenschlüssen für die Gesamtgemeinde oder die Region geleistet wird."]
[]
[]
[]
[]
[]
[]
[]
[]
[]
[]
[]
[]
[]
[]
[]
[]
[]
[]
[]
[]
[]
[]
[]
[]
[]
[]
[]
[]
[]
[]
[]
[]
[]
[]
[]
[]
[]
[]
[]
[]
[]
[]
[]
[]
[]
[]
[]
[]
[]
[null,null,null,"Hier ist festzuhalten, welche besonderen Projekte oder Innovationen bestehen oder für die unmittelbare Zukunft geplant sind. Ein besonderes Augenmerk ist dabei auf die Förderung der Vielfalt kirchlicher Orte und auf vielfältige Formen des gemeindlichen Lebens zu legen wie auch auf  Formen der Partizipation."]

{"sheet":"A&V_Bild.&Spirit.","index":14,"n_rows":320,"n_cols":8,"rows_kept":320,"cut":false,"hidden":false,"merged":[[1,7,4,7],[2,2,2,6],[9,2,9,6]]}
[null,null,"Pfarramtliche Aufgaben- und Verantwortungsbereiche im Handlungsfeld Bildung und Spiritualität"]
[]
[]
[]
[]
[]
[]
[]
[]
[]
[]
[]
[]
[]
[]
[null,null,"Pfarrpersonen",null,null,{"$f":"Pfarrpersonen!A8","v":"Gesamtpensum"}]
[{"$f":"CONCATENATE($F$16,B17)","v":"GesamtpensumK0"},"K0","Arbeitsbereich Konfirmandenarbeit und rpg",null,null,"Anzahl ","Bemerkung (Hauptverantwortung, Planung, konzeptioneller Ansatz)","Erklärungen zu den Berechnung / Kalkulations-Faktoren "]
[]
[{"$f":"CONCATENATE($F$16,B19)","v":"GesamtpensumK1"},"K1","Konfirmandenunterricht (AZ Lektionen)",null,null,null,null,"Eingabe: Anzahl Lektionen pro Jahr à 60 Min., \nFaktor: 2 h pro 60 Min.-Lektion "]
["GesamtpensumK2","K2","Juki-Lektionen",null,null,null,null,"Eingabe: Anzahl Lektionen pro Jahr à 60 Min., \nFaktor: 2 h pro 60 Min.-Lektion "]
["GesamtpensumK3","K3","sonstige Angebote rpg (AZ Lektionen)",null,null,null,null,"Eingabe: Anzahl Stunden der Anlässe, Faktor: 2 h pro Anlassstunde"]
["GesamtpensumK4","K4","Projekttage",null,null,null,null,"Eingabe: Anzahl  Projekttage pro Jahr, Faktor: 1.5 AT pro Projekttag"]
["GesamtpensumK5","K5","Lager (AZ Tage)",null,null,null,null,"Eingabe: Anzahl  Lagertage pro Jahr, Faktor: 1.5 AT pro Lagertag "]
["GesamtpensumK6","K6","Gemeindeferien (AZ Ferientage)",null,null,null,null,"Eingabe: Anzahl  Ferientage pro Jahr, Faktor: 1.5 AT pro Ferientag"]
["GesamtpensumK7","K7","Besondere und übrige Aufgaben"]
["GesamtpensumK8","K8","…"]
["GesamtpensumK9","K9","…"]
["GesamtpensumK10","K10","…"]
["GesamtpensumK11","K11","…"]
["GesamtpensumK12","K12","…"]
[]
[null,null,{"$f":"Pfarrpersonen!A8","v":"Gesamtpensum"},null,null,{"$f":"Pfarrpersonen!A9","v":"Delta"}]
[{"$f":"CONCATENATE($F$32,B33)","v":"DeltaK0"},{"$f":"B17","v":"K0"},{"$f":"$C$17","v":"Arbeitsbereich Konfirmandenarbeit und rpg"},null,null,{"$f":"$F$17","v":"Anzahl "},{"$f":"$G$17","v":"Bemerkung (Hauptverantwortung, Planung, konzeptioneller Ansatz)"},{"$f":"$H$17","v":"Erklärungen zu den Berechnung / Kalkulations-Faktoren "}]
[null,null,{"$f":"C18","v":0},null,null,{"$f":"$F$18","v":0}]
[{"$f":"CONCATENATE($F$32,B35)","v":"DeltaK1"},{"$f":"B19","v":"K1"},{"$f":"C$19","v":"Konfirmandenunterricht (AZ Lektionen)"},null,null,null,null,{"$f":"$H$19","v":"Eingabe: Anzahl Lektionen pro Jahr à 60 Min., \nFaktor: 2 h pro 60 Min.-Lektion "}]
["DeltaK2","K2",{"$f":"C$20","v":"Juki-Lektionen"},null,null,null,null,{"$f":"$H$20","v":"Eingabe: Anzahl Lektionen pro Jahr à 60 Min., \nFaktor: 2 h pro 60 Min.-Lektion "}]
["DeltaK3","K3",{"$f":"C$21","v":"sonstige Angebote rpg (AZ Lektionen)"},null,null,null,null,{"$f":"$H$21","v":"Eingabe: Anzahl Stunden der Anlässe, Faktor: 2 h pro Anlassstunde"}]
["DeltaK4","K4",{"$f":"C$22","v":"Projekttage"},null,null,null,null,{"$f":"$H$22","v":"Eingabe: Anzahl  Projekttage pro Jahr, Faktor: 1.5 AT pro Projekttag"}]
["DeltaK5","K5",{"$f":"C$23","v":"Lager (AZ Tage)"},null,null,null,null,{"$f":"$H$23","v":"Eingabe: Anzahl  Lagertage pro Jahr, Faktor: 1.5 AT pro Lagertag "}]
["DeltaK6","K6",{"$f":"C$24","v":"Gemeindeferien (AZ Ferientage)"},null,null,null,null,{"$f":"$H$24","v":"Eingabe: Anzahl  Ferientage pro Jahr, Faktor: 1.5 AT pro Ferientag"}]
["DeltaK7","K7",{"$f":"C$25","v":"Besondere und übrige Aufgaben"},null,null,null,null,{"$f":"H25","v":0}]
["DeltaK8","K8",{"$f":"C$26","v":"…"}]
["DeltaK9","K9",{"$f":"C$27","v":"…"}]
["DeltaK10","K10",{"$f":"C$28","v":"…"}]
["DeltaK11","K11",{"$f":"C$29","v":"…"}]
["DeltaK12","K12",{"$f":"C$30","v":"…"},null,null,null,null,{"$f":"H30","v":0}]
[]
[null,null,"Pfarrperson"]
[{"$f":"CONCATENATE($F$48,B49)","v":"K0"},{"$f":"B33","v":"K0"},{"$f":"$C$17","v":"Arbeitsbereich Konfirmandenarbeit und rpg"},null,null,{"$f":"$F$17","v":"Anzahl "},{"$f":"$G$17","v":"Bemerkung (Hauptverantwortung, Planung, konzeptioneller Ansatz)"},{"$f":"$H$17","v":"Erklärungen zu den Berechnung / Kalkulations-Faktoren "}]
["",null,{"$f":"C34","v":0},null,null,{"$f":"$F$18","v":0}]
["K1",{"$f":"B35","v":"K1"},{"$f":"C$19","v":"Konfirmandenunterricht (AZ Lektionen)"},null,null,null,null,{"$f":"$H$19","v":"Eingabe: Anzahl Lektionen pro Jahr à 60 Min., \nFaktor: 2 h pro 60 Min.-Lektion "}]
["K2","K2",{"$f":"C$20","v":"Juki-Lektionen"},null,null,null,null,{"$f":"$H$20","v":"Eingabe: Anzahl Lektionen pro Jahr à 60 Min., \nFaktor: 2 h pro 60 Min.-Lektion "}]
["K3","K3",{"$f":"C$21","v":"sonstige Angebote rpg (AZ Lektionen)"},null,null,null,null,{"$f":"$H$21","v":"Eingabe: Anzahl Stunden der Anlässe, Faktor: 2 h pro Anlassstunde"}]
["K4","K4",{"$f":"C$22","v":"Projekttage"},null,null,null,null,{"$f":"$H$22","v":"Eingabe: Anzahl  Projekttage pro Jahr, Faktor: 1.5 AT pro Projekttag"}]
["K5","K5",{"$f":"C$23","v":"Lager (AZ Tage)"},null,null,null,null,{"$f":"$H$23","v":"Eingabe: Anzahl  Lagertage pro Jahr, Faktor: 1.5 AT pro Lagertag "}]
["K6","K6",{"$f":"C$24","v":"Gemeindeferien (AZ Ferientage)"},null,null,null,null,{"$f":"$H$24","v":"Eingabe: Anzahl  Ferientage pro Jahr, Faktor: 1.5 AT pro Ferientag"}]
["K7","K7",{"$f":"C$25","v":"Besondere und übrige Aufgaben"},null,null,null,null,{"$f":"H45","v":0}]
["K8","K8",{"$f":"C$26","v":"…"}]
["K9","K9",{"$f":"C$27","v":"…"}]
["K10","K10",{"$f":"C$28","v":"…"}]
["K11","K11",{"$f":"C$29","v":"…"}]
["K12","K12",{"$f":"C$30","v":"…"}]
[]
[null,null,"Pfarrperson"]
[{"$f":"CONCATENATE($F$64,B65)","v":"K0"},{"$f":"B49","v":"K0"},{"$f":"$C$17","v":"Arbeitsbereich Konfirmandenarbeit und rpg"},null,null,{"$f":"$F$17","v":"Anzahl "},{"$f":"$G$17","v":"Bemerkung (Hauptverantwortung, Planung, konzeptioneller Ansatz)"},{"$f":"$H$17","v":"Erklärungen zu den Berechnung / Kalkulations-Faktoren "}]
["",null,{"$f":"C50","v":0},null,null,{"$f":"$F$18","v":0}]
["K1",{"$f":"B51","v":"K1"},{"$f":"C$19","v":"Konfirmandenunterricht (AZ Lektionen)"},null,null,null,null,{"$f":"$H$19","v":"Eingabe: Anzahl Lektionen pro Jahr à 60 Min., \nFaktor: 2 h pro 60 Min.-Lektion "}]
["K2","K2",{"$f":"C$20","v":"Juki-Lektionen"},null,null,null,null,{"$f":"$H$20","v":"Eingabe: Anzahl Lektionen pro Jahr à 60 Min., \nFaktor: 2 h pro 60 Min.-Lektion "}]
["K3","K3",{"$f":"C$21","v":"sonstige Angebote rpg (AZ Lektionen)"},null,null,null,null,{"$f":"$H$21","v":"Eingabe: Anzahl Stunden der Anlässe, Faktor: 2 h pro Anlassstunde"}]
["K4","K4",{"$f":"C$22","v":"Projekttage"},null,null,null,null,{"$f":"$H$22","v":"Eingabe: Anzahl  Projekttage pro Jahr, Faktor: 1.5 AT pro Projekttag"}]
["K5","K5",{"$f":"C$23","v":"Lager (AZ Tage)"},null,null,null,null,{"$f":"$H$23","v":"Eingabe: Anzahl  Lagertage pro Jahr, Faktor: 1.5 AT pro Lagertag "}]
["K6","K6",{"$f":"C$24","v":"Gemeindeferien (AZ Ferientage)"},null,null,null,null,{"$f":"$H$24","v":"Eingabe: Anzahl  Ferientage pro Jahr, Faktor: 1.5 AT pro Ferientag"}]
["K7","K7",{"$f":"C$25","v":"Besondere und übrige Aufgaben"},null,null,null,null,{"$f":"H61","v":0}]
["K8","K8",{"$f":"C$26","v":"…"}]
["K9","K9",{"$f":"C$27","v":"…"}]
["K10","K10",{"$f":"C$28","v":"…"}]
["K11","K11",{"$f":"C$29","v":"…"}]
["K12","K12",{"$f":"C$30","v":"…"}]
[]
[null,null,"Pfarrperson"]
[{"$f":"CONCATENATE($F$80,B81)","v":"K0"},{"$f":"B65","v":"K0"},{"$f":"$C$17","v":"Arbeitsbereich Konfirmandenarbeit und rpg"},null,null,{"$f":"$F$17","v":"Anzahl "},{"$f":"$G$17","v":"Bemerkung (Hauptverantwortung, Planung, konzeptioneller Ansatz)"},{"$f":"$H$17","v":"Erklärungen zu den Berechnung / Kalkulations-Faktoren "}]
["",null,{"$f":"C66","v":0},null,null,{"$f":"$F$18","v":0}]
["K1",{"$f":"B67","v":"K1"},{"$f":"C$19","v":"Konfirmandenunterricht (AZ Lektionen)"},null,null,null,null,{"$f":"$H$19","v":"Eingabe: Anzahl Lektionen pro Jahr à 60 Min., \nFaktor: 2 h pro 60 Min.-Lektion "}]
["K2","K2",{"$f":"C$20","v":"Juki-Lektionen"},null,null,null,null,{"$f":"$H$20","v":"Eingabe: Anzahl Lektionen pro Jahr à 60 Min., \nFaktor: 2 h pro 60 Min.-Lektion "}]
["K3","K3",{"$f":"C$21","v":"sonstige Angebote rpg (AZ Lektionen)"},null,null,null,null,{"$f":"$H$21","v":"Eingabe: Anzahl Stunden der Anlässe, Faktor: 2 h pro Anlassstunde"}]
["K4","K4",{"$f":"C$22","v":"Projekttage"},null,null,null,null,{"$f":"$H$22","v":"Eingabe: Anzahl  Projekttage pro Jahr, Faktor: 1.5 AT pro Projekttag"}]
["K5","K5",{"$f":"C$23","v":"Lager (AZ Tage)"},null,null,null,null,{"$f":"$H$23","v":"Eingabe: Anzahl  Lagertage pro Jahr, Faktor: 1.5 AT pro Lagertag "}]
["K6","K6",{"$f":"C$24","v":"Gemeindeferien (AZ Ferientage)"},null,null,null,null,{"$f":"$H$24","v":"Eingabe: Anzahl  Ferientage pro Jahr, Faktor: 1.5 AT pro Ferientag"}]
["K7","K7",{"$f":"C$25","v":"Besondere und übrige Aufgaben"},null,null,null,null,{"$f":"H77","v":0}]
["K8","K8",{"$f":"C$26","v":"…"}]
["K9","K9",{"$f":"C$27","v":"…"}]
["K10","K10",{"$f":"C$28","v":"…"}]
["K11","K11",{"$f":"C$29","v":"…"}]
["K12","K12",{"$f":"C$30","v":"…"}]
[]
[null,null,"Pfarrperson"]
[{"$f":"CONCATENATE($F$96,B97)","v":"K0"},{"$f":"B81","v":"K0"},{"$f":"$C$17","v":"Arbeitsbereich Konfirmandenarbeit und rpg"},null,null,{"$f":"$F$17","v":"Anzahl "},{"$f":"$G$17","v":"Bemerkung (Hauptverantwortung, Planung, konzeptioneller Ansatz)"},{"$f":"$H$17","v":"Erklärungen zu den Berechnung / Kalkulations-Faktoren "}]
["",null,{"$f":"C82","v":0},null,null,{"$f":"$F$18","v":0}]
["K1",{"$f":"B83","v":"K1"},{"$f":"C$19","v":"Konfirmandenunterricht (AZ Lektionen)"},null,null,null,null,{"$f":"$H$19","v":"Eingabe: Anzahl Lektionen pro Jahr à 60 Min., \nFaktor: 2 h pro 60 Min.-Lektion "}]
["K2","K2",{"$f":"C$20","v":"Juki-Lektionen"},null,null,null,null,{"$f":"$H$20","v":"Eingabe: Anzahl Lektionen pro Jahr à 60 Min., \nFaktor: 2 h pro 60 Min.-Lektion "}]
["K3","K3",{"$f":"C$21","v":"sonstige Angebote rpg (AZ Lektionen)"},null,null,null,null,{"$f":"$H$21","v":"Eingabe: Anzahl Stunden der Anlässe, Faktor: 2 h pro Anlassstunde"}]
["K4","K4",{"$f":"C$22","v":"Projekttage"},null,null,null,null,{"$f":"$H$22","v":"Eingabe: Anzahl  Projekttage pro Jahr, Faktor: 1.5 AT pro Projekttag"}]
["K5","K5",{"$f":"C$23","v":"Lager (AZ Tage)"},null,null,null,null,{"$f":"$H$23","v":"Eingabe: Anzahl  Lagertage pro Jahr, Faktor: 1.5 AT pro Lagertag "}]
["K6","K6",{"$f":"C$24","v":"Gemeindeferien (AZ Ferientage)"},null,null,null,null,{"$f":"$H$24","v":"Eingabe: Anzahl  Ferientage pro Jahr, Faktor: 1.5 AT pro Ferientag"}]
["K7","K7",{"$f":"C$25","v":"Besondere und übrige Aufgaben"},null,null,null,null,{"$f":"H93","v":0}]
["K8","K8",{"$f":"C$26","v":"…"}]
["K9","K9",{"$f":"C$27","v":"…"}]
["K10","K10",{"$f":"C$28","v":"…"}]
["K11","K11",{"$f":"C$29","v":"…"}]
["K12","K12",{"$f":"C$30","v":"…"}]
[]
[null,null,"Pfarrperson"]
[{"$f":"CONCATENATE($F$112,B113)","v":"K0"},{"$f":"B97","v":"K0"},{"$f":"$C$17","v":"Arbeitsbereich Konfirmandenarbeit und rpg"},null,null,{"$f":"$F$17","v":"Anzahl "},{"$f":"$G$17","v":"Bemerkung (Hauptverantwortung, Planung, konzeptioneller Ansatz)"},{"$f":"$H$17","v":"Erklärungen zu den Berechnung / Kalkulations-Faktoren "}]
["",null,{"$f":"C98","v":0},null,null,{"$f":"$F$18","v":0}]
["K1",{"$f":"B99","v":"K1"},{"$f":"C$19","v":"Konfirmandenunterricht (AZ Lektionen)"},null,null,null,null,{"$f":"$H$19","v":"Eingabe: Anzahl Lektionen pro Jahr à 60 Min., \nFaktor: 2 h pro 60 Min.-Lektion "}]
["K2","K2",{"$f":"C$20","v":"Juki-Lektionen"},null,null,null,null,{"$f":"$H$20","v":"Eingabe: Anzahl Lektionen pro Jahr à 60 Min., \nFaktor: 2 h pro 60 Min.-Lektion "}]
["K3","K3",{"$f":"C$21","v":"sonstige Angebote rpg (AZ Lektionen)"},null,null,null,null,{"$f":"$H$21","v":"Eingabe: Anzahl Stunden der Anlässe, Faktor: 2 h pro Anlassstunde"}]
["K4","K4",{"$f":"C$22","v":"Projekttage"},null,null,null,null,{"$f":"$H$22","v":"Eingabe: Anzahl  Projekttage pro Jahr, Faktor: 1.5 AT pro Projekttag"}]
["K5","K5",{"$f":"C$23","v":"Lager (AZ Tage)"},null,null,null,null,{"$f":"$H$23","v":"Eingabe: Anzahl  Lagertage pro Jahr, Faktor: 1.5 AT pro Lagertag "}]
["K6","K6",{"$f":"C$24","v":"Gemeindeferien (AZ Ferientage)"},null,null,null,null,{"$f":"$H$24","v":"Eingabe: Anzahl  Ferientage pro Jahr, Faktor: 1.5 AT pro Ferientag"}]
["K7","K7",{"$f":"C$25","v":"Besondere und übrige Aufgaben"},null,null,null,null,{"$f":"H109","v":0}]
["K8","K8",{"$f":"C$26","v":"…"}]
["K9","K9",{"$f":"C$27","v":"…"}]
["K10","K10",{"$f":"C$28","v":"…"}]
["K11","K11",{"$f":"C$29","v":"…"}]
["K12","K12",{"$f":"C$30","v":"…"}]
[]
[null,null,"Pfarrperson"]
[{"$f":"CONCATENATE($F$128,B129)","v":"K0"},{"$f":"B113","v":"K0"},{"$f":"$C$17","v":"Arbeitsbereich Konfirmandenarbeit und rpg"},null,null,{"$f":"$F$17","v":"Anzahl "},{"$f":"$G$17","v":"Bemerkung (Hauptverantwortung, Planung, konzeptioneller Ansatz)"},{"$f":"$H$17","v":"Erklärungen zu den Berechnung / Kalkulations-Faktoren "}]
["",null,{"$f":"C114","v":0},null,null,{"$f":"$F$18","v":0}]
["K1",{"$f":"B115","v":"K1"},{"$f":"C$19","v":"Konfirmandenunterricht (AZ Lektionen)"},null,null,null,null,{"$f":"$H$19","v":"Eingabe: Anzahl Lektionen pro Jahr à 60 Min., \nFaktor: 2 h pro 60 Min.-Lektion "}]
["K2","K2",{"$f":"C$20","v":"Juki-Lektionen"},null,null,null,null,{"$f":"$H$20","v":"Eingabe: Anzahl Lektionen pro Jahr à 60 Min., \nFaktor: 2 h pro 60 Min.-Lektion "}]
["K3","K3",{"$f":"C$21","v":"sonstige Angebote rpg (AZ Lektionen)"},null,null,null,null,{"$f":"$H$21","v":"Eingabe: Anzahl Stunden der Anlässe, Faktor: 2 h pro Anlassstunde"}]
["K4","K4",{"$f":"C$22","v":"Projekttage"},null,null,null,null,{"$f":"$H$22","v":"Eingabe: Anzahl  Projekttage pro Jahr, Faktor: 1.5 AT pro Projekttag"}]
["K5","K5",{"$f":"C$23","v":"Lager (AZ Tage)"},null,null,null,null,{"$f":"$H$23","v":"Eingabe: Anzahl  Lagertage pro Jahr, Faktor: 1.5 AT pro Lagertag "}]
["K6","K6",{"$f":"C$24","v":"Gemeindeferien (AZ Ferientage)"},null,null,null,null,{"$f":"$H$24","v":"Eingabe: Anzahl  Ferientage pro Jahr, Faktor: 1.5 AT pro Ferientag"}]
["K7","K7",{"$f":"C$25","v":"Besondere und übrige Aufgaben"},null,null,null,null,{"$f":"H125","v":0}]
["K8","K8",{"$f":"C$26","v":"…"}]
["K9","K9",{"$f":"C$27","v":"…"}]
["K10","K10",{"$f":"C$28","v":"…"}]
["K11","K11",{"$f":"C$29","v":"…"}]
["K12","K12",{"$f":"C$30","v":"…"}]
[]
[null,null,"Pfarrperson"]
[{"$f":"CONCATENATE($F$144,B145)","v":"K0"},{"$f":"B129","v":"K0"},{"$f":"$C$17","v":"Arbeitsbereich Konfirmandenarbeit und rpg"},null,null,{"$f":"$F$17","v":"Anzahl "},{"$f":"$G$17","v":"Bemerkung (Hauptverantwortung, Planung, konzeptioneller Ansatz)"},{"$f":"$H$17","v":"Erklärungen zu den Berechnung / Kalkulations-Faktoren "}]
["",null,{"$f":"C130","v":0},null,null,{"$f":"$F$18","v":0}]
["K1",{"$f":"B131","v":"K1"},{"$f":"C$19","v":"Konfirmandenunterricht (AZ Lektionen)"},null,null,null,null,{"$f":"$H$19","v":"Eingabe: Anzahl Lektionen pro Jahr à 60 Min., \nFaktor: 2 h pro 60 Min.-Lektion "}]
["K2","K2",{"$f":"C$20","v":"Juki-Lektionen"},null,null,null,null,{"$f":"$H$20","v":"Eingabe: Anzahl Lektionen pro Jahr à 60 Min., \nFaktor: 2 h pro 60 Min.-Lektion "}]
["K3","K3",{"$f":"C$21","v":"sonstige Angebote rpg (AZ Lektionen)"},null,null,null,null,{"$f":"$H$21","v":"Eingabe: Anzahl Stunden der Anlässe, Faktor: 2 h pro Anlassstunde"}]
["K4","K4",{"$f":"C$22","v":"Projekttage"},null,null,null,null,{"$f":"$H$22","v":"Eingabe: Anzahl  Projekttage pro Jahr, Faktor: 1.5 AT pro Projekttag"}]
["K5","K5",{"$f":"C$23","v":"Lager (AZ Tage)"},null,null,null,null,{"$f":"$H$23","v":"Eingabe: Anzahl  Lagertage pro Jahr, Faktor: 1.5 AT pro Lagertag "}]
["K6","K6",{"$f":"C$24","v":"Gemeindeferien (AZ Ferientage)"},null,null,null,null,{"$f":"$H$24","v":"Eingabe: Anzahl  Ferientage pro Jahr, Faktor: 1.5 AT pro Ferientag"}]
["K7","K7",{"$f":"C$25","v":"Besondere und übrige Aufgaben"},null,null,null,null,{"$f":"H141","v":0}]
["K8","K8",{"$f":"C$26","v":"…"}]
["K9","K9",{"$f":"C$27","v":"…"}]
["K10","K10",{"$f":"C$28","v":"…"}]
["K11","K11",{"$f":"C$29","v":"…"}]
["K12","K12",{"$f":"C$30","v":"…"}]
[]
[null,null,"Pfarrperson"]
[{"$f":"CONCATENATE($F$160,B161)","v":"K0"},{"$f":"B145","v":"K0"},{"$f":"$C$17","v":"Arbeitsbereich Konfirmandenarbeit und rpg"},null,null,{"$f":"$F$17","v":"Anzahl "},{"$f":"$G$17","v":"Bemerkung (Hauptverantwortung, Planung, konzeptioneller Ansatz)"},{"$f":"$H$17","v":"Erklärungen zu den Berechnung / Kalkulations-Faktoren "}]
["",null,{"$f":"C146","v":0},null,null,{"$f":"$F$18","v":0}]
["K1",{"$f":"B147","v":"K1"},{"$f":"C$19","v":"Konfirmandenunterricht (AZ Lektionen)"},null,null,null,null,{"$f":"$H$19","v":"Eingabe: Anzahl Lektionen pro Jahr à 60 Min., \nFaktor: 2 h pro 60 Min.-Lektion "}]
["K2","K2",{"$f":"C$20","v":"Juki-Lektionen"},null,null,null,null,{"$f":"$H$20","v":"Eingabe: Anzahl Lektionen pro Jahr à 60 Min., \nFaktor: 2 h pro 60 Min.-Lektion "}]
["K3","K3",{"$f":"C$21","v":"sonstige Angebote rpg (AZ Lektionen)"},null,null,null,null,{"$f":"$H$21","v":"Eingabe: Anzahl Stunden der Anlässe, Faktor: 2 h pro Anlassstunde"}]
["K4","K4",{"$f":"C$22","v":"Projekttage"},null,null,null,null,{"$f":"$H$22","v":"Eingabe: Anzahl  Projekttage pro Jahr, Faktor: 1.5 AT pro Projekttag"}]
["K5","K5",{"$f":"C$23","v":"Lager (AZ Tage)"},null,null,null,null,{"$f":"$H$23","v":"Eingabe: Anzahl  Lagertage pro Jahr, Faktor: 1.5 AT pro Lagertag "}]
["K6","K6",{"$f":"C$24","v":"Gemeindeferien (AZ Ferientage)"},null,null,null,null,{"$f":"$H$24","v":"Eingabe: Anzahl  Ferientage pro Jahr, Faktor: 1.5 AT pro Ferientag"}]
["K7","K7",{"$f":"C$25","v":"Besondere und übrige Aufgaben"},null,null,null,null,{"$f":"H157","v":0}]
["K8","K8",{"$f":"C$26","v":"…"}]
["K9","K9",{"$f":"C$27","v":"…"}]
["K10","K10",{"$f":"C$28","v":"…"}]
["K11","K11",{"$f":"C$29","v":"…"}]
["K12","K12",{"$f":"C$30","v":"…"}]
[]
[]
[]
[]
[]
[]
[null,null,"Erwachsenenbildung"]
[null,null,"Pfarrpersonen",null,null,{"$f":"Pfarrpersonen!A8","v":"Gesamtpensum"}]
[{"$f":"CONCATENATE($F$182,B183)","v":"GesamtpensumE0"},"E0","Arbeitsbereich Erwachsenenbildung",null,null,{"$f":"$F$17","v":"Anzahl "},"Bemerkung (Hauptverantwortung, Planung, konzeptioneller Ansatz)","Erklärungen zu den Berechnung / Kalkulations-Faktoren "]
[null,null,null,null,null,{"$f":"$F$18","v":0}]
[{"$f":"CONCATENATE($F$182,B185)","v":"GesamtpensumE1"},"E1","Veranstaltungen (Bildungsveranstaltungen, Ausflüge, Pilgern, AZ Stunden der Anlässe)",null,null,null,null,"Eingabe: Anzahl Stunden der Anlässe, Faktor: 1.5h pro Anlassstunde"]
["GesamtpensumE2","E2","Gemeindereisen (Tagesausflüge, Tagesreisen, AZ Reisetage)",null,null,null,null,"Eingabe: Anzahl  Reisetage pro Jahr, Faktor: 1.5 AT pro Reisetag"]
["GesamtpensumE3","E3","Gemeindeferien (Mehrtägige Reisen, AZ Reisetage)",null,null,null,null,"Eingabe: Anzahl  Ferientage pro Jahr, Faktor: 1.5 AT pro Ferientag"]
["GesamtpensumE4","E4","Gruppen/Freiwillige"]
["GesamtpensumE5","E5","Besondere und übrige Aufgaben"]
["GesamtpensumE6","E6","…"]
["GesamtpensumE7","E7","…"]
["GesamtpensumE8","E8","…"]
["GesamtpensumE9","E9","…"]
["GesamtpensumE10","E10","…"]
[]
[null,null,{"$f":"Pfarrpersonen!A8","v":"Gesamtpensum"},null,null,{"$f":"Pfarrpersonen!A9","v":"Delta"}]
[{"$f":"CONCATENATE($F$196,B197)","v":"DeltaE0"},{"$f":"B183","v":"E0"},{"$f":"$C$183","v":"Arbeitsbereich Erwachsenenbildung"},null,null,{"$f":"$F$17","v":"Anzahl "},{"$f":"$G$183","v":"Bemerkung (Hauptverantwortung, Planung, konzeptioneller Ansatz)"},{"$f":"$H$183","v":"Erklärungen zu den Berechnung / Kalkulations-Faktoren "}]
[null,0,null,null,null,{"$f":"$F$18","v":0},null,{"$f":"$H$184","v":0}]
[{"$f":"CONCATENATE($F$196,B199)","v":"DeltaE1"},"E1",{"$f":"C$185","v":"Veranstaltungen (Bildungsveranstaltungen, Ausflüge, Pilgern, AZ Stunden der Anlässe)"},null,null,null,null,{"$f":"$H$185","v":"Eingabe: Anzahl Stunden der Anlässe, Faktor: 1.5h pro Anlassstunde"}]
["DeltaE2","E2",{"$f":"C$186","v":"Gemeindereisen (Tagesausflüge, Tagesreisen, AZ Reisetage)"},null,null,null,null,{"$f":"$H$186","v":"Eingabe: Anzahl  Reisetage pro Jahr, Faktor: 1.5 AT pro Reisetag"}]
["DeltaE3","E3",{"$f":"C$187","v":"Gemeindeferien (Mehrtägige Reisen, AZ Reisetage)"},null,null,null,null,{"$f":"$H$187","v":"Eingabe: Anzahl  Ferientage pro Jahr, Faktor: 1.5 AT pro Ferientag"}]
["DeltaE4","E4",{"$f":"C$188","v":"Gruppen/Freiwillige"},null,null,null,null,{"$f":"$H$188","v":0}]
["DeltaE5","E5",{"$f":"C$189","v":"Besondere und übrige Aufgaben"},null,null,null,null,{"$f":"$H$189","v":0}]
["DeltaE6","E6",{"$f":"C$190","v":"…"},null,null,null,null,{"$f":"$H$194","v":0}]
["DeltaE7","E7",{"$f":"C$191","v":"…"},null,null,null,null,{"$f":"$H$194","v":0}]
["DeltaE8","E8",{"$f":"C$192","v":"…"},null,null,null,null,{"$f":"$H$194","v":0}]
["DeltaE9","E9",{"$f":"C$193","v":"…"},null,null,null,null,{"$f":"$H$194","v":0}]
["DeltaE10","E10",{"$f":"C$194","v":"…"},null,null,null,null,{"$f":"$H$194","v":0}]
[]
[null,null,"Pfarrperson"]
[{"$f":"CONCATENATE($F$210,B211)","v":"E0"},{"$f":"B197","v":"E0"},{"$f":"$C$183","v":"Arbeitsbereich Erwachsenenbildung"},null,null,{"$f":"$F$17","v":"Anzahl "},{"$f":"$G$183","v":"Bemerkung (Hauptverantwortung, Planung, konzeptioneller Ansatz)"},{"$f":"$H$183","v":"Erklärungen zu den Berechnung / Kalkulations-Faktoren "}]
["0",0,null,null,null,{"$f":"$F$18","v":0},null,{"$f":"$H$184","v":0}]
["E1","E1",{"$f":"C$185","v":"Veranstaltungen (Bildungsveranstaltungen, Ausflüge, Pilgern, AZ Stunden der Anlässe)"},null,null,null,null,{"$f":"$H$185","v":"Eingabe: Anzahl Stunden der Anlässe, Faktor: 1.5h pro Anlassstunde"}]
["E2","E2",{"$f":"C$186","v":"Gemeindereisen (Tagesausflüge, Tagesreisen, AZ Reisetage)"},null,null,null,null,{"$f":"$H$186","v":"Eingabe: Anzahl  Reisetage pro Jahr, Faktor: 1.5 AT pro Reisetag"}]
["E3","E3",{"$f":"C$187","v":"Gemeindeferien (Mehrtägige Reisen, AZ Reisetage)"},null,null,null,null,{"$f":"$H$187","v":"Eingabe: Anzahl  Ferientage pro Jahr, Faktor: 1.5 AT pro Ferientag"}]
["E4","E4",{"$f":"C$188","v":"Gruppen/Freiwillige"},null,null,null,null,{"$f":"$H$188","v":0}]
["E5","E5",{"$f":"C$189","v":"Besondere und übrige Aufgaben"},null,null,null,null,{"$f":"$H$189","v":0}]
["E6","E6",{"$f":"C$190","v":"…"},null,null,null,null,{"$f":"$H$194","v":0}]
["E7","E7",{"$f":"C$191","v":"…"},null,null,null,null,{"$f":"$H$194","v":0}]
["E8","E8",{"$f":"C$192","v":"…"},null,null,null,null,{"$f":"$H$194","v":0}]
["E9","E9",{"$f":"C$193","v":"…"},null,null,null,null,{"$f":"$H$194","v":0}]
["E10","E10",{"$f":"C$194","v":"…"},null,null,null,null,{"$f":"$H$194","v":0}]
[]
[null,null,"Pfarrperson"]
[{"$f":"CONCATENATE($F$224,B225)","v":"E0"},{"$f":"B211","v":"E0"},{"$f":"$C$183","v":"Arbeitsbereich Erwachsenenbildung"},null,null,{"$f":"$F$17","v":"Anzahl "},{"$f":"$G$183","v":"Bemerkung (Hauptverantwortung, Planung, konzeptioneller Ansatz)"},{"$f":"$H$183","v":"Erklärungen zu den Berechnung / Kalkulations-Faktoren "}]
["0",0,null,null,null,{"$f":"$F$18","v":0},null,{"$f":"$H$184","v":0}]
["E1","E1",{"$f":"C$185","v":"Veranstaltungen (Bildungsveranstaltungen, Ausflüge, Pilgern, AZ Stunden der Anlässe)"},null,null,null,null,{"$f":"$H$185","v":"Eingabe: Anzahl Stunden der Anlässe, Faktor: 1.5h pro Anlassstunde"}]
["E2","E2",{"$f":"C$186","v":"Gemeindereisen (Tagesausflüge, Tagesreisen, AZ Reisetage)"},null,null,null,null,{"$f":"$H$186","v":"Eingabe: Anzahl  Reisetage pro Jahr, Faktor: 1.5 AT pro Reisetag"}]
["E3","E3",{"$f":"C$187","v":"Gemeindeferien (Mehrtägige Reisen, AZ Reisetage)"},null,null,null,null,{"$f":"$H$187","v":"Eingabe: Anzahl  Ferientage pro Jahr, Faktor: 1.5 AT pro Ferientag"}]
["E4","E4",{"$f":"C$188","v":"Gruppen/Freiwillige"},null,null,null,null,{"$f":"$H$188","v":0}]
["E5","E5",{"$f":"C$189","v":"Besondere und übrige Aufgaben"},null,null,null,null,{"$f":"$H$189","v":0}]
["E6","E6",{"$f":"C$190","v":"…"},null,null,null,null,{"$f":"$H$194","v":0}]
["E7","E7",{"$f":"C$191","v":"…"},null,null,null,null,{"$f":"$H$194","v":0}]
["E8","E8",{"$f":"C$192","v":"…"},null,null,null,null,{"$f":"$H$194","v":0}]
["E9","E9",{"$f":"C$193","v":"…"},null,null,null,null,{"$f":"$H$194","v":0}]
["E10","E10",{"$f":"C$194","v":"…"},null,null,null,null,{"$f":"$H$194","v":0}]
[]
[null,null,"Pfarrperson"]
[{"$f":"CONCATENATE($F$238,B239)","v":"E0"},{"$f":"B225","v":"E0"},{"$f":"$C$183","v":"Arbeitsbereich Erwachsenenbildung"},null,null,{"$f":"$F$17","v":"Anzahl "},{"$f":"$G$183","v":"Bemerkung (Hauptverantwortung, Planung, konzeptioneller Ansatz)"},{"$f":"$H$183","v":"Erklärungen zu den Berechnung / Kalkulations-Faktoren "}]
["0",0,null,null,null,{"$f":"$F$18","v":0},null,{"$f":"$H$184","v":0}]
["E1","E1",{"$f":"C$185","v":"Veranstaltungen (Bildungsveranstaltungen, Ausflüge, Pilgern, AZ Stunden der Anlässe)"},null,null,null,null,{"$f":"$H$185","v":"Eingabe: Anzahl Stunden der Anlässe, Faktor: 1.5h pro Anlassstunde"}]
["E2","E2",{"$f":"C$186","v":"Gemeindereisen (Tagesausflüge, Tagesreisen, AZ Reisetage)"},null,null,null,null,{"$f":"$H$186","v":"Eingabe: Anzahl  Reisetage pro Jahr, Faktor: 1.5 AT pro Reisetag"}]
["E3","E3",{"$f":"C$187","v":"Gemeindeferien (Mehrtägige Reisen, AZ Reisetage)"},null,null,null,null,{"$f":"$H$187","v":"Eingabe: Anzahl  Ferientage pro Jahr, Faktor: 1.5 AT pro Ferientag"}]
["E4","E4",{"$f":"C$188","v":"Gruppen/Freiwillige"},null,null,null,null,{"$f":"$H$188","v":0}]
["E5","E5",{"$f":"C$189","v":"Besondere und übrige Aufgaben"},null,null,null,null,{"$f":"$H$189","v":0}]
["E6","E6",{"$f":"C$190","v":"…"},null,null,null,null,{"$f":"$H$194","v":0}]
["E7","E7",{"$f":"C$191","v":"…"},null,null,null,null,{"$f":"$H$194","v":0}]
["E8","E8",{"$f":"C$192","v":"…"},null,null,null,null,{"$f":"$H$194","v":0}]
["E9","E9",{"$f":"C$193","v":"…"},null,null,null,null,{"$f":"$H$194","v":0}]
["E10","E10",{"$f":"C$194","v":"…"},null,null,null,null,{"$f":"$H$194","v":0}]
[]
[null,null,"Pfarrperson"]
[{"$f":"CONCATENATE($F$252,B253)","v":"E0"},{"$f":"B239","v":"E0"},{"$f":"$C$183","v":"Arbeitsbereich Erwachsenenbildung"},null,null,{"$f":"$F$17","v":"Anzahl "},{"$f":"$G$183","v":"Bemerkung (Hauptverantwortung, Planung, konzeptioneller Ansatz)"},{"$f":"$H$183","v":"Erklärungen zu den Berechnung / Kalkulations-Faktoren "}]
["0",0,null,null,null,{"$f":"$F$18","v":0},null,{"$f":"$H$184","v":0}]
["E1","E1",{"$f":"C$185","v":"Veranstaltungen (Bildungsveranstaltungen, Ausflüge, Pilgern, AZ Stunden der Anlässe)"},null,null,null,null,{"$f":"$H$185","v":"Eingabe: Anzahl Stunden der Anlässe, Faktor: 1.5h pro Anlassstunde"}]
["E2","E2",{"$f":"C$186","v":"Gemeindereisen (Tagesausflüge, Tagesreisen, AZ Reisetage)"},null,null,null,null,{"$f":"$H$186","v":"Eingabe: Anzahl  Reisetage pro Jahr, Faktor: 1.5 AT pro Reisetag"}]
["E3","E3",{"$f":"C$187","v":"Gemeindeferien (Mehrtägige Reisen, AZ Reisetage)"},null,null,null,null,{"$f":"$H$187","v":"Eingabe: Anzahl  Ferientage pro Jahr, Faktor: 1.5 AT pro Ferientag"}]
["E4","E4",{"$f":"C$188","v":"Gruppen/Freiwillige"},null,null,null,null,{"$f":"$H$188","v":0}]
["E5","E5",{"$f":"C$189","v":"Besondere und übrige Aufgaben"},null,null,null,null,{"$f":"$H$189","v":0}]
["E6","E6",{"$f":"C$190","v":"…"},null,null,null,null,{"$f":"$H$194","v":0}]
["E7","E7",{"$f":"C$191","v":"…"},null,null,null,null,{"$f":"$H$194","v":0}]
["E8","E8",{"$f":"C$192","v":"…"},null,null,null,null,{"$f":"$H$194","v":0}]
["E9","E9",{"$f":"C$193","v":"…"},null,null,null,null,{"$f":"$H$194","v":0}]
["E10","E10",{"$f":"C$194","v":"…"},null,null,null,null,{"$f":"$H$194","v":0}]
[]
[null,null,"Pfarrperson"]
[{"$f":"CONCATENATE($F$266,B267)","v":"E0"},{"$f":"B253","v":"E0"},{"$f":"$C$183","v":"Arbeitsbereich Erwachsenenbildung"},null,null,{"$f":"$F$17","v":"Anzahl "},{"$f":"$G$183","v":"Bemerkung (Hauptverantwortung, Planung, konzeptioneller Ansatz)"},{"$f":"$H$183","v":"Erklärungen zu den Berechnung / Kalkulations-Faktoren "}]
["0",0,null,null,null,{"$f":"$F$18","v":0},null,{"$f":"$H$184","v":0}]
["E1","E1",{"$f":"C$185","v":"Veranstaltungen (Bildungsveranstaltungen, Ausflüge, Pilgern, AZ Stunden der Anlässe)"},null,null,null,null,{"$f":"$H$185","v":"Eingabe: Anzahl Stunden der Anlässe, Faktor: 1.5h pro Anlassstunde"}]
["E2","E2",{"$f":"C$186","v":"Gemeindereisen (Tagesausflüge, Tagesreisen, AZ Reisetage)"},null,null,null,null,{"$f":"$H$186","v":"Eingabe: Anzahl  Reisetage pro Jahr, Faktor: 1.5 AT pro Reisetag"}]
["E3","E3",{"$f":"C$187","v":"Gemeindeferien (Mehrtägige Reisen, AZ Reisetage)"},null,null,null,null,{"$f":"$H$187","v":"Eingabe: Anzahl  Ferientage pro Jahr, Faktor: 1.5 AT pro Ferientag"}]
["E4","E4",{"$f":"C$188","v":"Gruppen/Freiwillige"},null,null,null,null,{"$f":"$H$188","v":0}]
["E5","E5",{"$f":"C$189","v":"Besondere und übrige Aufgaben"},null,null,null,null,{"$f":"$H$189","v":0}]
["E6","E6",{"$f":"C$190","v":"…"},null,null,null,null,{"$f":"$H$194","v":0}]
["E7","E7",{"$f":"C$191","v":"…"},null,null,null,null,{"$f":"$H$194","v":0}]
["E8","E8",{"$f":"C$192","v":"…"},null,null,null,null,{"$f":"$H$194","v":0}]
["E9","E9",{"$f":"C$193","v":"…"},null,null,null,null,{"$f":"$H$194","v":0}]
["E10","E10",{"$f":"C$194","v":"…"},null,null,null,null,{"$f":"$H$194","v":0}]
[]
[null,null,"Pfarrperson"]
[{"$f":"CONCATENATE($F$280,B281)","v":"E0"},{"$f":"B267","v":"E0"},{"$f":"$C$183","v":"Arbeitsbereich Erwachsenenbildung"},null,null,{"$f":"$F$17","v":"Anzahl "},{"$f":"$G$183","v":"Bemerkung (Hauptverantwortung, Planung, konzeptioneller Ansatz)"},{"$f":"$H$183","v":"Erklärungen zu den Berechnung / Kalkulations-Faktoren "}]
["0",0,null,null,null,{"$f":"$F$18","v":0},null,{"$f":"$H$184","v":0}]
["E1","E1",{"$f":"C$185","v":"Veranstaltungen (Bildungsveranstaltungen, Ausflüge, Pilgern, AZ Stunden der Anlässe)"},null,null,null,null,{"$f":"$H$185","v":"Eingabe: Anzahl Stunden der Anlässe, Faktor: 1.5h pro Anlassstunde"}]
["E2","E2",{"$f":"C$186","v":"Gemeindereisen (Tagesausflüge, Tagesreisen, AZ Reisetage)"},null,null,null,null,{"$f":"$H$186","v":"Eingabe: Anzahl  Reisetage pro Jahr, Faktor: 1.5 AT pro Reisetag"}]
["E3","E3",{"$f":"C$187","v":"Gemeindeferien (Mehrtägige Reisen, AZ Reisetage)"},null,null,null,null,{"$f":"$H$187","v":"Eingabe: Anzahl  Ferientage pro Jahr, Faktor: 1.5 AT pro Ferientag"}]
["E4","E4",{"$f":"C$188","v":"Gruppen/Freiwillige"},null,null,null,null,{"$f":"$H$188","v":0}]
["E5","E5",{"$f":"C$189","v":"Besondere und übrige Aufgaben"},null,null,null,null,{"$f":"$H$189","v":0}]
["E6","E6",{"$f":"C$190","v":"…"},null,null,null,null,{"$f":"$H$194","v":0}]
["E7","E7",{"$f":"C$191","v":"…"},null,null,null,null,{"$f":"$H$194","v":0}]
["E8","E8",{"$f":"C$192","v":"…"},null,null,null,null,{"$f":"$H$194","v":0}]
["E9","E9",{"$f":"C$193","v":"…"},null,null,null,null,0]
["E10","E10",{"$f":"C$194","v":"…"},null,null,null,null,0]
[]
[null,null,"Pfarrperson"]
[{"$f":"CONCATENATE($F$294,B295)","v":"E0"},{"$f":"B281","v":"E0"},{"$f":"$C$183","v":"Arbeitsbereich Erwachsenenbildung"},null,null,{"$f":"$F$17","v":"Anzahl "},{"$f":"$G$183","v":"Bemerkung (Hauptverantwortung, Planung, konzeptioneller Ansatz)"},{"$f":"$H$183","v":"Erklärungen zu den Berechnung / Kalkulations-Faktoren "}]
["0",0,null,null,null,{"$f":"$F$18","v":0},null,{"$f":"$H$184","v":0}]
["E1","E1",{"$f":"C$185","v":"Veranstaltungen (Bildungsveranstaltungen, Ausflüge, Pilgern, AZ Stunden der Anlässe)"},null,null,null,null,{"$f":"$H$185","v":"Eingabe: Anzahl Stunden der Anlässe, Faktor: 1.5h pro Anlassstunde"}]
["E2","E2",{"$f":"C$186","v":"Gemeindereisen (Tagesausflüge, Tagesreisen, AZ Reisetage)"},null,null,null,null,{"$f":"$H$186","v":"Eingabe: Anzahl  Reisetage pro Jahr, Faktor: 1.5 AT pro Reisetag"}]
["E3","E3",{"$f":"C$187","v":"Gemeindeferien (Mehrtägige Reisen, AZ Reisetage)"},null,null,null,null,{"$f":"$H$187","v":"Eingabe: Anzahl  Ferientage pro Jahr, Faktor: 1.5 AT pro Ferientag"}]
["E4","E4",{"$f":"C$188","v":"Gruppen/Freiwillige"},null,null,null,null,{"$f":"$H$188","v":0}]
["E5","E5",{"$f":"C$189","v":"Besondere und übrige Aufgaben"},null,null,null,null,{"$f":"$H$189","v":0}]
["E6","E6",{"$f":"C$190","v":"…"},null,null,null,null,{"$f":"$H$194","v":0}]
["E7","E7",{"$f":"C$191","v":"…"},null,null,null,null,{"$f":"$H$194","v":0}]
["E8","E8",{"$f":"C$192","v":"…"},null,null,null,null,{"$f":"$H$194","v":0}]
["E9","E9",{"$f":"C$193","v":"…"},null,null,null,null,{"$f":"$H$194","v":0}]
["E10","E10",{"$f":"C$194","v":"…"},null,null,null,null,{"$f":"$H$194","v":0}]
[]
[null,null,"Pfarrperson"]
[{"$f":"CONCATENATE($F$308,B309)","v":"E0"},{"$f":"B295","v":"E0"},{"$f":"$C$183","v":"Arbeitsbereich Erwachsenenbildung"},null,null,{"$f":"$F$17","v":"Anzahl "},{"$f":"$G$183","v":"Bemerkung (Hauptverantwortung, Planung, konzeptioneller Ansatz)"},{"$f":"$H$183","v":"Erklärungen zu den Berechnung / Kalkulations-Faktoren "}]
["0",0,null,null,null,{"$f":"$F$18","v":0},null,{"$f":"$H$184","v":0}]
["E1","E1",{"$f":"C$185","v":"Veranstaltungen (Bildungsveranstaltungen, Ausflüge, Pilgern, AZ Stunden der Anlässe)"},null,null,null,null,{"$f":"$H$185","v":"Eingabe: Anzahl Stunden der Anlässe, Faktor: 1.5h pro Anlassstunde"}]
["E2","E2",{"$f":"C$186","v":"Gemeindereisen (Tagesausflüge, Tagesreisen, AZ Reisetage)"},null,null,null,null,{"$f":"$H$186","v":"Eingabe: Anzahl  Reisetage pro Jahr, Faktor: 1.5 AT pro Reisetag"}]
["E3","E3",{"$f":"C$187","v":"Gemeindeferien (Mehrtägige Reisen, AZ Reisetage)"},null,null,null,null,{"$f":"$H$187","v":"Eingabe: Anzahl  Ferientage pro Jahr, Faktor: 1.5 AT pro Ferientag"}]
["E4","E4",{"$f":"C$188","v":"Gruppen/Freiwillige"},null,null,null,null,{"$f":"$H$188","v":0}]
["E5","E5",{"$f":"C$189","v":"Besondere und übrige Aufgaben"},null,null,null,null,{"$f":"$H$189","v":0}]
["E6","E6",{"$f":"C$190","v":"…"},null,null,null,null,{"$f":"$H$194","v":0}]
["E7","E7",{"$f":"C$191","v":"…"},null,null,null,null,{"$f":"$H$194","v":0}]
["E8","E8",{"$f":"C$192","v":"…"},null,null,null,null,0]
["E9","E9",{"$f":"C$193","v":"…"},null,null,null,null,0]
["E10","E10",{"$f":"C$194","v":"…"},null,null,null,null,0]

{"sheet":"Erw_Aufb.&Leit.","index":15,"n_rows":105,"n_cols":4,"rows_kept":105,"cut":false,"hidden":false,"merged":[[0,1,0,2],[2,3,13,3],[27,3,38,3],[54,3,65,3],[104,3,116,3]]}
[null,"Pfarramtliche Verantwortungsbereiche im Handlungsfeld \nGemeindeaufbau und Leitung"]
[]
[null,null,null,"Hier ist festzuhalten, wie Gemeindeaufbau und Leitung grundsätzlich organisiert sind und wie die Vorgaben der Kirchenpflege betreffend Leitung auf der operativen Ebene umgesetzt werden. Die theologische Reflexion der Organisation der Gemeinde sollte sich hier zusammengefasst abbilden. "]
[]
[]
[]
[]
[]
[]
[]
[]
[]
[]
[]
[]
[]
[]
[]
[]
[]
[]
[]
[]
[]
[]
[]
[]
[null,null,null,"Hier ist festzuhalten, welche Team- oder Kommissionsaufträge, Projekte oder Schwerpunkte bestehen. Hier sind auch die bestehenden Teams zu erwähnen und wie sie organisiert sind. Mit der Einbettung des Pfarramts in die Gesamtheit der Mitarbeitenden wird die interprofessionelle Zusammenarbeit gefördert."]
[]
[]
[]
[]
[]
[]
[]
[]
[]
[]
[]
[]
[]
[]
[]
[]
[]
[]
[]
[]
[]
[]
[]
[]
[]
[]
[null,null,null,"Hier ist festzuhalten, welches Engagement bei grösseren Gemeindezusammenschlüssen für die Gesamtgemeinde oder die Region geleistet wird."]
[]
[]
[]
[]
[]
[]
[]
[]
[]
[]
[]
[]
[]
[]
[]
[]
[]
[]
[]
[]
[]
[]
[]
[]
[]
[]
[]
[]
[]
[]
[]
[]
[]
[]
[]
[]
[]
[]
[]
[]
[]
[]
[]
[]
[]
[]
[]
[]
[]
[null,null,null,"Hier ist festzuhalten, welche besonderen Projekte oder Innovationen bestehen oder für die unmittelbare Zukunft geplant sind. Ein besonderes Augenmerk ist dabei auf die Förderung der Vielfalt kirchlicher Orte und auf vielfältige Formen des gemeindlichen Lebens zu legen wie auch auf  Formen der Partizipation."]

{"sheet":"A&V_Aufb.&Leit.","index":16,"n_rows":336,"n_cols":8,"rows_kept":336,"cut":false,"hidden":false,"merged":[[1,7,4,7],[2,2,2,6],[9,2,9,6]]}
[null,null,"Pfarramtliche Aufgaben- und Verantwortungsbereiche im Handlungsfeld Gemeindeaufbau und Leitung"]
[]
[]
[]
[]
[]
[]
[]
[]
[]
[]
[]
[]
[]
[null,null,"Gemeindeleitung"]
[null,null,"Pfarrpersonen",null,null,{"$f":"Pfarrpersonen!A8","v":"Gesamtpensum"}]
[{"$f":"CONCATENATE($F$16,B17)","v":"GesamtpensumG0"},"G0","Arbeitsbereich Gemeindeleitung",null,null,"Anzahl","Bemerkung (Hauptverantwortung, Planung, konzeptioneller Ansatz)","Erklärungen zu den Berechnung / Kalkulations-Faktoren "]
[]
[{"$f":"CONCATENATE($F$16,B19)","v":"GesamtpensumG1"},"G1","Sitzungen Pfarrkonvent",null,null,null,null,"Eingabe: Anzahl Sitzungen pro Jahr, Faktor: 2 h pro Sitzung"]
["GesamtpensumG2","G2","Leitung Pfarrkonvent (in AT)",null,null,null,null,"Geschätzter Aufwand in Tagen pro Jahr"]
["GesamtpensumG3","G3","Vertretung des Pfarrkonvents in der KP",null,null,null,null,"Eingabe: Anzahl Sitzungen pro Jahr, Faktor: 3 h pro Sitzung"]
["GesamtpensumG4","G4","Sitzungen Gemeindekonvent",null,null,null,null,"Eingabe: Anzahl Sitzungen pro Jahr, Faktor: 4 h pro Sitzung"]
["GesamtpensumG5","G5","Kommissionen",null,null,null,null,"Eingabe: Anzahl Sitzungen pro Jahr, Faktor: 1.5 h pro Sitzung"]
["GesamtpensumG6","G6","Arbeitsgruppen",null,null,null,null,"Eingabe: Anzahl Sitzungen pro Jahr, Faktor: 1.5 h pro Sitzung"]
["GesamtpensumG7","G7","Schwerpunktleitung"]
["GesamtpensumG8","G8","…"]
["GesamtpensumG9","G9","…"]
["GesamtpensumG10","G10","…"]
["GesamtpensumG11","G11","…"]
["GesamtpensumG12","G12","…"]
[]
[null,null,{"$f":"Pfarrpersonen!A8","v":"Gesamtpensum"},null,null,{"$f":"Pfarrpersonen!A9","v":"Delta"}]
[{"$f":"CONCATENATE($F$32,B33)","v":"DeltaG0"},{"$f":"B17","v":"G0"},{"$f":"$C$17","v":"Arbeitsbereich Gemeindeleitung"},null,null,{"$f":"$F$17","v":"Anzahl"},{"$f":"$G$17","v":"Bemerkung (Hauptverantwortung, Planung, konzeptioneller Ansatz)"},{"$f":"$H$17","v":"Erklärungen zu den Berechnung / Kalkulations-Faktoren "}]
[null,0,{"$f":"$C$18","v":0},null,null,{"$f":"$F$18","v":0},{"$f":"$G$18","v":0},{"$f":"$H$18","v":0}]
[{"$f":"CONCATENATE($F$32,B35)","v":"DeltaG1"},"G1",{"$f":"C$19","v":"Sitzungen Pfarrkonvent"},null,null,null,null,{"$f":"$H$19","v":"Eingabe: Anzahl Sitzungen pro Jahr, Faktor: 2 h pro Sitzung"}]
["DeltaG2","G2",{"$f":"C$20","v":"Leitung Pfarrkonvent (in AT)"},null,null,null,null,{"$f":"$H$20","v":"Geschätzter Aufwand in Tagen pro Jahr"}]
["DeltaG3","G3",{"$f":"C$21","v":"Vertretung des Pfarrkonvents in der KP"},null,null,null,null,{"$f":"$H$21","v":"Eingabe: Anzahl Sitzungen pro Jahr, Faktor: 3 h pro Sitzung"}]
["DeltaG4","G4",{"$f":"C$22","v":"Sitzungen Gemeindekonvent"},null,null,null,null,{"$f":"$H$22","v":"Eingabe: Anzahl Sitzungen pro Jahr, Faktor: 4 h pro Sitzung"}]
["DeltaG5","G5",{"$f":"C$23","v":"Kommissionen"},null,null,null,null,{"$f":"$H$23","v":"Eingabe: Anzahl Sitzungen pro Jahr, Faktor: 1.5 h pro Sitzung"}]
["DeltaG6",{"$f":"B24","v":"G6"},{"$f":"C$24","v":"Arbeitsgruppen"},null,null,null,null,{"$f":"$H$24","v":"Eingabe: Anzahl Sitzungen pro Jahr, Faktor: 1.5 h pro Sitzung"}]
["DeltaG7","G7",{"$f":"C$25","v":"Schwerpunktleitung"},null,null,null,null,{"$f":"$H$25","v":0}]
["DeltaG8","G8",{"$f":"C$26","v":"…"},null,null,null,null,{"$f":"$H$29","v":0}]
["DeltaG9","G9",{"$f":"C$27","v":"…"},null,null,null,null,{"$f":"$H$30","v":0}]
["DeltaG10","G10",{"$f":"C$28","v":"…"},null,null,null,null,{"$f":"$H$30","v":0}]
["DeltaG11","G11",{"$f":"C$29","v":"…"},null,null,null,null,{"$f":"$H$29","v":0}]
["DeltaG12","G12",{"$f":"C$30","v":"…"},null,null,null,null,{"$f":"$H$30","v":0}]
[null,null,null,null,null,null,null,{"$f":"H31","v":0}]
[null,null,"Pfarrperson"]
[{"$f":"CONCATENATE($F$48,B49)","v":"G0"},{"$f":"B33","v":"G0"},{"$f":"$C$17","v":"Arbeitsbereich Gemeindeleitung"},null,null,{"$f":"$F$17","v":"Anzahl"},{"$f":"$G$17","v":"Bemerkung (Hauptverantwortung, Planung, konzeptioneller Ansatz)"},{"$f":"$H$17","v":"Erklärungen zu den Berechnung / Kalkulations-Faktoren "}]
["0",0,{"$f":"$C$18","v":0},null,null,{"$f":"$F$18","v":0},{"$f":"$G$18","v":0},{"$f":"$H$18","v":0}]
["G1","G1",{"$f":"C$19","v":"Sitzungen Pfarrkonvent"},null,null,null,null,{"$f":"$H$19","v":"Eingabe: Anzahl Sitzungen pro Jahr, Faktor: 2 h pro Sitzung"}]
["G2","G2",{"$f":"C$20","v":"Leitung Pfarrkonvent (in AT)"},null,null,null,null,{"$f":"$H$20","v":"Geschätzter Aufwand in Tagen pro Jahr"}]
["G3","G3",{"$f":"C$21","v":"Vertretung des Pfarrkonvents in der KP"},null,null,null,null,{"$f":"$H$21","v":"Eingabe: Anzahl Sitzungen pro Jahr, Faktor: 3 h pro Sitzung"}]
["G4","G4",{"$f":"C$22","v":"Sitzungen Gemeindekonvent"},null,null,null,null,{"$f":"$H$22","v":"Eingabe: Anzahl Sitzungen pro Jahr, Faktor: 4 h pro Sitzung"}]
["G5","G5",{"$f":"C$23","v":"Kommissionen"},null,null,null,null,{"$f":"$H$23","v":"Eingabe: Anzahl Sitzungen pro Jahr, Faktor: 1.5 h pro Sitzung"}]
["G6","G6",{"$f":"C$24","v":"Arbeitsgruppen"},null,null,null,null,{"$f":"$H$24","v":"Eingabe: Anzahl Sitzungen pro Jahr, Faktor: 1.5 h pro Sitzung"}]
["G7","G7",{"$f":"C$25","v":"Schwerpunktleitung"},null,null,null,null,{"$f":"$H$25","v":0}]
["G8","G8",{"$f":"C$26","v":"…"},null,null,null,null,{"$f":"$H$29","v":0}]
["G9","G9",{"$f":"C$27","v":"…"},null,null,null,null,{"$f":"$H$29","v":0}]
["G10","G10",{"$f":"C$28","v":"…"},null,null,null,null,{"$f":"$H$30","v":0}]
["G11","G11",{"$f":"C$29","v":"…"},null,null,null,null,{"$f":"$H$29","v":0}]
["G12","G12",{"$f":"C$30","v":"…"},null,null,null,null,{"$f":"$H$30","v":0}]
[null,null,null,null,null,null,null,{"$f":"H47","v":0}]
[null,null,"Pfarrperson"]
[{"$f":"CONCATENATE($F$64,B65)","v":"G0"},{"$f":"B49","v":"G0"},{"$f":"$C$17","v":"Arbeitsbereich Gemeindeleitung"},null,null,{"$f":"$F$17","v":"Anzahl"},{"$f":"$G$17","v":"Bemerkung (Hauptverantwortung, Planung, konzeptioneller Ansatz)"},{"$f":"$H$17","v":"Erklärungen zu den Berechnung / Kalkulations-Faktoren "}]
["0",0,{"$f":"$C$18","v":0},null,null,{"$f":"$F$18","v":0},{"$f":"$G$18","v":0},{"$f":"$H$18","v":0}]
["G1","G1",{"$f":"C$19","v":"Sitzungen Pfarrkonvent"},null,null,null,null,{"$f":"$H$19","v":"Eingabe: Anzahl Sitzungen pro Jahr, Faktor: 2 h pro Sitzung"}]
["G2","G2",{"$f":"C$20","v":"Leitung Pfarrkonvent (in AT)"},null,null,null,null,{"$f":"$H$20","v":"Geschätzter Aufwand in Tagen pro Jahr"}]
["G3","G3",{"$f":"C$21","v":"Vertretung des Pfarrkonvents in der KP"},null,null,null,null,{"$f":"$H$21","v":"Eingabe: Anzahl Sitzungen pro Jahr, Faktor: 3 h pro Sitzung"}]
["G4","G4",{"$f":"C$22","v":"Sitzungen Gemeindekonvent"},null,null,null,null,{"$f":"$H$22","v":"Eingabe: Anzahl Sitzungen pro Jahr, Faktor: 4 h pro Sitzung"}]
["G5","G5",{"$f":"C$23","v":"Kommissionen"},null,null,null,null,{"$f":"$H$23","v":"Eingabe: Anzahl Sitzungen pro Jahr, Faktor: 1.5 h pro Sitzung"}]
["G6","G6",{"$f":"C$24","v":"Arbeitsgruppen"},null,null,null,null,{"$f":"$H$24","v":"Eingabe: Anzahl Sitzungen pro Jahr, Faktor: 1.5 h pro Sitzung"}]
["G7","G7",{"$f":"C$25","v":"Schwerpunktleitung"},null,null,null,null,{"$f":"$H$25","v":0}]
["G8","G8",{"$f":"C$26","v":"…"},null,null,null,null,{"$f":"$H$29","v":0}]
["G9","G9",{"$f":"C$27","v":"…"},null,null,null,null,{"$f":"$H$29","v":0}]
["G10","G10",{"$f":"C$28","v":"…"},null,null,null,null,{"$f":"$H$30","v":0}]
["G11","G11",{"$f":"C$29","v":"…"},null,null,null,null,{"$f":"$H$29","v":0}]
["G12","G12",{"$f":"C$30","v":"…"},null,null,null,null,{"$f":"$H$30","v":0}]
[null,null,null,null,null,null,null,{"$f":"H63","v":0}]
[null,null,"Pfarrperson"]
[{"$f":"CONCATENATE($F$80,B81)","v":"G0"},{"$f":"B65","v":"G0"},{"$f":"$C$17","v":"Arbeitsbereich Gemeindeleitung"},null,null,{"$f":"$F$17","v":"Anzahl"},{"$f":"$G$17","v":"Bemerkung (Hauptverantwortung, Planung, konzeptioneller Ansatz)"},{"$f":"$H$17","v":"Erklärungen zu den Berechnung / Kalkulations-Faktoren "}]
["0",0,{"$f":"$C$18","v":0},null,null,{"$f":"$F$18","v":0},{"$f":"$G$18","v":0},{"$f":"$H$18","v":0}]
["G1","G1",{"$f":"C$19","v":"Sitzungen Pfarrkonvent"},null,null,null,null,{"$f":"$H$19","v":"Eingabe: Anzahl Sitzungen pro Jahr, Faktor: 2 h pro Sitzung"}]
["G2","G2",{"$f":"C$20","v":"Leitung Pfarrkonvent (in AT)"},null,null,null,null,{"$f":"$H$20","v":"Geschätzter Aufwand in Tagen pro Jahr"}]
["G3","G3",{"$f":"C$21","v":"Vertretung des Pfarrkonvents in der KP"},null,null,null,null,{"$f":"$H$21","v":"Eingabe: Anzahl Sitzungen pro Jahr, Faktor: 3 h pro Sitzung"}]
["G4","G4",{"$f":"C$22","v":"Sitzungen Gemeindekonvent"},null,null,null,null,{"$f":"$H$22","v":"Eingabe: Anzahl Sitzungen pro Jahr, Faktor: 4 h pro Sitzung"}]
["G5","G5",{"$f":"C$23","v":"Kommissionen"},null,null,null,null,{"$f":"$H$23","v":"Eingabe: Anzahl Sitzungen pro Jahr, Faktor: 1.5 h pro Sitzung"}]
["G6","G6",{"$f":"C$24","v":"Arbeitsgruppen"},null,null,null,null,{"$f":"$H$24","v":"Eingabe: Anzahl Sitzungen pro Jahr, Faktor: 1.5 h pro Sitzung"}]
["G7","G7",{"$f":"C$25","v":"Schwerpunktleitung"},null,null,null,null,{"$f":"$H$25","v":0}]
["G8","G8",{"$f":"C$26","v":"…"},null,null,null,null,{"$f":"$H$29","v":0}]
["G9","G9",{"$f":"C$27","v":"…"},null,null,null,null,{"$f":"$H$29","v":0}]
["G10","G10",{"$f":"C$28","v":"…"},null,null,null,null,{"$f":"$H$30","v":0}]
["G11","G11",{"$f":"C$29","v":"…"},null,null,null,null,{"$f":"$H$29","v":0}]
["G12","G12",{"$f":"C$30","v":"…"},null,null,null,null,{"$f":"$H$30","v":0}]
[null,null,null,null,null,null,null,{"$f":"H79","v":0}]
[null,null,"Pfarrperson"]
[{"$f":"CONCATENATE($F$96,B97)","v":"G0"},{"$f":"B81","v":"G0"},{"$f":"$C$17","v":"Arbeitsbereich Gemeindeleitung"},null,null,{"$f":"$F$17","v":"Anzahl"},{"$f":"$G$17","v":"Bemerkung (Hauptverantwortung, Planung, konzeptioneller Ansatz)"},{"$f":"$H$17","v":"Erklärungen zu den Berechnung / Kalkulations-Faktoren "}]
["0",0,{"$f":"$C$18","v":0},null,null,{"$f":"$F$18","v":0},{"$f":"$G$18","v":0},{"$f":"$H$18","v":0}]
["G1","G1",{"$f":"C$19","v":"Sitzungen Pfarrkonvent"},null,null,null,null,{"$f":"$H$19","v":"Eingabe: Anzahl Sitzungen pro Jahr, Faktor: 2 h pro Sitzung"}]
["G2","G2",{"$f":"C$20","v":"Leitung Pfarrkonvent (in AT)"},null,null,null,null,{"$f":"$H$20","v":"Geschätzter Aufwand in Tagen pro Jahr"}]
["G3","G3",{"$f":"C$21","v":"Vertretung des Pfarrkonvents in der KP"},null,null,null,null,{"$f":"$H$21","v":"Eingabe: Anzahl Sitzungen pro Jahr, Faktor: 3 h pro Sitzung"}]
["G4","G4",{"$f":"C$22","v":"Sitzungen Gemeindekonvent"},null,null,null,null,{"$f":"$H$22","v":"Eingabe: Anzahl Sitzungen pro Jahr, Faktor: 4 h pro Sitzung"}]
["G5","G5",{"$f":"C$23","v":"Kommissionen"},null,null,null,null,{"$f":"$H$23","v":"Eingabe: Anzahl Sitzungen pro Jahr, Faktor: 1.5 h pro Sitzung"}]
["G6","G6",{"$f":"C$24","v":"Arbeitsgruppen"},null,null,null,null,{"$f":"$H$24","v":"Eingabe: Anzahl Sitzungen pro Jahr, Faktor: 1.5 h pro Sitzung"}]
["G7","G7",{"$f":"C$25","v":"Schwerpunktleitung"},null,null,null,null,{"$f":"$H$25","v":0}]
["G8","G8",{"$f":"C$26","v":"…"},null,null,null,null,{"$f":"$H$29","v":0}]
["G9","G9",{"$f":"C$27","v":"…"},null,null,null,null,{"$f":"$H$29","v":0}]
["G10","G10",{"$f":"C$28","v":"…"},null,null,null,null,{"$f":"$H$30","v":0}]
["G11","G11",{"$f":"C$29","v":"…"},null,null,null,null,{"$f":"$H$29","v":0}]
["G12","G12",{"$f":"C$30","v":"…"},null,null,null,null,{"$f":"$H$30","v":0}]
[null,null,null,null,null,null,null,{"$f":"H95","v":0}]
[null,null,"Pfarrperson"]
[{"$f":"CONCATENATE($F$112,B113)","v":"G0"},{"$f":"B97","v":"G0"},{"$f":"$C$17","v":"Arbeitsbereich Gemeindeleitung"},null,null,{"$f":"$F$17","v":"Anzahl"},{"$f":"$G$17","v":"Bemerkung (Hauptverantwortung, Planung, konzeptioneller Ansatz)"},{"$f":"$H$17","v":"Erklärungen zu den Berechnung / Kalkulations-Faktoren "}]
["0",0,{"$f":"$C$18","v":0},null,null,{"$f":"$F$18","v":0},{"$f":"$G$18","v":0},{"$f":"$H$18","v":0}]
["G1","G1",{"$f":"C$19","v":"Sitzungen Pfarrkonvent"},null,null,null,null,{"$f":"$H$19","v":"Eingabe: Anzahl Sitzungen pro Jahr, Faktor: 2 h pro Sitzung"}]
["G2","G2",{"$f":"C$20","v":"Leitung Pfarrkonvent (in AT)"},null,null,null,null,{"$f":"$H$20","v":"Geschätzter Aufwand in Tagen pro Jahr"}]
["G3","G3",{"$f":"C$21","v":"Vertretung des Pfarrkonvents in der KP"},null,null,null,null,{"$f":"$H$21","v":"Eingabe: Anzahl Sitzungen pro Jahr, Faktor: 3 h pro Sitzung"}]
["G4","G4",{"$f":"C$22","v":"Sitzungen Gemeindekonvent"},null,null,null,null,{"$f":"$H$22","v":"Eingabe: Anzahl Sitzungen pro Jahr, Faktor: 4 h pro Sitzung"}]
["G5","G5",{"$f":"C$23","v":"Kommissionen"},null,null,null,null,{"$f":"$H$23","v":"Eingabe: Anzahl Sitzungen pro Jahr, Faktor: 1.5 h pro Sitzung"}]
["G6","G6",{"$f":"C$24","v":"Arbeitsgruppen"},null,null,null,null,{"$f":"$H$24","v":"Eingabe: Anzahl Sitzungen pro Jahr, Faktor: 1.5 h pro Sitzung"}]
["G7","G7",{"$f":"C$25","v":"Schwerpunktleitung"},null,null,null,null,{"$f":"$H$25","v":0}]
["G8","G8",{"$f":"C$26","v":"…"},null,null,null,null,{"$f":"$H$29","v":0}]
["G9","G9",{"$f":"C$27","v":"…"},null,null,null,null,{"$f":"$H$29","v":0}]
["G10","G10",{"$f":"C$28","v":"…"},null,null,null,null,{"$f":"$H$30","v":0}]
["G11","G11",{"$f":"C$29","v":"…"},null,null,null,null,{"$f":"$H$29","v":0}]
["G12","G12",{"$f":"C$30","v":"…"},null,null,null,null,{"$f":"$H$30","v":0}]
[null,null,null,null,null,null,null,{"$f":"H111","v":0}]
[null,null,"Pfarrperson"]
[{"$f":"CONCATENATE($F$128,B129)","v":"G0"},{"$f":"B113","v":"G0"},{"$f":"$C$17","v":"Arbeitsbereich Gemeindeleitung"},null,null,{"$f":"$F$17","v":"Anzahl"},{"$f":"$G$17","v":"Bemerkung (Hauptverantwortung, Planung, konzeptioneller Ansatz)"},{"$f":"$H$17","v":"Erklärungen zu den Berechnung / Kalkulations-Faktoren "}]
["0",0,{"$f":"$C$18","v":0},null,null,{"$f":"$F$18","v":0},{"$f":"$G$18","v":0},{"$f":"$H$18","v":0}]
["G1","G1",{"$f":"C$19","v":"Sitzungen Pfarrkonvent"},null,null,null,null,{"$f":"$H$19","v":"Eingabe: Anzahl Sitzungen pro Jahr, Faktor: 2 h pro Sitzung"}]
["G2","G2",{"$f":"C$20","v":"Leitung Pfarrkonvent (in AT)"},null,null,null,null,{"$f":"$H$20","v":"Geschätzter Aufwand in Tagen pro Jahr"}]
["G3","G3",{"$f":"C$21","v":"Vertretung des Pfarrkonvents in der KP"},null,null,null,null,{"$f":"$H$21","v":"Eingabe: Anzahl Sitzungen pro Jahr, Faktor: 3 h pro Sitzung"}]
["G4","G4",{"$f":"C$22","v":"Sitzungen Gemeindekonvent"},null,null,null,null,{"$f":"$H$22","v":"Eingabe: Anzahl Sitzungen pro Jahr, Faktor: 4 h pro Sitzung"}]
["G5","G5",{"$f":"C$23","v":"Kommissionen"},null,null,null,null,{"$f":"$H$23","v":"Eingabe: Anzahl Sitzungen pro Jahr, Faktor: 1.5 h pro Sitzung"}]
["G6","G6",{"$f":"C$24","v":"Arbeitsgruppen"},null,null,null,null,{"$f":"$H$24","v":"Eingabe: Anzahl Sitzungen pro Jahr, Faktor: 1.5 h pro Sitzung"}]
["G7","G7",{"$f":"C$25","v":"Schwerpunktleitung"},null,null,null,null,{"$f":"$H$25","v":0}]
["G8","G8",{"$f":"C$26","v":"…"},null,null,null,null,{"$f":"$H$29","v":0}]
["G9","G9",{"$f":"C$27","v":"…"},null,null,null,null,{"$f":"$H$29","v":0}]
["G10","G10",{"$f":"C$28","v":"…"},null,null,null,null,{"$f":"$H$30","v":0}]
["G11","G11",{"$f":"C$29","v":"…"},null,null,null,null,{"$f":"$H$29","v":0}]
["G12","G12",{"$f":"C$30","v":"…"},null,null,null,null,{"$f":"$H$30","v":0}]
[null,null,null,null,null,null,null,{"$f":"H127","v":0}]
[null,null,"Pfarrperson"]
[{"$f":"CONCATENATE($F$144,B145)","v":"G0"},{"$f":"B129","v":"G0"},{"$f":"$C$17","v":"Arbeitsbereich Gemeindeleitung"},null,null,{"$f":"$F$17","v":"Anzahl"},{"$f":"$G$17","v":"Bemerkung (Hauptverantwortung, Planung, konzeptioneller Ansatz)"},{"$f":"$H$17","v":"Erklärungen zu den Berechnung / Kalkulations-Faktoren "}]
["0",0,{"$f":"$C$18","v":0},null,null,{"$f":"$F$18","v":0},{"$f":"$G$18","v":0},{"$f":"$H$18","v":0}]
["G1","G1",{"$f":"C$19","v":"Sitzungen Pfarrkonvent"},null,null,null,null,{"$f":"$H$19","v":"Eingabe: Anzahl Sitzungen pro Jahr, Faktor: 2 h pro Sitzung"}]
["G2","G2",{"$f":"C$20","v":"Leitung Pfarrkonvent (in AT)"},null,null,null,null,{"$f":"$H$20","v":"Geschätzter Aufwand in Tagen pro Jahr"}]
["G3","G3",{"$f":"C$21","v":"Vertretung des Pfarrkonvents in der KP"},null,null,null,null,{"$f":"$H$21","v":"Eingabe: Anzahl Sitzungen pro Jahr, Faktor: 3 h pro Sitzung"}]
["G4","G4",{"$f":"C$22","v":"Sitzungen Gemeindekonvent"},null,null,null,null,{"$f":"$H$22","v":"Eingabe: Anzahl Sitzungen pro Jahr, Faktor: 4 h pro Sitzung"}]
["G5","G5",{"$f":"C$23","v":"Kommissionen"},null,null,null,null,{"$f":"$H$23","v":"Eingabe: Anzahl Sitzungen pro Jahr, Faktor: 1.5 h pro Sitzung"}]
["G6","G6",{"$f":"C$24","v":"Arbeitsgruppen"},null,null,null,null,{"$f":"$H$24","v":"Eingabe: Anzahl Sitzungen pro Jahr, Faktor: 1.5 h pro Sitzung"}]
["G7","G7",{"$f":"C$25","v":"Schwerpunktleitung"},null,null,null,null,{"$f":"$H$25","v":0}]
["G9",{"$f":"B139","v":"G9"},{"$f":"C$26","v":"…"},null,null,null,null,{"$f":"$H$29","v":0}]
["G9",{"$f":"B139","v":"G9"},{"$f":"C$27","v":"…"},null,null,null,null,{"$f":"$H$30","v":0}]
["G10",{"$f":"B140","v":"G10"},{"$f":"C$28","v":"…"},null,null,null,null,{"$f":"$H$30","v":0}]
["G11",{"$f":"B141","v":"G11"},{"$f":"C$29","v":"…"},null,null,null,null,{"$f":"$H$29","v":0}]
["G12",{"$f":"B142","v":"G12"},{"$f":"C$30","v":"…"},null,null,null,null,{"$f":"$H$30","v":0}]
[null,null,null,null,null,null,null,{"$f":"H143","v":0}]
[null,null,"Pfarrperson"]
[{"$f":"CONCATENATE($F$160,B161)","v":"G0"},{"$f":"B145","v":"G0"},{"$f":"$C$17","v":"Arbeitsbereich Gemeindeleitung"},null,null,{"$f":"$F$17","v":"Anzahl"},{"$f":"$G$17","v":"Bemerkung (Hauptverantwortung, Planung, konzeptioneller Ansatz)"},{"$f":"$H$17","v":"Erklärungen zu den Berechnung / Kalkulations-Faktoren "}]
["0",0,{"$f":"$C$18","v":0},null,null,{"$f":"$F$18","v":0},{"$f":"$G$18","v":0},{"$f":"$H$18","v":0}]
["G1","G1",{"$f":"C$19","v":"Sitzungen Pfarrkonvent"},null,null,null,null,{"$f":"$H$19","v":"Eingabe: Anzahl Sitzungen pro Jahr, Faktor: 2 h pro Sitzung"}]
["G2","G2",{"$f":"C$20","v":"Leitung Pfarrkonvent (in AT)"},null,null,null,null,{"$f":"$H$20","v":"Geschätzter Aufwand in Tagen pro Jahr"}]
["G3","G3",{"$f":"C$21","v":"Vertretung des Pfarrkonvents in der KP"},null,null,null,null,{"$f":"$H$21","v":"Eingabe: Anzahl Sitzungen pro Jahr, Faktor: 3 h pro Sitzung"}]
["G4","G4",{"$f":"C$22","v":"Sitzungen Gemeindekonvent"},null,null,null,null,{"$f":"$H$22","v":"Eingabe: Anzahl Sitzungen pro Jahr, Faktor: 4 h pro Sitzung"}]
["G5","G5",{"$f":"C$23","v":"Kommissionen"},null,null,null,null,{"$f":"$H$23","v":"Eingabe: Anzahl Sitzungen pro Jahr, Faktor: 1.5 h pro Sitzung"}]
["G6","G6",{"$f":"C$24","v":"Arbeitsgruppen"},null,null,null,null,{"$f":"$H$24","v":"Eingabe: Anzahl Sitzungen pro Jahr, Faktor: 1.5 h pro Sitzung"}]
["G7","G7",{"$f":"C$25","v":"Schwerpunktleitung"},null,null,null,null,{"$f":"$H$25","v":0}]
["G9",{"$f":"B155","v":"G9"},{"$f":"C$26","v":"…"},null,null,null,null,{"$f":"$H$29","v":0}]
["G9",{"$f":"B155","v":"G9"},{"$f":"C$27","v":"…"},null,null,null,null,{"$f":"$H$30","v":0}]
["G10",{"$f":"B156","v":"G10"},{"$f":"C$28","v":"…"},null,null,null,null,{"$f":"$H$30","v":0}]
["G11",{"$f":"B157","v":"G11"},{"$f":"C$29","v":"…"},null,null,null,null,{"$f":"$H$29","v":0}]
["G12",{"$f":"B158","v":"G12"},{"$f":"C$30","v":"…"},null,null,null,null,{"$f":"$H$30","v":0}]
[null,null,null,null,null,null,null,{"$f":"H159","v":0}]
[null,null,"Gemeindeaufbau"]
[null,null,"Pfarrpersonen",null,null,{"$f":"Pfarrpersonen!A8","v":"Gesamtpensum"}]
[{"$f":"CONCATENATE($F$177,B178)","v":"GesamtpensumG0"},"G0","Arbeitsbereich Gemeindeaufbau",null,null,{"$f":"$F$17","v":"Anzahl"},"Bemerkung (Hauptverantwortung, Planung, konzeptioneller Ansatz)","Erklärungen zu den Berechnung / Kalkulations-Faktoren "]
[{"$f":"CONCATENATE($F$177,B179)","v":"Gesamtpensum"},null,null,null,null,{"$f":"$F$18","v":0}]
["GesamtpensumGe1","Ge1","…"]
["GesamtpensumGe2","Ge2","…"]
["GesamtpensumGe3","Ge3","…"]
["GesamtpensumGe4","Ge4","…"]
["GesamtpensumGe5","Ge5","…"]
["GesamtpensumGe6","Ge6","…"]
["GesamtpensumGe7","Ge7","…"]
["GesamtpensumGe8","Ge8","…"]
["GesamtpensumGe9","Ge9","…"]
["GesamtpensumGe10","Ge10","…"]
[]
[null,null,{"$f":"Pfarrpersonen!A8","v":"Gesamtpensum"},null,null,{"$f":"Pfarrpersonen!A9","v":"Delta"}]
[{"$f":"CONCATENATE($F$191,B192)","v":"DeltaG0"},{"$f":"B178","v":"G0"},{"$f":"$C$178","v":"Arbeitsbereich Gemeindeaufbau"},null,null,{"$f":"$F$17","v":"Anzahl"},{"$f":"$G$178","v":"Bemerkung (Hauptverantwortung, Planung, konzeptioneller Ansatz)"},{"$f":"$H$17","v":"Erklärungen zu den Berechnung / Kalkulations-Faktoren "}]
[{"$f":"CONCATENATE($F$191,B193)","v":"Delta0"},0,{"$f":"$C$18","v":0},null,null,{"$f":"$F$18","v":0},{"$f":"$G$18","v":0},{"$f":"$H$18","v":0}]
["DeltaGe1","Ge1",{"$f":"C$180","v":"…"},null,null,null,null,{"$f":"$H$180","v":0}]
["DeltaGe2","Ge2",{"$f":"C$181","v":"…"},null,null,null,null,{"$f":"$H$181","v":0}]
["DeltaGe3","Ge3",{"$f":"C$182","v":"…"},null,null,null,null,{"$f":"$H$182","v":0}]
["DeltaGe4","Ge4",{"$f":"C$183","v":"…"},null,null,null,null,{"$f":"$H$183","v":0}]
["DeltaGe5","Ge5",{"$f":"C$184","v":"…"},null,null,null,null,{"$f":"$H$184","v":0}]
["DeltaGe6","Ge6",{"$f":"C$185","v":"…"},null,null,null,null,{"$f":"$H$185","v":0}]
["DeltaGe7","Ge7",{"$f":"C$186","v":"…"},null,null,null,null,{"$f":"$H$186","v":0}]
["DeltaGe8","Ge8",{"$f":"C$187","v":"…"},null,null,null,null,{"$f":"$H$187","v":0}]
["DeltaGe9","Ge9",{"$f":"C$188","v":"…"},null,null,null,null,{"$f":"$H$188","v":0}]
["DeltaGe10","Ge10",{"$f":"C$189","v":"…"},null,null,null,null,{"$f":"$H$188","v":0}]
[null,null,null,null,null,null,null,{"$f":"H190","v":0}]
[null,null,"Pfarrperson"]
[{"$f":"CONCATENATE($F$205,B206)","v":"G0"},{"$f":"B192","v":"G0"},{"$f":"$C$178","v":"Arbeitsbereich Gemeindeaufbau"},null,null,{"$f":"$F$17","v":"Anzahl"},{"$f":"$G$178","v":"Bemerkung (Hauptverantwortung, Planung, konzeptioneller Ansatz)"},{"$f":"$H$17","v":"Erklärungen zu den Berechnung / Kalkulations-Faktoren "}]
[{"$f":"CONCATENATE($F$205,B207)","v":"0"},0,{"$f":"$C$18","v":0},null,null,{"$f":"$F$18","v":0},{"$f":"$G$18","v":0},{"$f":"$H$18","v":0}]
["Ge1","Ge1",{"$f":"C$180","v":"…"},null,null,null,null,{"$f":"$H$180","v":0}]
["Ge2","Ge2",{"$f":"C$181","v":"…"},null,null,null,null,{"$f":"$H$181","v":0}]
["Ge3","Ge3",{"$f":"C$182","v":"…"},null,null,null,null,{"$f":"$H$182","v":0}]
["Ge4","Ge4",{"$f":"C$183","v":"…"},null,null,null,null,{"$f":"$H$183","v":0}]
["Ge5","Ge5",{"$f":"C$184","v":"…"},null,null,null,null,{"$f":"$H$184","v":0}]
["Ge6","Ge6",{"$f":"C$185","v":"…"},null,null,null,null,{"$f":"$H$185","v":0}]
["Ge7","Ge7",{"$f":"C$186","v":"…"},null,null,null,null,{"$f":"$H$186","v":0}]
["Ge8","Ge8",{"$f":"C$187","v":"…"},null,null,null,null,{"$f":"$H$187","v":0}]
["Ge9","Ge9",{"$f":"C$188","v":"…"},null,null,null,null,{"$f":"$H$188","v":0}]
["Ge10","Ge10",{"$f":"C$189","v":"…"},null,null,null,null,{"$f":"$H$188","v":0}]
[null,null,null,null,null,null,null,{"$f":"H204","v":0}]
[null,null,"Pfarrperson"]
[{"$f":"CONCATENATE($F$219,B220)","v":"G0"},{"$f":"B206","v":"G0"},{"$f":"$C$178","v":"Arbeitsbereich Gemeindeaufbau"},null,null,{"$f":"$F$17","v":"Anzahl"},{"$f":"$G$178","v":"Bemerkung (Hauptverantwortung, Planung, konzeptioneller Ansatz)"},{"$f":"$H$17","v":"Erklärungen zu den Berechnung / Kalkulations-Faktoren "}]
[{"$f":"CONCATENATE($F$219,B221)","v":"0"},0,{"$f":"$C$18","v":0},null,null,{"$f":"$F$18","v":0},{"$f":"$G$18","v":0},{"$f":"$H$18","v":0}]
["Ge1","Ge1",{"$f":"C$180","v":"…"},null,null,null,null,{"$f":"$H$180","v":0}]
["Ge2","Ge2",{"$f":"C$181","v":"…"},null,null,null,null,{"$f":"$H$181","v":0}]
["Ge3","Ge3",{"$f":"C$182","v":"…"},null,null,null,null,{"$f":"$H$182","v":0}]
["Ge4","Ge4",{"$f":"C$183","v":"…"},null,null,null,null,{"$f":"$H$183","v":0}]
["Ge5","Ge5",{"$f":"C$184","v":"…"},null,null,null,null,{"$f":"$H$184","v":0}]
["Ge6","Ge6",{"$f":"C$185","v":"…"},null,null,null,null,{"$f":"$H$185","v":0}]
["Ge7","Ge7",{"$f":"C$186","v":"…"},null,null,null,null,{"$f":"$H$186","v":0}]
["Ge8","Ge8",{"$f":"C$187","v":"…"},null,null,null,null,{"$f":"$H$187","v":0}]
["Ge9","Ge9",{"$f":"C$188","v":"…"},null,null,null,null,{"$f":"$H$188","v":0}]
["Ge10","Ge10",{"$f":"C$189","v":"…"},null,null,null,null,{"$f":"$H$188","v":0}]
[null,null,null,null,null,null,null,{"$f":"H218","v":0}]
[null,null,"Pfarrperson"]
[{"$f":"CONCATENATE($F$233,B234)","v":"G0"},{"$f":"B220","v":"G0"},{"$f":"$C$178","v":"Arbeitsbereich Gemeindeaufbau"},null,null,{"$f":"$F$17","v":"Anzahl"},{"$f":"$G$178","v":"Bemerkung (Hauptverantwortung, Planung, konzeptioneller Ansatz)"},{"$f":"$H$17","v":"Erklärungen zu den Berechnung / Kalkulations-Faktoren "}]
[{"$f":"CONCATENATE($F$233,B235)","v":"0"},0,{"$f":"$C$18","v":0},null,null,{"$f":"$F$18","v":0},{"$f":"$G$18","v":0},{"$f":"$H$18","v":0}]
["Ge1","Ge1",{"$f":"C$180","v":"…"},null,null,null,null,{"$f":"$H$180","v":0}]
["Ge2","Ge2",{"$f":"C$181","v":"…"},null,null,null,null,{"$f":"$H$181","v":0}]
["Ge3","Ge3",{"$f":"C$182","v":"…"},null,null,null,null,{"$f":"$H$182","v":0}]
["Ge4","Ge4",{"$f":"C$183","v":"…"},null,null,null,null,{"$f":"$H$183","v":0}]
["Ge5","Ge5",{"$f":"C$184","v":"…"},null,null,null,null,{"$f":"$H$184","v":0}]
["Ge6","Ge6",{"$f":"C$185","v":"…"},null,null,null,null,{"$f":"$H$185","v":0}]
["Ge7","Ge7",{"$f":"C$186","v":"…"},null,null,null,null,{"$f":"$H$186","v":0}]
["Ge8","Ge8",{"$f":"C$187","v":"…"},null,null,null,null,{"$f":"$H$187","v":0}]
["Ge9","Ge9",{"$f":"C$188","v":"…"},null,null,null,null,{"$f":"$H$188","v":0}]
["Ge10","Ge10",{"$f":"C$189","v":"…"},null,null,null,null,{"$f":"$H$188","v":0}]
[null,null,null,null,null,null,null,{"$f":"H232","v":0}]
[null,null,"Pfarrperson"]
[{"$f":"CONCATENATE($F$247,B248)","v":"G0"},{"$f":"B234","v":"G0"},{"$f":"$C$178","v":"Arbeitsbereich Gemeindeaufbau"},null,null,{"$f":"$F$17","v":"Anzahl"},{"$f":"$G$178","v":"Bemerkung (Hauptverantwortung, Planung, konzeptioneller Ansatz)"},{"$f":"$H$17","v":"Erklärungen zu den Berechnung / Kalkulations-Faktoren "}]
[{"$f":"CONCATENATE($F$247,B249)","v":"0"},0,{"$f":"$C$18","v":0},null,null,{"$f":"$F$18","v":0},{"$f":"$G$18","v":0},{"$f":"$H$18","v":0}]
["Ge1","Ge1",{"$f":"C236","v":"…"},null,null,null,null,{"$f":"$H$180","v":0}]
["Ge2","Ge2","…",null,null,null,null,{"$f":"$H$181","v":0}]
["Ge3","Ge3","…",null,null,null,null,{"$f":"$H$182","v":0}]
["Ge4","Ge4","…",null,null,null,null,{"$f":"$H$183","v":0}]
["Ge5","Ge5","…",null,null,null,null,{"$f":"$H$184","v":0}]
["Ge6","Ge6","…",null,null,null,null,{"$f":"$H$185","v":0}]
["Ge7","Ge7","…",null,null,null,null,{"$f":"$H$186","v":0}]
["Ge8","Ge8","…",null,null,null,null,{"$f":"$H$187","v":0}]
["Ge9","Ge9","…",null,null,null,null,{"$f":"$H$188","v":0}]
["Ge10","Ge10","…",null,null,null,null,{"$f":"$H$188","v":0}]
[null,null,null,null,null,null,null,{"$f":"H246","v":0}]
[null,null,"Pfarrperson"]
[{"$f":"CONCATENATE($F$261,B262)","v":"G0"},{"$f":"B248","v":"G0"},{"$f":"$C$178","v":"Arbeitsbereich Gemeindeaufbau"},null,null,{"$f":"$F$17","v":"Anzahl"},{"$f":"$G$178","v":"Bemerkung (Hauptverantwortung, Planung, konzeptioneller Ansatz)"},{"$f":"$H$17","v":"Erklärungen zu den Berechnung / Kalkulations-Faktoren "}]
[{"$f":"CONCATENATE($F$261,B263)","v":"0"},0,{"$f":"$C$18","v":0},null,null,{"$f":"$F$18","v":0},{"$f":"$G$18","v":0},{"$f":"$H$18","v":0}]
["Ge1","Ge1",{"$f":"C$180","v":"…"},null,null,null,null,{"$f":"$H$180","v":0}]
["Ge2","Ge2",{"$f":"C$181","v":"…"},null,null,null,null,{"$f":"$H$181","v":0}]
["Ge3","Ge3",{"$f":"C$182","v":"…"},null,null,null,null,{"$f":"$H$182","v":0}]
["Ge4","Ge4",{"$f":"C$183","v":"…"},null,null,null,null,{"$f":"$H$183","v":0}]
["Ge5","Ge5",{"$f":"C$184","v":"…"},null,null,null,null,{"$f":"$H$184","v":0}]
["Ge6","Ge6",{"$f":"C$185","v":"…"},null,null,null,null,{"$f":"$H$185","v":0}]
["Ge7","Ge7",{"$f":"C$186","v":"…"},null,null,null,null,{"$f":"$H$186","v":0}]
["Ge8","Ge8",{"$f":"C$187","v":"…"},null,null,null,null,{"$f":"$H$187","v":0}]
["Ge9","Ge9",{"$f":"C$188","v":"…"},null,null,null,null,{"$f":"$H$188","v":0}]
["Ge10","Ge10",{"$f":"C$189","v":"…"},null,null,null,null,{"$f":"$H$188","v":0}]
[null,null,null,null,null,null,null,{"$f":"H260","v":0}]
[null,null,"Pfarrperson"]
[{"$f":"CONCATENATE($F$275,B276)","v":"G0"},{"$f":"B262","v":"G0"},{"$f":"$C$178","v":"Arbeitsbereich Gemeindeaufbau"},null,null,{"$f":"$F$17","v":"Anzahl"},{"$f":"$G$178","v":"Bemerkung (Hauptverantwortung, Planung, konzeptioneller Ansatz)"},{"$f":"$H$17","v":"Erklärungen zu den Berechnung / Kalkulations-Faktoren "}]
["0",0,{"$f":"$C$18","v":0},null,null,{"$f":"$F$18","v":0},{"$f":"$G$18","v":0},{"$f":"$H$18","v":0}]
["Ge1","Ge1",{"$f":"C$180","v":"…"},null,null,null,null,{"$f":"$H$180","v":0}]
["Ge2","Ge2",{"$f":"C$181","v":"…"},null,null,null,null,{"$f":"$H$181","v":0}]
["Ge3","Ge3",{"$f":"C$182","v":"…"},null,null,null,null,{"$f":"$H$182","v":0}]
["Ge4","Ge4",{"$f":"C$183","v":"…"},null,null,null,null,{"$f":"$H$183","v":0}]
["Ge5","Ge5",{"$f":"C$184","v":"…"},null,null,null,null,{"$f":"$H$184","v":0}]
["Ge6","Ge6",{"$f":"C$185","v":"…"},null,null,null,null,{"$f":"$H$185","v":0}]
["Ge7","Ge7",{"$f":"C$186","v":"…"},null,null,null,null,{"$f":"$H$186","v":0}]
[{"$f":"CONCATENATE($F$275,B285)","v":"Ge8"},"Ge8",{"$f":"C$187","v":"…"},null,null,null,null,{"$f":"$H$187","v":0}]
[{"$f":"CONCATENATE($F$275,B286)","v":"Ge9"},"Ge9",{"$f":"C$188","v":"…"},null,null,null,null,{"$f":"$H$188","v":0}]
[{"$f":"CONCATENATE($F$275,B287)","v":"Ge10"},"Ge10",{"$f":"C$189","v":"…"},null,null,null,null,{"$f":"$H$188","v":0}]
[null,null,null,null,null,null,null,{"$f":"H274","v":0}]
[null,null,"Pfarrperson"]
[{"$f":"CONCATENATE($F$289,B290)","v":"G0"},{"$f":"B276","v":"G0"},{"$f":"$C$178","v":"Arbeitsbereich Gemeindeaufbau"},null,null,{"$f":"$F$17","v":"Anzahl"},{"$f":"$G$178","v":"Bemerkung (Hauptverantwortung, Planung, konzeptioneller Ansatz)"},{"$f":"$H$17","v":"Erklärungen zu den Berechnung / Kalkulations-Faktoren "}]
["0",0,{"$f":"$C$18","v":0},null,null,{"$f":"$F$18","v":0},{"$f":"$G$18","v":0},{"$f":"$H$18","v":0}]
["Ge1","Ge1",{"$f":"C$180","v":"…"},null,null,null,null,{"$f":"$H$180","v":0}]
["Ge2","Ge2",{"$f":"C$181","v":"…"},null,null,null,null,{"$f":"$H$181","v":0}]
["Ge3","Ge3",{"$f":"C$182","v":"…"},null,null,null,null,{"$f":"$H$182","v":0}]
["Ge4","Ge4",{"$f":"C$183","v":"…"},null,null,null,null,{"$f":"$H$183","v":0}]
["Ge5","Ge5",{"$f":"C$184","v":"…"},null,null,null,null,{"$f":"$H$184","v":0}]
["Ge6","Ge6",{"$f":"C$185","v":"…"},null,null,null,null,{"$f":"$H$185","v":0}]
["Ge7","Ge7",{"$f":"C$186","v":"…"},null,null,null,null,{"$f":"$H$186","v":0}]
["Ge8","Ge8",{"$f":"C$187","v":"…"},null,null,null,null,{"$f":"$H$187","v":0}]
["Ge9","Ge9",{"$f":"C$188","v":"…"},null,null,null,null,{"$f":"$H$188","v":0}]
[{"$f":"CONCATENATE($F$289,B301)","v":"Ge10"},"Ge10",{"$f":"C$189","v":"…"},null,null,null,null,{"$f":"$H$188","v":0}]
[null,null,null,null,null,null,null,{"$f":"H288","v":0}]
[null,null,"Pfarrperson"]
[{"$f":"CONCATENATE($F$303,B304)","v":"G0"},{"$f":"B290","v":"G0"},{"$f":"$C$178","v":"Arbeitsbereich Gemeindeaufbau"},null,null,{"$f":"$F$17","v":"Anzahl"},{"$f":"$G$178","v":"Bemerkung (Hauptverantwortung, Planung, konzeptioneller Ansatz)"},{"$f":"$H$17","v":"Erklärungen zu den Berechnung / Kalkulations-Faktoren "}]
[{"$f":"CONCATENATE($F$303,B305)","v":"0"},0,{"$f":"$C$18","v":0},null,null,{"$f":"$F$18","v":0},{"$f":"$G$18","v":0},{"$f":"$H$18","v":0}]
["Ge1","Ge1",{"$f":"C$180","v":"…"},null,null,null,null,{"$f":"$H$180","v":0}]
["Ge2","Ge2",{"$f":"C$181","v":"…"},null,null,null,null,{"$f":"$H$181","v":0}]
["Ge3","Ge3",{"$f":"C$182","v":"…"},null,null,null,null,{"$f":"$H$182","v":0}]
["Ge4","Ge4",{"$f":"C$183","v":"…"},null,null,null,null,{"$f":"$H$183","v":0}]
["Ge5","Ge5",{"$f":"C$184","v":"…"},null,null,null,null,{"$f":"$H$184","v":0}]
["Ge6","Ge6",{"$f":"C$185","v":"…"},null,null,null,null,{"$f":"$H$185","v":0}]
["Ge7","Ge7",{"$f":"C$186","v":"…"},null,null,null,null,{"$f":"$H$186","v":0}]
["Ge8","Ge8",{"$f":"C$187","v":"…"},null,null,null,null,{"$f":"$H$187","v":0}]
["Ge9","Ge9",{"$f":"C$188","v":"…"},null,null,null,null,{"$f":"$H$188","v":0}]
["Ge10","Ge10",{"$f":"C$189","v":"…"},null,null,null,null,{"$f":"$H$188","v":0}]
[null,null,null,null,null,null,null,{"$f":"H302","v":0}]
[]
[]
[null,null,"Pfarrperson"]
[{"$f":"CONCATENATE($F$2,B320)","v":""},null,{"$f":"C17","v":"Arbeitsbereich Gemeindeleitung"},null,null,null,{"$f":"G17","v":"Bemerkung (Hauptverantwortung, Planung, konzeptioneller Ansatz)"}]
[{"$f":"CONCATENATE($F$319,B321)","v":"S1"},"S1",{"$f":"C19","v":"Sitzungen Pfarrkonvent"}]
["S2","S2",{"$f":"C20","v":"Leitung Pfarrkonvent (in AT)"}]
["S3","S3",{"$f":"C21","v":"Vertretung des Pfarrkonvents in der KP"}]
["S4","S4",{"$f":"C22","v":"Sitzungen Gemeindekonvent"}]
["S5","S5",{"$f":"C23","v":"Kommissionen"}]
["S6","S6",{"$f":"C30","v":"…"}]
[]
[]
[]
[{"$f":"CONCATENATE($F$2,B330)","v":""}]
[{"$f":"CONCATENATE($F$329,B331)","v":"S1"},"S1"]
["S2","S2"]
["S3","S3"]
["S4","S4"]
["S5","S5"]
["S6","S6"]

{"sheet":"Erw_W.Dienste","index":17,"n_rows":1,"n_cols":2,"rows_kept":1,"cut":false,"hidden":false,"merged":[[0,1,0,2],[2,3,13,3],[27,3,38,3]]}
[null,"Pfarramtliche Verantwortungsbereiche im Zusammenhang mit weiteren Diensten und Verpflichtungen"]

{"sheet":"A&V_W.Dienste","index":18,"n_rows":154,"n_cols":8,"rows_kept":154,"cut":false,"hidden":false,"merged":[[1,7,4,7],[2,2,2,6],[8,2,8,6]]}
[null,null,"Pfarramtliche Aufgaben- und Verantwortungsbereiche im Zusammenhang mit weiteren Diensten"]
[]
[]
[]
[]
[]
[]
[]
[]
[]
[]
[]
[]
[]
[]
[null,null,"Pfarrpersonen",null,null,{"$f":"Pfarrpersonen!A8","v":"Gesamtpensum"}]
[{"$f":"CONCATENATE($F$16,B17)","v":"GesamtpensumWD0"},"WD0","Arbeitsbereich Weitere Dienste",null,null,"Anzahl ","Bemerkung (Hauptverantwortung, Planung, konzeptioneller Ansatz)","Erklärungen zu den Berechnung / Kalkulations-Faktoren "]
[]
[{"$f":"CONCATENATE($F$16,B19)","v":"GesamtpensumWD1"},"WD1","Armeeseelsorge",null,null,null,null,"Anzahl Tage pro Jahr"]
["GesamtpensumWD2","WD2","Militär- / Bevölkerungsschutzdienst",null,null,null,null,"Anzahl Tage pro Jahr"]
["GesamtpensumWD3","WD3","WEA",null,null,null,null,"für die Amtsperiode xx geplant"]
["GesamtpensumWD4","WD4","Langzeitweiterbildung"]
["GesamtpensumWD5","WD5","Öffentliche Ämter, Nebenbesch."]
["GesamtpensumWD6","WD6","Besondere und übrige Aufgaben"]
["GesamtpensumWD7","WD7","…"]
["GesamtpensumWD8","WD8","…"]
["GesamtpensumWD9","WD9","…"]
["GesamtpensumWD10","WD10","…"]
[]
[null,null,{"$f":"Pfarrpersonen!A8","v":"Gesamtpensum"},null,null,{"$f":"Pfarrpersonen!A9","v":"Delta"}]
[{"$f":"CONCATENATE($F$30,B31)","v":"DeltaWD0"},{"$f":"B17","v":"WD0"},{"$f":"$C$17","v":"Arbeitsbereich Weitere Dienste"},null,null,{"$f":"$F$17","v":"Anzahl "},{"$f":"$G$17","v":"Bemerkung (Hauptverantwortung, Planung, konzeptioneller Ansatz)"},{"$f":"$H$17","v":"Erklärungen zu den Berechnung / Kalkulations-Faktoren "}]
[{"$f":"CONCATENATE($F$30,B32)","v":"Delta"},null,null,null,null,{"$f":"$F$18","v":0}]
["DeltaWD1",{"$f":"B19","v":"WD1"},{"$f":"$C$19","v":"Armeeseelsorge"},null,null,null,null,{"$f":"$H$19","v":"Anzahl Tage pro Jahr"}]
["DeltaWD2",{"$f":"B20","v":"WD2"},{"$f":"$C$20","v":"Militär- / Bevölkerungsschutzdienst"},null,null,null,null,{"$f":"$H$20","v":"Anzahl Tage pro Jahr"}]
["DeltaWD3","WD3",{"$f":"$C$21","v":"WEA"},null,null,null,null,{"$f":"$H$21","v":"für die Amtsperiode xx geplant"}]
["DeltaWD4","WD4",{"$f":"$C$22","v":"Langzeitweiterbildung"}]
["DeltaWD5","WD5",{"$f":"$C$23","v":"Öffentliche Ämter, Nebenbesch."}]
["DeltaWD6","WD6",{"$f":"$C$24","v":"Besondere und übrige Aufgaben"}]
["DeltaWD7","WD7",{"$f":"$C$25","v":"…"}]
["DeltaWD8","WD8",{"$f":"$C$26","v":"…"}]
["DeltaWD9","WD9",{"$f":"$C$27","v":"…"}]
["DeltaWD10","WD10",{"$f":"$C$28","v":"…"},null,null,null,null,{"$f":"$H$22","v":0}]
[]
[null,null,"Pfarrperson"]
[{"$f":"CONCATENATE($F$44,B45)","v":"WD0"},{"$f":"B31","v":"WD0"},{"$f":"$C$17","v":"Arbeitsbereich Weitere Dienste"},null,null,{"$f":"$F$17","v":"Anzahl "},{"$f":"$G$17","v":"Bemerkung (Hauptverantwortung, Planung, konzeptioneller Ansatz)"},{"$f":"$H$17","v":"Erklärungen zu den Berechnung / Kalkulations-Faktoren "}]
[{"$f":"CONCATENATE($F$44,B46)","v":""},null,null,null,null,{"$f":"$F$18","v":0}]
[{"$f":"CONCATENATE($F$44,B47)","v":"WD1"},{"$f":"B33","v":"WD1"},{"$f":"$C$19","v":"Armeeseelsorge"},null,null,null,null,{"$f":"$H$19","v":"Anzahl Tage pro Jahr"}]
["WD2",{"$f":"B34","v":"WD2"},{"$f":"$C$20","v":"Militär- / Bevölkerungsschutzdienst"},null,null,null,null,{"$f":"$H$20","v":"Anzahl Tage pro Jahr"}]
["WD3","WD3",{"$f":"$C$21","v":"WEA"},null,null,null,null,{"$f":"$H$21","v":"für die Amtsperiode xx geplant"}]
["WD4","WD4",{"$f":"$C$22","v":"Langzeitweiterbildung"}]
["WD5","WD5",{"$f":"$C$23","v":"Öffentliche Ämter, Nebenbesch."}]
["WD6","WD6",{"$f":"$C$24","v":"Besondere und übrige Aufgaben"}]
["WD7","WD7",{"$f":"$C$25","v":"…"}]
["WD8","WD8",{"$f":"$C$26","v":"…"}]
["WD9","WD9",{"$f":"$C$27","v":"…"}]
["WD10","WD10",{"$f":"$C$28","v":"…"},null,null,null,null,{"$f":"$H$22","v":0}]
[]
[null,null,"Pfarrperson"]
[{"$f":"CONCATENATE($F$58,B59)","v":"WD0"},{"$f":"B45","v":"WD0"},{"$f":"$C$17","v":"Arbeitsbereich Weitere Dienste"},null,null,{"$f":"$F$17","v":"Anzahl "},{"$f":"$G$17","v":"Bemerkung (Hauptverantwortung, Planung, konzeptioneller Ansatz)"},{"$f":"$H$17","v":"Erklärungen zu den Berechnung / Kalkulations-Faktoren "}]
[{"$f":"CONCATENATE($F$58,B60)","v":""},null,null,null,null,{"$f":"$F$18","v":0}]
[{"$f":"CONCATENATE($F$58,B61)","v":"WD1"},{"$f":"B47","v":"WD1"},{"$f":"$C$19","v":"Armeeseelsorge"},null,null,null,null,{"$f":"$H$19","v":"Anzahl Tage pro Jahr"}]
["WD2",{"$f":"B48","v":"WD2"},{"$f":"$C$20","v":"Militär- / Bevölkerungsschutzdienst"},null,null,null,null,{"$f":"$H$20","v":"Anzahl Tage pro Jahr"}]
["WD3","WD3",{"$f":"$C$21","v":"WEA"},null,null,null,null,{"$f":"$H$21","v":"für die Amtsperiode xx geplant"}]
["WD4","WD4",{"$f":"$C$22","v":"Langzeitweiterbildung"}]
["WD5","WD5",{"$f":"$C$23","v":"Öffentliche Ämter, Nebenbesch."}]
["WD6","WD6",{"$f":"$C$24","v":"Besondere und übrige Aufgaben"}]
["WD7","WD7",{"$f":"$C$25","v":"…"}]
["WD8","WD8",{"$f":"$C$26","v":"…"}]
["WD9","WD9",{"$f":"$C$27","v":"…"}]
["WD10","WD10",{"$f":"$C$28","v":"…"}]
[]
[null,null,"Pfarrperson"]
[{"$f":"CONCATENATE($F$72,B73)","v":"WD0"},{"$f":"B59","v":"WD0"},{"$f":"$C$17","v":"Arbeitsbereich Weitere Dienste"},null,null,{"$f":"$F$17","v":"Anzahl "},{"$f":"$G$17","v":"Bemerkung (Hauptverantwortung, Planung, konzeptioneller Ansatz)"},{"$f":"$H$17","v":"Erklärungen zu den Berechnung / Kalkulations-Faktoren "}]
[{"$f":"CONCATENATE($F$72,B74)","v":""},null,null,null,null,{"$f":"$F$18","v":0}]
[{"$f":"CONCATENATE($F$72,B75)","v":"WD1"},{"$f":"B61","v":"WD1"},{"$f":"$C$19","v":"Armeeseelsorge"},null,null,null,null,{"$f":"$H$19","v":"Anzahl Tage pro Jahr"}]
["WD2",{"$f":"B62","v":"WD2"},{"$f":"$C$20","v":"Militär- / Bevölkerungsschutzdienst"},null,null,null,null,{"$f":"$H$20","v":"Anzahl Tage pro Jahr"}]
["WD3","WD3",{"$f":"$C$21","v":"WEA"},null,null,null,null,{"$f":"$H$21","v":"für die Amtsperiode xx geplant"}]
["WD4","WD4",{"$f":"$C$22","v":"Langzeitweiterbildung"}]
["WD5","WD5",{"$f":"$C$23","v":"Öffentliche Ämter, Nebenbesch."}]
["WD6","WD6",{"$f":"$C$24","v":"Besondere und übrige Aufgaben"}]
["WD7","WD7",{"$f":"$C$25","v":"…"}]
["WD8","WD8",{"$f":"$C$26","v":"…"}]
["WD9","WD9",{"$f":"$C$27","v":"…"}]
["WD10","WD10",{"$f":"$C$28","v":"…"},null,null,null,null,{"$f":"$H$28","v":0}]
[null,null,{"$f":"$C$29","v":0}]
[null,null,"Pfarrperson"]
[{"$f":"CONCATENATE($F$86,B87)","v":"WD0"},{"$f":"B73","v":"WD0"},{"$f":"$C$17","v":"Arbeitsbereich Weitere Dienste"},null,null,{"$f":"$F$17","v":"Anzahl "},{"$f":"$G$17","v":"Bemerkung (Hauptverantwortung, Planung, konzeptioneller Ansatz)"},{"$f":"$H$17","v":"Erklärungen zu den Berechnung / Kalkulations-Faktoren "}]
[{"$f":"CONCATENATE($F$86,B88)","v":""},null,null,null,null,{"$f":"$F$18","v":0}]
[{"$f":"CONCATENATE($F$86,B89)","v":"WD1"},{"$f":"B75","v":"WD1"},{"$f":"$C$19","v":"Armeeseelsorge"},null,null,null,null,{"$f":"$H$19","v":"Anzahl Tage pro Jahr"}]
["WD2",{"$f":"B76","v":"WD2"},{"$f":"$C$20","v":"Militär- / Bevölkerungsschutzdienst"},null,null,null,null,{"$f":"$H$20","v":"Anzahl Tage pro Jahr"}]
["WD3","WD3",{"$f":"$C$21","v":"WEA"},null,null,null,null,{"$f":"$H$21","v":"für die Amtsperiode xx geplant"}]
["WD4","WD4",{"$f":"$C$22","v":"Langzeitweiterbildung"}]
["WD5","WD5",{"$f":"$C$23","v":"Öffentliche Ämter, Nebenbesch."}]
["WD6","WD6",{"$f":"$C$24","v":"Besondere und übrige Aufgaben"}]
["WD7","WD7",{"$f":"$C$25","v":"…"}]
["WD8","WD8",{"$f":"$C$26","v":"…"}]
["WD9","WD9",{"$f":"$C$27","v":"…"}]
["WD10","WD10",{"$f":"$C$28","v":"…"},null,null,null,null,{"$f":"$H$28","v":0}]
[null,null,{"$f":"$C$29","v":0}]
[null,null,"Pfarrperson"]
[{"$f":"CONCATENATE($F$100,B101)","v":"WD0"},{"$f":"B87","v":"WD0"},{"$f":"$C$17","v":"Arbeitsbereich Weitere Dienste"},null,null,{"$f":"$F$17","v":"Anzahl "},{"$f":"$G$17","v":"Bemerkung (Hauptverantwortung, Planung, konzeptioneller Ansatz)"},{"$f":"$H$17","v":"Erklärungen zu den Berechnung / Kalkulations-Faktoren "}]
[{"$f":"CONCATENATE($F$100,B102)","v":""},null,null,null,null,{"$f":"$F$18","v":0}]
[{"$f":"CONCATENATE($F$100,B103)","v":"WD1"},{"$f":"B89","v":"WD1"},{"$f":"$C$19","v":"Armeeseelsorge"},null,null,null,null,{"$f":"$H$19","v":"Anzahl Tage pro Jahr"}]
["WD2","WD2",{"$f":"$C$20","v":"Militär- / Bevölkerungsschutzdienst"},null,null,null,null,{"$f":"$H$20","v":"Anzahl Tage pro Jahr"}]
["WD3","WD3",{"$f":"$C$21","v":"WEA"},null,null,null,null,{"$f":"$H$21","v":"für die Amtsperiode xx geplant"}]
["WD4","WD4",{"$f":"$C$22","v":"Langzeitweiterbildung"}]
["WD5","WD5",{"$f":"$C$23","v":"Öffentliche Ämter, Nebenbesch."}]
["WD6","WD6",{"$f":"$C$24","v":"Besondere und übrige Aufgaben"}]
["WD7","WD7",{"$f":"$C$25","v":"…"}]
["WD8","WD8",{"$f":"$C$26","v":"…"}]
["WD9","WD9",{"$f":"$C$27","v":"…"}]
["WD10","WD10",{"$f":"$C$28","v":"…"},null,null,null,null,{"$f":"$H$28","v":0}]
[null,null,{"$f":"$C$29","v":0}]
[null,null,"Pfarrperson"]
[{"$f":"CONCATENATE($F$114,B115)","v":"WD0"},{"$f":"B101","v":"WD0"},{"$f":"$C$17","v":"Arbeitsbereich Weitere Dienste"},null,null,{"$f":"$F$17","v":"Anzahl "},{"$f":"$G$17","v":"Bemerkung (Hauptverantwortung, Planung, konzeptioneller Ansatz)"},{"$f":"$H$17","v":"Erklärungen zu den Berechnung / Kalkulations-Faktoren "}]
[{"$f":"CONCATENATE($F$114,B116)","v":""},null,null,null,null,{"$f":"$F$18","v":0}]
[{"$f":"CONCATENATE($F$114,B117)","v":"WD1"},{"$f":"B103","v":"WD1"},{"$f":"$C$19","v":"Armeeseelsorge"},null,null,null,null,{"$f":"$H$19","v":"Anzahl Tage pro Jahr"}]
["WD2",{"$f":"B104","v":"WD2"},{"$f":"$C$20","v":"Militär- / Bevölkerungsschutzdienst"},null,null,null,null,{"$f":"$H$20","v":"Anzahl Tage pro Jahr"}]
["WD3","WD3",{"$f":"$C$21","v":"WEA"},null,null,null,null,{"$f":"$H$21","v":"für die Amtsperiode xx geplant"}]
["WD4","WD4",{"$f":"$C$22","v":"Langzeitweiterbildung"}]
["WD5","WD5",{"$f":"$C$23","v":"Öffentliche Ämter, Nebenbesch."}]
["WD6","WD6",{"$f":"$C$24","v":"Besondere und übrige Aufgaben"}]
["WD7","WD7",{"$f":"$C$25","v":"…"}]
["WD8","WD8",{"$f":"$C$26","v":"…"}]
["WD9","WD9",{"$f":"$C$27","v":"…"}]
["WD10","WD10",{"$f":"$C$28","v":"…"}]
[null,null,{"$f":"$C$29","v":0}]
[null,null,"Pfarrperson"]
[{"$f":"CONCATENATE($F$128,B129)","v":"WD0"},"WD0",{"$f":"$C$17","v":"Arbeitsbereich Weitere Dienste"},null,null,{"$f":"$F$17","v":"Anzahl "},{"$f":"$G$17","v":"Bemerkung (Hauptverantwortung, Planung, konzeptioneller Ansatz)"},{"$f":"$H$17","v":"Erklärungen zu den Berechnung / Kalkulations-Faktoren "}]
[{"$f":"CONCATENATE($F$128,B130)","v":""},null,null,null,null,{"$f":"$F$18","v":0}]
[{"$f":"CONCATENATE($F$128,B131)","v":"WD1"},{"$f":"B117","v":"WD1"},{"$f":"$C$19","v":"Armeeseelsorge"},null,null,null,null,{"$f":"$H$19","v":"Anzahl Tage pro Jahr"}]
["WD2",{"$f":"B118","v":"WD2"},{"$f":"$C$20","v":"Militär- / Bevölkerungsschutzdienst"},null,null,null,null,{"$f":"$H$20","v":"Anzahl Tage pro Jahr"}]
["WD3","WD3",{"$f":"$C$21","v":"WEA"},null,null,null,null,{"$f":"$H$21","v":"für die Amtsperiode xx geplant"}]
["WD4","WD4",{"$f":"$C$22","v":"Langzeitweiterbildung"}]
["WD5","WD5",{"$f":"$C$23","v":"Öffentliche Ämter, Nebenbesch."}]
["WD6","WD6",{"$f":"$C$24","v":"Besondere und übrige Aufgaben"}]
["WD7","WD7",{"$f":"$C$25","v":"…"}]
["WD8","WD8",{"$f":"$C$26","v":"…"}]
["WD9","WD9",{"$f":"$C$27","v":"…"},null,null,null,null,{"$f":"$H$22","v":0}]
["WD10","WD10",{"$f":"$C$28","v":"…"},null,null,null,null,{"$f":"$H$28","v":0}]
[null,null,{"$f":"$C$29","v":0}]
[null,null,"Pfarrperson"]
[{"$f":"CONCATENATE($F$142,B143)","v":"WD0"},"WD0",{"$f":"$C$17","v":"Arbeitsbereich Weitere Dienste"},null,null,{"$f":"$F$17","v":"Anzahl "},{"$f":"$G$17","v":"Bemerkung (Hauptverantwortung, Planung, konzeptioneller Ansatz)"},{"$f":"$H$17","v":"Erklärungen zu den Berechnung / Kalkulations-Faktoren "}]
[{"$f":"CONCATENATE($F$142,B144)","v":""},null,null,null,null,{"$f":"$F$18","v":0}]
[{"$f":"CONCATENATE($F$142,B145)","v":"WD1"},{"$f":"B131","v":"WD1"},{"$f":"$C$19","v":"Armeeseelsorge"},null,null,null,null,{"$f":"$H$19","v":"Anzahl Tage pro Jahr"}]
["WD2",{"$f":"B132","v":"WD2"},{"$f":"$C$20","v":"Militär- / Bevölkerungsschutzdienst"},null,null,null,null,{"$f":"$H$20","v":"Anzahl Tage pro Jahr"}]
["WD3","WD3",{"$f":"$C$21","v":"WEA"},null,null,null,null,{"$f":"$H$21","v":"für die Amtsperiode xx geplant"}]
["WD4","WD4",{"$f":"$C$22","v":"Langzeitweiterbildung"}]
["WD5","WD5",{"$f":"$C$23","v":"Öffentliche Ämter, Nebenbesch."}]
["WD6","WD6",{"$f":"$C$24","v":"Besondere und übrige Aufgaben"}]
["WD7","WD7",{"$f":"$C$25","v":"…"}]
["WD8","WD8",{"$f":"$C$26","v":"…"}]
["WD9","WD9",{"$f":"$C$27","v":"…"}]
["WD10","WD10",{"$f":"$C$28","v":"…"}]

{"sheet":"Stellenbeschrieb Einzelperson","index":19,"n_rows":144,"n_cols":7,"rows_kept":144,"cut":false,"hidden":false,"merged":[[136,1,141,6],[136,7,141,7]]}
[null,null,"a"]
[null,null,"a"]
[null,null,"a"]
[null,"Pfarramtlicher Aufgaben- und Verantwortungsbereichsbericht"]
[null,null,"a"]
[null,"Pfarrperson: ",null,null,null,null,{"$f":"IF(C6=\"\",\"\",CONCATENATE(VLOOKUP(C6,Pfarrpersonen!A7:D17,2,FALSE),\" \",VLOOKUP(C6,Pfarrpersonen!A7:D17,4,FALSE)))","v":""}]
[null,"Pensum: ",{"$f":"IF(ISERROR(VLOOKUP(C6,Pfarrpersonen!$A$7:$H$22,7,FALSE)),\"\",VLOOKUP(C6,Pfarrpersonen!$A$7:$H$22,7,FALSE))","v":""}]
[]
[]
[null,null,"a"]
[{"$f":"CONCATENATE($C$6,'A&V_Verk.&GD'!B17)","v":"GD0"},{"$f":"'A&V_Verk.&GD'!C17","v":"Arbeitsbereich Gottesdienst / Kasualien"},{"$f":"'A&V_Verk.&GD'!F17","v":"Anzahl"},null,null,null,{"$f":"'A&V_Verk.&GD'!G17","v":"Bemerkung (Hauptverantwortung, Planung, konzeptioneller Ansatz)"}]
[null,null,"a"]
[{"$f":"CONCATENATE($C$6,'A&V_Verk.&GD'!B19)","v":"GD1"},{"$f":"IF(ISERROR(VLOOKUP($A13,'A&V_Verk.&GD'!$A:$G,3,FALSE)),\"\",(VLOOKUP($A13,'A&V_Verk.&GD'!$A:$G,3,FALSE)))","v":"Predigtgottesdienste"},{"$f":"IF(ISERROR(VLOOKUP($A13,'A&V_Verk.&GD'!$A:$G,6,FALSE)),\"\",(VLOOKUP($A13,'A&V_Verk.&GD'!$A:$G,6,FALSE)))","v":0},null,null,null,{"$f":"IF(ISERROR(VLOOKUP($A13,'A&V_Verk.&GD'!$A:$G,7,FALSE)),\"\",(VLOOKUP($A13,'A&V_Verk.&GD'!$A:$G,7,FALSE)))","v":0}]
[{"$f":"CONCATENATE($C$6,'A&V_Verk.&GD'!B20)","v":"GD2"},{"$f":"IF(ISERROR(VLOOKUP($A14,'A&V_Verk.&GD'!$A:$G,3,FALSE)),\"\",(VLOOKUP($A14,'A&V_Verk.&GD'!$A:$G,3,FALSE)))","v":"Festtagsgottesdienste"},{"$f":"IF(ISERROR(VLOOKUP($A14,'A&V_Verk.&GD'!$A:$G,6,FALSE)),\"\",(VLOOKUP($A14,'A&V_Verk.&GD'!$A:$G,6,FALSE)))","v":0},null,null,null,{"$f":"IF(ISERROR(VLOOKUP($A14,'A&V_Verk.&GD'!$A:$G,7,FALSE)),\"\",(VLOOKUP($A14,'A&V_Verk.&GD'!$A:$G,7,FALSE)))","v":0}]
[{"$f":"CONCATENATE($C$6,'A&V_Verk.&GD'!B21)","v":"GD3"},{"$f":"IF(ISERROR(VLOOKUP($A15,'A&V_Verk.&GD'!$A:$G,3,FALSE)),\"\",(VLOOKUP($A15,'A&V_Verk.&GD'!$A:$G,3,FALSE)))","v":"Liturgische Feiern"},{"$f":"IF(ISERROR(VLOOKUP($A15,'A&V_Verk.&GD'!$A:$G,6,FALSE)),\"\",(VLOOKUP($A15,'A&V_Verk.&GD'!$A:$G,6,FALSE)))","v":0},null,null,null,{"$f":"IF(ISERROR(VLOOKUP($A15,'A&V_Verk.&GD'!$A:$G,7,FALSE)),\"\",(VLOOKUP($A15,'A&V_Verk.&GD'!$A:$G,7,FALSE)))","v":0}]
[{"$f":"CONCATENATE($C$6,'A&V_Verk.&GD'!B22)","v":"GD4"},{"$f":"IF(ISERROR(VLOOKUP($A16,'A&V_Verk.&GD'!$A:$G,3,FALSE)),\"\",(VLOOKUP($A16,'A&V_Verk.&GD'!$A:$G,3,FALSE)))","v":"Abdankungen"},{"$f":"IF(ISERROR(VLOOKUP($A16,'A&V_Verk.&GD'!$A:$G,6,FALSE)),\"\",(VLOOKUP($A16,'A&V_Verk.&GD'!$A:$G,6,FALSE)))","v":0},null,null,null,{"$f":"IF(ISERROR(VLOOKUP($A16,'A&V_Verk.&GD'!$A:$G,7,FALSE)),\"\",(VLOOKUP($A16,'A&V_Verk.&GD'!$A:$G,7,FALSE)))","v":0}]
[{"$f":"CONCATENATE($C$6,'A&V_Verk.&GD'!B23)","v":"GD5"},{"$f":"IF(ISERROR(VLOOKUP($A17,'A&V_Verk.&GD'!$A:$G,3,FALSE)),\"\",(VLOOKUP($A17,'A&V_Verk.&GD'!$A:$G,3,FALSE)))","v":"Beisetzung am Grab"},{"$f":"IF(ISERROR(VLOOKUP($A17,'A&V_Verk.&GD'!$A:$G,6,FALSE)),\"\",(VLOOKUP($A17,'A&V_Verk.&GD'!$A:$G,6,FALSE)))","v":0},null,null,null,{"$f":"IF(ISERROR(VLOOKUP($A17,'A&V_Verk.&GD'!$A:$G,7,FALSE)),\"\",(VLOOKUP($A17,'A&V_Verk.&GD'!$A:$G,7,FALSE)))","v":0}]
[{"$f":"CONCATENATE($C$6,'A&V_Verk.&GD'!B24)","v":"GD6"},{"$f":"IF(ISERROR(VLOOKUP($A18,'A&V_Verk.&GD'!$A:$G,3,FALSE)),\"\",(VLOOKUP($A18,'A&V_Verk.&GD'!$A:$G,3,FALSE)))","v":"Taufen (im Gemeindegottesdienst)"},{"$f":"IF(ISERROR(VLOOKUP($A18,'A&V_Verk.&GD'!$A:$G,6,FALSE)),\"\",(VLOOKUP($A18,'A&V_Verk.&GD'!$A:$G,6,FALSE)))","v":0},null,null,null,{"$f":"IF(ISERROR(VLOOKUP($A18,'A&V_Verk.&GD'!$A:$G,7,FALSE)),\"\",(VLOOKUP($A18,'A&V_Verk.&GD'!$A:$G,7,FALSE)))","v":0}]
[{"$f":"CONCATENATE($C$6,'A&V_Verk.&GD'!B25)","v":"GD7"},{"$f":"IF(ISERROR(VLOOKUP($A19,'A&V_Verk.&GD'!$A:$G,3,FALSE)),\"\",(VLOOKUP($A19,'A&V_Verk.&GD'!$A:$G,3,FALSE)))","v":"Trauungen als eigene gottesdienstliche Feier"},{"$f":"IF(ISERROR(VLOOKUP($A19,'A&V_Verk.&GD'!$A:$G,6,FALSE)),\"\",(VLOOKUP($A19,'A&V_Verk.&GD'!$A:$G,6,FALSE)))","v":0},null,null,null,{"$f":"IF(ISERROR(VLOOKUP($A19,'A&V_Verk.&GD'!$A:$G,7,FALSE)),\"\",(VLOOKUP($A19,'A&V_Verk.&GD'!$A:$G,7,FALSE)))","v":0}]
[{"$f":"CONCATENATE($C$6,'A&V_Verk.&GD'!B26)","v":"GD8"},{"$f":"IF(ISERROR(VLOOKUP($A20,'A&V_Verk.&GD'!$A:$G,3,FALSE)),\"\",(VLOOKUP($A20,'A&V_Verk.&GD'!$A:$G,3,FALSE)))","v":"Taufen als eigene gottesdienstliche Feier"},{"$f":"IF(ISERROR(VLOOKUP($A20,'A&V_Verk.&GD'!$A:$G,6,FALSE)),\"\",(VLOOKUP($A20,'A&V_Verk.&GD'!$A:$G,6,FALSE)))","v":0},null,null,null,{"$f":"IF(ISERROR(VLOOKUP($A20,'A&V_Verk.&GD'!$A:$G,7,FALSE)),\"\",(VLOOKUP($A20,'A&V_Verk.&GD'!$A:$G,7,FALSE)))","v":0}]
[{"$f":"CONCATENATE($C$6,'A&V_Verk.&GD'!B27)","v":"GD9"},{"$f":"IF(ISERROR(VLOOKUP($A21,'A&V_Verk.&GD'!$A:$G,3,FALSE)),\"\",(VLOOKUP($A21,'A&V_Verk.&GD'!$A:$G,3,FALSE)))","v":"Heim-Gottesdienste"},{"$f":"IF(ISERROR(VLOOKUP($A21,'A&V_Verk.&GD'!$A:$G,6,FALSE)),\"\",(VLOOKUP($A21,'A&V_Verk.&GD'!$A:$G,6,FALSE)))","v":0},null,null,null,{"$f":"IF(ISERROR(VLOOKUP($A21,'A&V_Verk.&GD'!$A:$G,7,FALSE)),\"\",(VLOOKUP($A21,'A&V_Verk.&GD'!$A:$G,7,FALSE)))","v":0}]
[{"$f":"CONCATENATE($C$6,'A&V_Verk.&GD'!B28)","v":"GD10"},{"$f":"IF(ISERROR(VLOOKUP($A22,'A&V_Verk.&GD'!$A:$G,3,FALSE)),\"\",(VLOOKUP($A22,'A&V_Verk.&GD'!$A:$G,3,FALSE)))","v":"Besondere und übrige Aufgaben"},{"$f":"IF(ISERROR(VLOOKUP($A22,'A&V_Verk.&GD'!$A:$G,6,FALSE)),\"\",(VLOOKUP($A22,'A&V_Verk.&GD'!$A:$G,6,FALSE)))","v":0},null,null,null,{"$f":"IF(ISERROR(VLOOKUP($A22,'A&V_Verk.&GD'!$A:$G,7,FALSE)),\"\",(VLOOKUP($A22,'A&V_Verk.&GD'!$A:$G,7,FALSE)))","v":0}]
[{"$f":"CONCATENATE($C$6,'A&V_Verk.&GD'!B29)","v":"GD11"},{"$f":"IF(ISERROR(VLOOKUP($A23,'A&V_Verk.&GD'!$A:$G,3,FALSE)),\"\",(VLOOKUP($A23,'A&V_Verk.&GD'!$A:$G,3,FALSE)))","v":"…"},{"$f":"IF(ISERROR(VLOOKUP($A23,'A&V_Verk.&GD'!$A:$G,6,FALSE)),\"\",(VLOOKUP($A23,'A&V_Verk.&GD'!$A:$G,6,FALSE)))","v":0},null,null,null,{"$f":"IF(ISERROR(VLOOKUP($A23,'A&V_Verk.&GD'!$A:$G,7,FALSE)),\"\",(VLOOKUP($A23,'A&V_Verk.&GD'!$A:$G,7,FALSE)))","v":0}]
[{"$f":"CONCATENATE($C$6,'A&V_Verk.&GD'!B30)","v":"GD12"},{"$f":"IF(ISERROR(VLOOKUP($A24,'A&V_Verk.&GD'!$A:$G,3,FALSE)),\"\",(VLOOKUP($A24,'A&V_Verk.&GD'!$A:$G,3,FALSE)))","v":"…"},{"$f":"IF(ISERROR(VLOOKUP($A24,'A&V_Verk.&GD'!$A:$G,6,FALSE)),\"\",(VLOOKUP($A24,'A&V_Verk.&GD'!$A:$G,6,FALSE)))","v":0},null,null,null,{"$f":"IF(ISERROR(VLOOKUP($A24,'A&V_Verk.&GD'!$A:$G,7,FALSE)),\"\",(VLOOKUP($A24,'A&V_Verk.&GD'!$A:$G,7,FALSE)))","v":0}]
[{"$f":"CONCATENATE($C$6,'A&V_Verk.&GD'!B31)","v":"GD13"},{"$f":"IF(ISERROR(VLOOKUP($A25,'A&V_Verk.&GD'!$A:$G,3,FALSE)),\"\",(VLOOKUP($A25,'A&V_Verk.&GD'!$A:$G,3,FALSE)))","v":"…"},{"$f":"IF(ISERROR(VLOOKUP($A25,'A&V_Verk.&GD'!$A:$G,6,FALSE)),\"\",(VLOOKUP($A25,'A&V_Verk.&GD'!$A:$G,6,FALSE)))","v":0},null,null,null,{"$f":"IF(ISERROR(VLOOKUP($A25,'A&V_Verk.&GD'!$A:$G,7,FALSE)),\"\",(VLOOKUP($A25,'A&V_Verk.&GD'!$A:$G,7,FALSE)))","v":0}]
[{"$f":"CONCATENATE($C$6,'A&V_Verk.&GD'!B32)","v":"GD14"},{"$f":"IF(ISERROR(VLOOKUP($A26,'A&V_Verk.&GD'!$A:$G,3,FALSE)),\"\",(VLOOKUP($A26,'A&V_Verk.&GD'!$A:$G,3,FALSE)))","v":"…"},{"$f":"IF(ISERROR(VLOOKUP($A26,'A&V_Verk.&GD'!$A:$G,6,FALSE)),\"\",(VLOOKUP($A26,'A&V_Verk.&GD'!$A:$G,6,FALSE)))","v":0},null,null,null,{"$f":"IF(ISERROR(VLOOKUP($A26,'A&V_Verk.&GD'!$A:$G,7,FALSE)),\"\",(VLOOKUP($A26,'A&V_Verk.&GD'!$A:$G,7,FALSE)))","v":0}]
[null,null,"a"]
[{"$f":"CONCATENATE($C$6,'A&V_Diak.&Seels.'!B17)","v":"SEE0"},{"$f":"'A&V_Diak.&Seels.'!C17","v":"Arbeitsbereich Seelsorge"},{"$f":"'A&V_Diak.&Seels.'!F17","v":"Anzahl"},null,null,null,{"$f":"'A&V_Diak.&Seels.'!G17","v":"Bemerkung (Hauptverantwortung, Planung, konzeptioneller Ansatz)"}]
[null,null,"a"]
[{"$f":"CONCATENATE($C$6,'A&V_Diak.&Seels.'!B19)","v":"SEE1"},{"$f":"IF(ISERROR(VLOOKUP($A30,'A&V_Diak.&Seels.'!$A:$G,3,FALSE)),\"\",(VLOOKUP($A30,'A&V_Diak.&Seels.'!$A:$G,3,FALSE)))","v":"Seelsorge in der Gemeinde \n(Anzahl zugewandte Mitglieder)"},{"$f":"IF(ISERROR(VLOOKUP($A30,'A&V_Diak.&Seels.'!$A:$G,6,FALSE)),\"\",(VLOOKUP($A30,'A&V_Diak.&Seels.'!$A:$G,6,FALSE)))","v":0},null,null,null,{"$f":"IF(ISERROR(VLOOKUP($A30,'A&V_Diak.&Seels.'!$A:$G,7,FALSE)),\"\",(VLOOKUP($A30,'A&V_Diak.&Seels.'!$A:$G,7,FALSE)))","v":0}]
[{"$f":"CONCATENATE($C$6,'A&V_Diak.&Seels.'!B20)","v":"SEE2"},{"$f":"IF(ISERROR(VLOOKUP($A31,'A&V_Diak.&Seels.'!$A:$G,3,FALSE)),\"\",(VLOOKUP($A31,'A&V_Diak.&Seels.'!$A:$G,3,FALSE)))","v":"Betreuung von Gruppen \n(AZ Gruppen)"},{"$f":"IF(ISERROR(VLOOKUP($A31,'A&V_Diak.&Seels.'!$A:$G,6,FALSE)),\"\",(VLOOKUP($A31,'A&V_Diak.&Seels.'!$A:$G,6,FALSE)))","v":0},null,null,null,{"$f":"IF(ISERROR(VLOOKUP($A31,'A&V_Diak.&Seels.'!$A:$G,7,FALSE)),\"\",(VLOOKUP($A31,'A&V_Diak.&Seels.'!$A:$G,7,FALSE)))","v":0}]
[{"$f":"CONCATENATE($C$6,'A&V_Diak.&Seels.'!B21)","v":"SEE3"},{"$f":"IF(ISERROR(VLOOKUP($A32,'A&V_Diak.&Seels.'!$A:$G,3,FALSE)),\"\",(VLOOKUP($A32,'A&V_Diak.&Seels.'!$A:$G,3,FALSE)))","v":"Besuche an Institutionen "},{"$f":"IF(ISERROR(VLOOKUP($A32,'A&V_Diak.&Seels.'!$A:$G,6,FALSE)),\"\",(VLOOKUP($A32,'A&V_Diak.&Seels.'!$A:$G,6,FALSE)))","v":0},null,null,null,{"$f":"IF(ISERROR(VLOOKUP($A32,'A&V_Diak.&Seels.'!$A:$G,7,FALSE)),\"\",(VLOOKUP($A32,'A&V_Diak.&Seels.'!$A:$G,7,FALSE)))","v":0}]
[{"$f":"CONCATENATE($C$6,'A&V_Diak.&Seels.'!B22)","v":"SEE4"},{"$f":"IF(ISERROR(VLOOKUP($A33,'A&V_Diak.&Seels.'!$A:$G,3,FALSE)),\"\",(VLOOKUP($A33,'A&V_Diak.&Seels.'!$A:$G,3,FALSE)))","v":"Notfallseelsorge"},{"$f":"IF(ISERROR(VLOOKUP($A33,'A&V_Diak.&Seels.'!$A:$G,6,FALSE)),\"\",(VLOOKUP($A33,'A&V_Diak.&Seels.'!$A:$G,6,FALSE)))","v":0},null,null,null,{"$f":"IF(ISERROR(VLOOKUP($A33,'A&V_Diak.&Seels.'!$A:$G,7,FALSE)),\"\",(VLOOKUP($A33,'A&V_Diak.&Seels.'!$A:$G,7,FALSE)))","v":0}]
[{"$f":"CONCATENATE($C$6,'A&V_Diak.&Seels.'!B23)","v":"SEE5"},{"$f":"IF(ISERROR(VLOOKUP($A34,'A&V_Diak.&Seels.'!$A:$G,3,FALSE)),\"\",(VLOOKUP($A34,'A&V_Diak.&Seels.'!$A:$G,3,FALSE)))","v":"Besondere und übrige Aufgaben"},{"$f":"IF(ISERROR(VLOOKUP($A34,'A&V_Diak.&Seels.'!$A:$G,6,FALSE)),\"\",(VLOOKUP($A34,'A&V_Diak.&Seels.'!$A:$G,6,FALSE)))","v":0},null,null,null,{"$f":"IF(ISERROR(VLOOKUP($A34,'A&V_Diak.&Seels.'!$A:$G,7,FALSE)),\"\",(VLOOKUP($A34,'A&V_Diak.&Seels.'!$A:$G,7,FALSE)))","v":0}]
[{"$f":"CONCATENATE($C$6,'A&V_Diak.&Seels.'!B24)","v":"SEE6"},{"$f":"IF(ISERROR(VLOOKUP($A35,'A&V_Diak.&Seels.'!$A:$G,3,FALSE)),\"\",(VLOOKUP($A35,'A&V_Diak.&Seels.'!$A:$G,3,FALSE)))","v":"…"},{"$f":"IF(ISERROR(VLOOKUP($A35,'A&V_Diak.&Seels.'!$A:$G,6,FALSE)),\"\",(VLOOKUP($A35,'A&V_Diak.&Seels.'!$A:$G,6,FALSE)))","v":0},null,null,null,{"$f":"IF(ISERROR(VLOOKUP($A35,'A&V_Diak.&Seels.'!$A:$G,7,FALSE)),\"\",(VLOOKUP($A35,'A&V_Diak.&Seels.'!$A:$G,7,FALSE)))","v":0}]
[{"$f":"CONCATENATE($C$6,'A&V_Diak.&Seels.'!B25)","v":"SEE7"},{"$f":"IF(ISERROR(VLOOKUP($A36,'A&V_Diak.&Seels.'!$A:$G,3,FALSE)),\"\",(VLOOKUP($A36,'A&V_Diak.&Seels.'!$A:$G,3,FALSE)))","v":"…"},{"$f":"IF(ISERROR(VLOOKUP($A36,'A&V_Diak.&Seels.'!$A:$G,6,FALSE)),\"\",(VLOOKUP($A36,'A&V_Diak.&Seels.'!$A:$G,6,FALSE)))","v":0},null,null,null,{"$f":"IF(ISERROR(VLOOKUP($A36,'A&V_Diak.&Seels.'!$A:$G,7,FALSE)),\"\",(VLOOKUP($A36,'A&V_Diak.&Seels.'!$A:$G,7,FALSE)))","v":0}]
[{"$f":"CONCATENATE($C$6,'A&V_Diak.&Seels.'!B26)","v":"SEE8"},{"$f":"IF(ISERROR(VLOOKUP($A37,'A&V_Diak.&Seels.'!$A:$G,3,FALSE)),\"\",(VLOOKUP($A37,'A&V_Diak.&Seels.'!$A:$G,3,FALSE)))","v":"…"},{"$f":"IF(ISERROR(VLOOKUP($A37,'A&V_Diak.&Seels.'!$A:$G,6,FALSE)),\"\",(VLOOKUP($A37,'A&V_Diak.&Seels.'!$A:$G,6,FALSE)))","v":0},null,null,null,{"$f":"IF(ISERROR(VLOOKUP($A37,'A&V_Diak.&Seels.'!$A:$G,7,FALSE)),\"\",(VLOOKUP($A37,'A&V_Diak.&Seels.'!$A:$G,7,FALSE)))","v":0}]
[{"$f":"CONCATENATE($C$6,'A&V_Diak.&Seels.'!B27)","v":"SEE9"},{"$f":"IF(ISERROR(VLOOKUP($A38,'A&V_Diak.&Seels.'!$A:$G,3,FALSE)),\"\",(VLOOKUP($A38,'A&V_Diak.&Seels.'!$A:$G,3,FALSE)))","v":"…"},{"$f":"IF(ISERROR(VLOOKUP($A38,'A&V_Diak.&Seels.'!$A:$G,6,FALSE)),\"\",(VLOOKUP($A38,'A&V_Diak.&Seels.'!$A:$G,6,FALSE)))","v":0},null,null,null,{"$f":"IF(ISERROR(VLOOKUP($A38,'A&V_Diak.&Seels.'!$A:$G,7,FALSE)),\"\",(VLOOKUP($A38,'A&V_Diak.&Seels.'!$A:$G,7,FALSE)))","v":0}]
[{"$f":"CONCATENATE($C$6,'A&V_Diak.&Seels.'!B28)","v":"SEE10"},{"$f":"IF(ISERROR(VLOOKUP($A39,'A&V_Diak.&Seels.'!$A:$G,3,FALSE)),\"\",(VLOOKUP($A39,'A&V_Diak.&Seels.'!$A:$G,3,FALSE)))","v":"…"},{"$f":"IF(ISERROR(VLOOKUP($A39,'A&V_Diak.&Seels.'!$A:$G,6,FALSE)),\"\",(VLOOKUP($A39,'A&V_Diak.&Seels.'!$A:$G,6,FALSE)))","v":0},null,null,null,{"$f":"IF(ISERROR(VLOOKUP($A39,'A&V_Diak.&Seels.'!$A:$G,7,FALSE)),\"\",(VLOOKUP($A39,'A&V_Diak.&Seels.'!$A:$G,7,FALSE)))","v":0}]
[null,null,"a"]
[{"$f":"CONCATENATE($C$6,'A&V_Diak.&Seels.'!B159)","v":"D0"},{"$f":"'A&V_Diak.&Seels.'!C159","v":"Arbeitsbereich Diakonie"},{"$f":"'A&V_Diak.&Seels.'!F159","v":"Anzahl"},null,null,null,{"$f":"'A&V_Diak.&Seels.'!G159","v":"Bemerkung (Hauptverantwortung, Planung, konzeptioneller Ansatz)"}]
[null,null,"a"]
[{"$f":"CONCATENATE($C$6,'A&V_Diak.&Seels.'!B161)","v":"D1"},{"$f":"IF(ISERROR(VLOOKUP($A43,'A&V_Diak.&Seels.'!$A:$G,3,FALSE)),\"\",(VLOOKUP($A43,'A&V_Diak.&Seels.'!$A:$G,3,FALSE)))","v":"Veranstaltungen (AZ Stunden der Anlässe-> +AZ Std. * AZ Anlässe)"},{"$f":"IF(ISERROR(VLOOKUP($A43,'A&V_Diak.&Seels.'!$A:$G,6,FALSE)),\"\",(VLOOKUP($A43,'A&V_Diak.&Seels.'!$A:$G,6,FALSE)))","v":0},null,null,null,{"$f":"IF(ISERROR(VLOOKUP($A43,'A&V_Diak.&Seels.'!$A:$G,7,FALSE)),\"\",(VLOOKUP($A43,'A&V_Diak.&Seels.'!$A:$G,7,FALSE)))","v":0}]
[{"$f":"CONCATENATE($C$6,'A&V_Diak.&Seels.'!B162)","v":"D2"},{"$f":"IF(ISERROR(VLOOKUP($A44,'A&V_Diak.&Seels.'!$A:$G,3,FALSE)),\"\",(VLOOKUP($A44,'A&V_Diak.&Seels.'!$A:$G,3,FALSE)))","v":"Projekte (va Bene, letzte Hilfe etc.)"},{"$f":"IF(ISERROR(VLOOKUP($A44,'A&V_Diak.&Seels.'!$A:$G,6,FALSE)),\"\",(VLOOKUP($A44,'A&V_Diak.&Seels.'!$A:$G,6,FALSE)))","v":0},null,null,null,{"$f":"IF(ISERROR(VLOOKUP($A44,'A&V_Diak.&Seels.'!$A:$G,7,FALSE)),\"\",(VLOOKUP($A44,'A&V_Diak.&Seels.'!$A:$G,7,FALSE)))","v":0}]
[{"$f":"CONCATENATE($C$6,'A&V_Diak.&Seels.'!B163)","v":"D3"},{"$f":"IF(ISERROR(VLOOKUP($A45,'A&V_Diak.&Seels.'!$A:$G,3,FALSE)),\"\",(VLOOKUP($A45,'A&V_Diak.&Seels.'!$A:$G,3,FALSE)))","v":"Gruppen/Freiwillige"},{"$f":"IF(ISERROR(VLOOKUP($A45,'A&V_Diak.&Seels.'!$A:$G,6,FALSE)),\"\",(VLOOKUP($A45,'A&V_Diak.&Seels.'!$A:$G,6,FALSE)))","v":0},null,null,null,{"$f":"IF(ISERROR(VLOOKUP($A45,'A&V_Diak.&Seels.'!$A:$G,7,FALSE)),\"\",(VLOOKUP($A45,'A&V_Diak.&Seels.'!$A:$G,7,FALSE)))","v":0}]
[{"$f":"CONCATENATE($C$6,'A&V_Diak.&Seels.'!B164)","v":"D4"},{"$f":"IF(ISERROR(VLOOKUP($A46,'A&V_Diak.&Seels.'!$A:$G,3,FALSE)),\"\",(VLOOKUP($A46,'A&V_Diak.&Seels.'!$A:$G,3,FALSE)))","v":"Besondere und übrige Aufgaben"},{"$f":"IF(ISERROR(VLOOKUP($A46,'A&V_Diak.&Seels.'!$A:$G,6,FALSE)),\"\",(VLOOKUP($A46,'A&V_Diak.&Seels.'!$A:$G,6,FALSE)))","v":0},null,null,null,{"$f":"IF(ISERROR(VLOOKUP($A46,'A&V_Diak.&Seels.'!$A:$G,7,FALSE)),\"\",(VLOOKUP($A46,'A&V_Diak.&Seels.'!$A:$G,7,FALSE)))","v":0}]
[{"$f":"CONCATENATE($C$6,'A&V_Diak.&Seels.'!B165)","v":"D5"},{"$f":"IF(ISERROR(VLOOKUP($A47,'A&V_Diak.&Seels.'!$A:$G,3,FALSE)),\"\",(VLOOKUP($A47,'A&V_Diak.&Seels.'!$A:$G,3,FALSE)))","v":"…"},{"$f":"IF(ISERROR(VLOOKUP($A47,'A&V_Diak.&Seels.'!$A:$G,6,FALSE)),\"\",(VLOOKUP($A47,'A&V_Diak.&Seels.'!$A:$G,6,FALSE)))","v":0},null,null,null,{"$f":"IF(ISERROR(VLOOKUP($A47,'A&V_Diak.&Seels.'!$A:$G,7,FALSE)),\"\",(VLOOKUP($A47,'A&V_Diak.&Seels.'!$A:$G,7,FALSE)))","v":0}]
[{"$f":"CONCATENATE($C$6,'A&V_Diak.&Seels.'!B166)","v":"D6"},{"$f":"IF(ISERROR(VLOOKUP($A48,'A&V_Diak.&Seels.'!$A:$G,3,FALSE)),\"\",(VLOOKUP($A48,'A&V_Diak.&Seels.'!$A:$G,3,FALSE)))","v":"…"},{"$f":"IF(ISERROR(VLOOKUP($A48,'A&V_Diak.&Seels.'!$A:$G,6,FALSE)),\"\",(VLOOKUP($A48,'A&V_Diak.&Seels.'!$A:$G,6,FALSE)))","v":0},null,null,null,{"$f":"IF(ISERROR(VLOOKUP($A48,'A&V_Diak.&Seels.'!$A:$G,7,FALSE)),\"\",(VLOOKUP($A48,'A&V_Diak.&Seels.'!$A:$G,7,FALSE)))","v":0}]
[{"$f":"CONCATENATE($C$6,'A&V_Diak.&Seels.'!B167)","v":"D7"},{"$f":"IF(ISERROR(VLOOKUP($A49,'A&V_Diak.&Seels.'!$A:$G,3,FALSE)),\"\",(VLOOKUP($A49,'A&V_Diak.&Seels.'!$A:$G,3,FALSE)))","v":"…"},{"$f":"IF(ISERROR(VLOOKUP($A49,'A&V_Diak.&Seels.'!$A:$G,6,FALSE)),\"\",(VLOOKUP($A49,'A&V_Diak.&Seels.'!$A:$G,6,FALSE)))","v":0},null,null,null,{"$f":"IF(ISERROR(VLOOKUP($A49,'A&V_Diak.&Seels.'!$A:$G,7,FALSE)),\"\",(VLOOKUP($A49,'A&V_Diak.&Seels.'!$A:$G,7,FALSE)))","v":0}]
[{"$f":"CONCATENATE($C$6,'A&V_Diak.&Seels.'!B168)","v":"D8"},{"$f":"IF(ISERROR(VLOOKUP($A50,'A&V_Diak.&Seels.'!$A:$G,3,FALSE)),\"\",(VLOOKUP($A50,'A&V_Diak.&Seels.'!$A:$G,3,FALSE)))","v":"…"},{"$f":"IF(ISERROR(VLOOKUP($A50,'A&V_Diak.&Seels.'!$A:$G,6,FALSE)),\"\",(VLOOKUP($A50,'A&V_Diak.&Seels.'!$A:$G,6,FALSE)))","v":0},null,null,null,{"$f":"IF(ISERROR(VLOOKUP($A50,'A&V_Diak.&Seels.'!$A:$G,7,FALSE)),\"\",(VLOOKUP($A50,'A&V_Diak.&Seels.'!$A:$G,7,FALSE)))","v":0}]
[{"$f":"CONCATENATE($C$6,'A&V_Diak.&Seels.'!B169)","v":"D9"},{"$f":"IF(ISERROR(VLOOKUP($A51,'A&V_Diak.&Seels.'!$A:$G,3,FALSE)),\"\",(VLOOKUP($A51,'A&V_Diak.&Seels.'!$A:$G,3,FALSE)))","v":"…"},{"$f":"IF(ISERROR(VLOOKUP($A51,'A&V_Diak.&Seels.'!$A:$G,6,FALSE)),\"\",(VLOOKUP($A51,'A&V_Diak.&Seels.'!$A:$G,6,FALSE)))","v":0},null,null,null,{"$f":"IF(ISERROR(VLOOKUP($A51,'A&V_Diak.&Seels.'!$A:$G,7,FALSE)),\"\",(VLOOKUP($A51,'A&V_Diak.&Seels.'!$A:$G,7,FALSE)))","v":0}]
[null,null,"a"]
[{"$f":"CONCATENATE($C$6,'A&V_Diak.&Seels.'!B290)","v":"SEN0"},{"$f":"'A&V_Diak.&Seels.'!C290","v":"Arbeitsbereich Seniorenarbeit"},{"$f":"'A&V_Diak.&Seels.'!F290","v":"Anzahl "},null,null,null,{"$f":"'A&V_Diak.&Seels.'!G290","v":"Bemerkung (Hauptverantwortung, Planung, konzeptioneller Ansatz)"}]
[null,null,"a"]
[{"$f":"CONCATENATE($C$6,'A&V_Diak.&Seels.'!B292)","v":"SEN1"},{"$f":"IF(ISERROR(VLOOKUP($A55,'A&V_Diak.&Seels.'!$A:$G,3,FALSE)),\"\",(VLOOKUP($A55,'A&V_Diak.&Seels.'!$A:$G,3,FALSE)))","v":"Veranstaltungen (Seniorennachmittage, Ausflüge, Pilgern, AZ Stunden der Anlässe)"},{"$f":"IF(ISERROR(VLOOKUP($A55,'A&V_Diak.&Seels.'!$A:$G,6,FALSE)),\"\",(VLOOKUP($A55,'A&V_Diak.&Seels.'!$A:$G,6,FALSE)))","v":0},null,null,null,{"$f":"IF(ISERROR(VLOOKUP($A55,'A&V_Diak.&Seels.'!$A:$G,7,FALSE)),\"\",(VLOOKUP($A55,'A&V_Diak.&Seels.'!$A:$G,7,FALSE)))","v":0}]
[{"$f":"CONCATENATE($C$6,'A&V_Diak.&Seels.'!B293)","v":"SEN2"},{"$f":"IF(ISERROR(VLOOKUP($A56,'A&V_Diak.&Seels.'!$A:$G,3,FALSE)),\"\",(VLOOKUP($A56,'A&V_Diak.&Seels.'!$A:$G,3,FALSE)))","v":"Seniorenreisen (Tagesausflüge, Tagesreisen, AZ Reisetage)"},{"$f":"IF(ISERROR(VLOOKUP($A56,'A&V_Diak.&Seels.'!$A:$G,6,FALSE)),\"\",(VLOOKUP($A56,'A&V_Diak.&Seels.'!$A:$G,6,FALSE)))","v":0},null,null,null,{"$f":"IF(ISERROR(VLOOKUP($A56,'A&V_Diak.&Seels.'!$A:$G,7,FALSE)),\"\",(VLOOKUP($A56,'A&V_Diak.&Seels.'!$A:$G,7,FALSE)))","v":0}]
[{"$f":"CONCATENATE($C$6,'A&V_Diak.&Seels.'!B294)","v":"SEN3"},{"$f":"IF(ISERROR(VLOOKUP($A57,'A&V_Diak.&Seels.'!$A:$G,3,FALSE)),\"\",(VLOOKUP($A57,'A&V_Diak.&Seels.'!$A:$G,3,FALSE)))","v":"Seniorenferien (Mehrtägige Reisen, AZ Reisetage)"},{"$f":"IF(ISERROR(VLOOKUP($A57,'A&V_Diak.&Seels.'!$A:$G,6,FALSE)),\"\",(VLOOKUP($A57,'A&V_Diak.&Seels.'!$A:$G,6,FALSE)))","v":0},null,null,null,{"$f":"IF(ISERROR(VLOOKUP($A57,'A&V_Diak.&Seels.'!$A:$G,7,FALSE)),\"\",(VLOOKUP($A57,'A&V_Diak.&Seels.'!$A:$G,7,FALSE)))","v":0}]
[{"$f":"CONCATENATE($C$6,'A&V_Diak.&Seels.'!B295)","v":"SEN4"},{"$f":"IF(ISERROR(VLOOKUP($A58,'A&V_Diak.&Seels.'!$A:$G,3,FALSE)),\"\",(VLOOKUP($A58,'A&V_Diak.&Seels.'!$A:$G,3,FALSE)))","v":"Seniorengruppen/Freiwillige (AZ Stunden)"},{"$f":"IF(ISERROR(VLOOKUP($A58,'A&V_Diak.&Seels.'!$A:$G,6,FALSE)),\"\",(VLOOKUP($A58,'A&V_Diak.&Seels.'!$A:$G,6,FALSE)))","v":0},null,null,null,{"$f":"IF(ISERROR(VLOOKUP($A58,'A&V_Diak.&Seels.'!$A:$G,7,FALSE)),\"\",(VLOOKUP($A58,'A&V_Diak.&Seels.'!$A:$G,7,FALSE)))","v":0}]
[{"$f":"CONCATENATE($C$6,'A&V_Diak.&Seels.'!B296)","v":"SEN5"},{"$f":"IF(ISERROR(VLOOKUP($A59,'A&V_Diak.&Seels.'!$A:$G,3,FALSE)),\"\",(VLOOKUP($A59,'A&V_Diak.&Seels.'!$A:$G,3,FALSE)))","v":"Geburtstagsbesuche"},{"$f":"IF(ISERROR(VLOOKUP($A59,'A&V_Diak.&Seels.'!$A:$G,6,FALSE)),\"\",(VLOOKUP($A59,'A&V_Diak.&Seels.'!$A:$G,6,FALSE)))","v":0},null,null,null,{"$f":"IF(ISERROR(VLOOKUP($A59,'A&V_Diak.&Seels.'!$A:$G,7,FALSE)),\"\",(VLOOKUP($A59,'A&V_Diak.&Seels.'!$A:$G,7,FALSE)))","v":0}]
[{"$f":"CONCATENATE($C$6,'A&V_Diak.&Seels.'!B297)","v":"SEN6"},{"$f":"IF(ISERROR(VLOOKUP($A60,'A&V_Diak.&Seels.'!$A:$G,3,FALSE)),\"\",(VLOOKUP($A60,'A&V_Diak.&Seels.'!$A:$G,3,FALSE)))","v":"Besondere und übrige Aufgaben"},{"$f":"IF(ISERROR(VLOOKUP($A60,'A&V_Diak.&Seels.'!$A:$G,6,FALSE)),\"\",(VLOOKUP($A60,'A&V_Diak.&Seels.'!$A:$G,6,FALSE)))","v":0},null,null,null,{"$f":"IF(ISERROR(VLOOKUP($A60,'A&V_Diak.&Seels.'!$A:$G,7,FALSE)),\"\",(VLOOKUP($A60,'A&V_Diak.&Seels.'!$A:$G,7,FALSE)))","v":0}]
[{"$f":"CONCATENATE($C$6,'A&V_Diak.&Seels.'!B298)","v":"SEN7"},{"$f":"IF(ISERROR(VLOOKUP($A61,'A&V_Diak.&Seels.'!$A:$G,3,FALSE)),\"\",(VLOOKUP($A61,'A&V_Diak.&Seels.'!$A:$G,3,FALSE)))","v":"…"},{"$f":"IF(ISERROR(VLOOKUP($A61,'A&V_Diak.&Seels.'!$A:$G,6,FALSE)),\"\",(VLOOKUP($A61,'A&V_Diak.&Seels.'!$A:$G,6,FALSE)))","v":0},null,null,null,{"$f":"IF(ISERROR(VLOOKUP($A61,'A&V_Diak.&Seels.'!$A:$G,7,FALSE)),\"\",(VLOOKUP($A61,'A&V_Diak.&Seels.'!$A:$G,7,FALSE)))","v":0}]
[{"$f":"CONCATENATE($C$6,'A&V_Diak.&Seels.'!B299)","v":"SEN8"},{"$f":"IF(ISERROR(VLOOKUP($A62,'A&V_Diak.&Seels.'!$A:$G,3,FALSE)),\"\",(VLOOKUP($A62,'A&V_Diak.&Seels.'!$A:$G,3,FALSE)))","v":"…"},{"$f":"IF(ISERROR(VLOOKUP($A62,'A&V_Diak.&Seels.'!$A:$G,6,FALSE)),\"\",(VLOOKUP($A62,'A&V_Diak.&Seels.'!$A:$G,6,FALSE)))","v":0},null,null,null,{"$f":"IF(ISERROR(VLOOKUP($A62,'A&V_Diak.&Seels.'!$A:$G,7,FALSE)),\"\",(VLOOKUP($A62,'A&V_Diak.&Seels.'!$A:$G,7,FALSE)))","v":0}]
[{"$f":"CONCATENATE($C$6,'A&V_Diak.&Seels.'!B300)","v":"SEN9"},{"$f":"IF(ISERROR(VLOOKUP($A63,'A&V_Diak.&Seels.'!$A:$G,3,FALSE)),\"\",(VLOOKUP($A63,'A&V_Diak.&Seels.'!$A:$G,3,FALSE)))","v":"…"},{"$f":"IF(ISERROR(VLOOKUP($A63,'A&V_Diak.&Seels.'!$A:$G,6,FALSE)),\"\",(VLOOKUP($A63,'A&V_Diak.&Seels.'!$A:$G,6,FALSE)))","v":0},null,null,null,{"$f":"IF(ISERROR(VLOOKUP($A63,'A&V_Diak.&Seels.'!$A:$G,7,FALSE)),\"\",(VLOOKUP($A63,'A&V_Diak.&Seels.'!$A:$G,7,FALSE)))","v":0}]
[{"$f":"CONCATENATE($C$6,'A&V_Diak.&Seels.'!B301)","v":"SEN10"},{"$f":"IF(ISERROR(VLOOKUP($A64,'A&V_Diak.&Seels.'!$A:$G,3,FALSE)),\"\",(VLOOKUP($A64,'A&V_Diak.&Seels.'!$A:$G,3,FALSE)))","v":"…"},{"$f":"IF(ISERROR(VLOOKUP($A64,'A&V_Diak.&Seels.'!$A:$G,6,FALSE)),\"\",(VLOOKUP($A64,'A&V_Diak.&Seels.'!$A:$G,6,FALSE)))","v":0},null,null,null,{"$f":"IF(ISERROR(VLOOKUP($A64,'A&V_Diak.&Seels.'!$A:$G,7,FALSE)),\"\",(VLOOKUP($A64,'A&V_Diak.&Seels.'!$A:$G,7,FALSE)))","v":0}]
[{"$f":"CONCATENATE($C$6,'A&V_Diak.&Seels.'!B302)","v":"SEN11"},{"$f":"IF(ISERROR(VLOOKUP($A65,'A&V_Diak.&Seels.'!$A:$G,3,FALSE)),\"\",(VLOOKUP($A65,'A&V_Diak.&Seels.'!$A:$G,3,FALSE)))","v":"…"},{"$f":"IF(ISERROR(VLOOKUP($A65,'A&V_Diak.&Seels.'!$A:$G,6,FALSE)),\"\",(VLOOKUP($A65,'A&V_Diak.&Seels.'!$A:$G,6,FALSE)))","v":0},null,null,null,{"$f":"IF(ISERROR(VLOOKUP($A65,'A&V_Diak.&Seels.'!$A:$G,7,FALSE)),\"\",(VLOOKUP($A65,'A&V_Diak.&Seels.'!$A:$G,7,FALSE)))","v":0}]
[null,null,"a"]
[{"$f":"CONCATENATE($C$6,'A&V_Bild.&Spirit.'!B17)","v":"K0"},{"$f":"'A&V_Bild.&Spirit.'!C17","v":"Arbeitsbereich Konfirmandenarbeit und rpg"},{"$f":"'A&V_Bild.&Spirit.'!F17","v":"Anzahl "},null,null,null,{"$f":"'A&V_Bild.&Spirit.'!G17","v":"Bemerkung (Hauptverantwortung, Planung, konzeptioneller Ansatz)"}]
[null,null,"a"]
[{"$f":"CONCATENATE($C$6,'A&V_Bild.&Spirit.'!B19)","v":"K1"},{"$f":"IF(ISERROR(VLOOKUP($A69,'A&V_Bild.&Spirit.'!$A:$G,3,FALSE)),\"\",(VLOOKUP($A69,'A&V_Bild.&Spirit.'!$A:$G,3,FALSE)))","v":"Konfirmandenunterricht (AZ Lektionen)"},{"$f":"IF(ISERROR(VLOOKUP($A69,'A&V_Bild.&Spirit.'!$A:$G,6,FALSE)),\"\",(VLOOKUP($A69,'A&V_Bild.&Spirit.'!$A:$G,6,FALSE)))","v":0},null,null,null,{"$f":"IF(ISERROR(VLOOKUP($A69,'A&V_Bild.&Spirit.'!$A:$G,7,FALSE)),\"\",(VLOOKUP($A69,'A&V_Bild.&Spirit.'!$A:$G,7,FALSE)))","v":0}]
[{"$f":"CONCATENATE($C$6,'A&V_Bild.&Spirit.'!B20)","v":"K2"},{"$f":"IF(ISERROR(VLOOKUP($A70,'A&V_Bild.&Spirit.'!$A:$G,3,FALSE)),\"\",(VLOOKUP($A70,'A&V_Bild.&Spirit.'!$A:$G,3,FALSE)))","v":"Juki-Lektionen"},{"$f":"IF(ISERROR(VLOOKUP($A70,'A&V_Bild.&Spirit.'!$A:$G,6,FALSE)),\"\",(VLOOKUP($A70,'A&V_Bild.&Spirit.'!$A:$G,6,FALSE)))","v":0},null,null,null,{"$f":"IF(ISERROR(VLOOKUP($A70,'A&V_Bild.&Spirit.'!$A:$G,7,FALSE)),\"\",(VLOOKUP($A70,'A&V_Bild.&Spirit.'!$A:$G,7,FALSE)))","v":0}]
[{"$f":"CONCATENATE($C$6,'A&V_Bild.&Spirit.'!B21)","v":"K3"},{"$f":"IF(ISERROR(VLOOKUP($A71,'A&V_Bild.&Spirit.'!$A:$G,3,FALSE)),\"\",(VLOOKUP($A71,'A&V_Bild.&Spirit.'!$A:$G,3,FALSE)))","v":"sonstige Angebote rpg (AZ Lektionen)"},{"$f":"IF(ISERROR(VLOOKUP($A71,'A&V_Bild.&Spirit.'!$A:$G,6,FALSE)),\"\",(VLOOKUP($A71,'A&V_Bild.&Spirit.'!$A:$G,6,FALSE)))","v":0},null,null,null,{"$f":"IF(ISERROR(VLOOKUP($A71,'A&V_Bild.&Spirit.'!$A:$G,7,FALSE)),\"\",(VLOOKUP($A71,'A&V_Bild.&Spirit.'!$A:$G,7,FALSE)))","v":0}]
[{"$f":"CONCATENATE($C$6,'A&V_Bild.&Spirit.'!B22)","v":"K4"},{"$f":"IF(ISERROR(VLOOKUP($A72,'A&V_Bild.&Spirit.'!$A:$G,3,FALSE)),\"\",(VLOOKUP($A72,'A&V_Bild.&Spirit.'!$A:$G,3,FALSE)))","v":"Projekttage"},{"$f":"IF(ISERROR(VLOOKUP($A72,'A&V_Bild.&Spirit.'!$A:$G,6,FALSE)),\"\",(VLOOKUP($A72,'A&V_Bild.&Spirit.'!$A:$G,6,FALSE)))","v":0},null,null,null,{"$f":"IF(ISERROR(VLOOKUP($A72,'A&V_Bild.&Spirit.'!$A:$G,7,FALSE)),\"\",(VLOOKUP($A72,'A&V_Bild.&Spirit.'!$A:$G,7,FALSE)))","v":0}]
[{"$f":"CONCATENATE($C$6,'A&V_Bild.&Spirit.'!B23)","v":"K5"},{"$f":"IF(ISERROR(VLOOKUP($A73,'A&V_Bild.&Spirit.'!$A:$G,3,FALSE)),\"\",(VLOOKUP($A73,'A&V_Bild.&Spirit.'!$A:$G,3,FALSE)))","v":"Lager (AZ Tage)"},{"$f":"IF(ISERROR(VLOOKUP($A73,'A&V_Bild.&Spirit.'!$A:$G,6,FALSE)),\"\",(VLOOKUP($A73,'A&V_Bild.&Spirit.'!$A:$G,6,FALSE)))","v":0},null,null,null,{"$f":"IF(ISERROR(VLOOKUP($A73,'A&V_Bild.&Spirit.'!$A:$G,7,FALSE)),\"\",(VLOOKUP($A73,'A&V_Bild.&Spirit.'!$A:$G,7,FALSE)))","v":0}]
[{"$f":"CONCATENATE($C$6,'A&V_Bild.&Spirit.'!B24)","v":"K6"},{"$f":"IF(ISERROR(VLOOKUP($A74,'A&V_Bild.&Spirit.'!$A:$G,3,FALSE)),\"\",(VLOOKUP($A74,'A&V_Bild.&Spirit.'!$A:$G,3,FALSE)))","v":"Gemeindeferien (AZ Ferientage)"},{"$f":"IF(ISERROR(VLOOKUP($A74,'A&V_Bild.&Spirit.'!$A:$G,6,FALSE)),\"\",(VLOOKUP($A74,'A&V_Bild.&Spirit.'!$A:$G,6,FALSE)))","v":0},null,null,null,{"$f":"IF(ISERROR(VLOOKUP($A74,'A&V_Bild.&Spirit.'!$A:$G,7,FALSE)),\"\",(VLOOKUP($A74,'A&V_Bild.&Spirit.'!$A:$G,7,FALSE)))","v":0}]
[{"$f":"CONCATENATE($C$6,'A&V_Bild.&Spirit.'!B25)","v":"K7"},{"$f":"IF(ISERROR(VLOOKUP($A75,'A&V_Bild.&Spirit.'!$A:$G,3,FALSE)),\"\",(VLOOKUP($A75,'A&V_Bild.&Spirit.'!$A:$G,3,FALSE)))","v":"Besondere und übrige Aufgaben"},{"$f":"IF(ISERROR(VLOOKUP($A75,'A&V_Bild.&Spirit.'!$A:$G,6,FALSE)),\"\",(VLOOKUP($A75,'A&V_Bild.&Spirit.'!$A:$G,6,FALSE)))","v":0},null,null,null,{"$f":"IF(ISERROR(VLOOKUP($A75,'A&V_Bild.&Spirit.'!$A:$G,7,FALSE)),\"\",(VLOOKUP($A75,'A&V_Bild.&Spirit.'!$A:$G,7,FALSE)))","v":0}]
[{"$f":"CONCATENATE($C$6,'A&V_Bild.&Spirit.'!B26)","v":"K8"},{"$f":"IF(ISERROR(VLOOKUP($A76,'A&V_Bild.&Spirit.'!$A:$G,3,FALSE)),\"\",(VLOOKUP($A76,'A&V_Bild.&Spirit.'!$A:$G,3,FALSE)))","v":"…"},{"$f":"IF(ISERROR(VLOOKUP($A76,'A&V_Bild.&Spirit.'!$A:$G,6,FALSE)),\"\",(VLOOKUP($A76,'A&V_Bild.&Spirit.'!$A:$G,6,FALSE)))","v":0},null,null,null,{"$f":"IF(ISERROR(VLOOKUP($A76,'A&V_Bild.&Spirit.'!$A:$G,7,FALSE)),\"\",(VLOOKUP($A76,'A&V_Bild.&Spirit.'!$A:$G,7,FALSE)))","v":0}]
[{"$f":"CONCATENATE($C$6,'A&V_Bild.&Spirit.'!B27)","v":"K9"},{"$f":"IF(ISERROR(VLOOKUP($A77,'A&V_Bild.&Spirit.'!$A:$G,3,FALSE)),\"\",(VLOOKUP($A77,'A&V_Bild.&Spirit.'!$A:$G,3,FALSE)))","v":"…"},{"$f":"IF(ISERROR(VLOOKUP($A77,'A&V_Bild.&Spirit.'!$A:$G,6,FALSE)),\"\",(VLOOKUP($A77,'A&V_Bild.&Spirit.'!$A:$G,6,FALSE)))","v":0},null,null,null,{"$f":"IF(ISERROR(VLOOKUP($A77,'A&V_Bild.&Spirit.'!$A:$G,7,FALSE)),\"\",(VLOOKUP($A77,'A&V_Bild.&Spirit.'!$A:$G,7,FALSE)))","v":0}]
[{"$f":"CONCATENATE($C$6,'A&V_Bild.&Spirit.'!B28)","v":"K10"},{"$f":"IF(ISERROR(VLOOKUP($A78,'A&V_Bild.&Spirit.'!$A:$G,3,FALSE)),\"\",(VLOOKUP($A78,'A&V_Bild.&Spirit.'!$A:$G,3,FALSE)))","v":"…"},{"$f":"IF(ISERROR(VLOOKUP($A78,'A&V_Bild.&Spirit.'!$A:$G,6,FALSE)),\"\",(VLOOKUP($A78,'A&V_Bild.&Spirit.'!$A:$G,6,FALSE)))","v":0},null,null,null,{"$f":"IF(ISERROR(VLOOKUP($A78,'A&V_Bild.&Spirit.'!$A:$G,7,FALSE)),\"\",(VLOOKUP($A78,'A&V_Bild.&Spirit.'!$A:$G,7,FALSE)))","v":0}]
[{"$f":"CONCATENATE($C$6,'A&V_Bild.&Spirit.'!B29)","v":"K11"},{"$f":"IF(ISERROR(VLOOKUP($A79,'A&V_Bild.&Spirit.'!$A:$G,3,FALSE)),\"\",(VLOOKUP($A79,'A&V_Bild.&Spirit.'!$A:$G,3,FALSE)))","v":"…"},{"$f":"IF(ISERROR(VLOOKUP($A79,'A&V_Bild.&Spirit.'!$A:$G,6,FALSE)),\"\",(VLOOKUP($A79,'A&V_Bild.&Spirit.'!$A:$G,6,FALSE)))","v":0},null,null,null,{"$f":"IF(ISERROR(VLOOKUP($A79,'A&V_Bild.&Spirit.'!$A:$G,7,FALSE)),\"\",(VLOOKUP($A79,'A&V_Bild.&Spirit.'!$A:$G,7,FALSE)))","v":0}]
[{"$f":"CONCATENATE($C$6,'A&V_Bild.&Spirit.'!B30)","v":"K12"},{"$f":"IF(ISERROR(VLOOKUP($A80,'A&V_Bild.&Spirit.'!$A:$G,3,FALSE)),\"\",(VLOOKUP($A80,'A&V_Bild.&Spirit.'!$A:$G,3,FALSE)))","v":"…"},{"$f":"IF(ISERROR(VLOOKUP($A80,'A&V_Bild.&Spirit.'!$A:$G,6,FALSE)),\"\",(VLOOKUP($A80,'A&V_Bild.&Spirit.'!$A:$G,6,FALSE)))","v":0},null,null,null,{"$f":"IF(ISERROR(VLOOKUP($A80,'A&V_Bild.&Spirit.'!$A:$G,7,FALSE)),\"\",(VLOOKUP($A80,'A&V_Bild.&Spirit.'!$A:$G,7,FALSE)))","v":0}]
[null,null,"a"]
[{"$f":"CONCATENATE($C$6,'A&V_Bild.&Spirit.'!B183)","v":"E0"},{"$f":"'A&V_Bild.&Spirit.'!C183","v":"Arbeitsbereich Erwachsenenbildung"},{"$f":"'A&V_Bild.&Spirit.'!F183","v":"Anzahl "},null,null,null,{"$f":"'A&V_Bild.&Spirit.'!G183","v":"Bemerkung (Hauptverantwortung, Planung, konzeptioneller Ansatz)"}]
[null,null,"a"]
[{"$f":"CONCATENATE($C$6,'A&V_Bild.&Spirit.'!B185)","v":"E1"},{"$f":"IF(ISERROR(VLOOKUP($A84,'A&V_Bild.&Spirit.'!$A:$G,3,FALSE)),\"\",(VLOOKUP($A84,'A&V_Bild.&Spirit.'!$A:$G,3,FALSE)))","v":"Veranstaltungen (Bildungsveranstaltungen, Ausflüge, Pilgern, AZ Stunden der Anlässe)"},{"$f":"IF(ISERROR(VLOOKUP($A84,'A&V_Bild.&Spirit.'!$A:$G,6,FALSE)),\"\",(VLOOKUP($A84,'A&V_Bild.&Spirit.'!$A:$G,6,FALSE)))","v":0},null,null,null,{"$f":"IF(ISERROR(VLOOKUP($A84,'A&V_Bild.&Spirit.'!$A:$G,7,FALSE)),\"\",(VLOOKUP($A84,'A&V_Bild.&Spirit.'!$A:$G,7,FALSE)))","v":0}]
[{"$f":"CONCATENATE($C$6,'A&V_Bild.&Spirit.'!B186)","v":"E2"},{"$f":"IF(ISERROR(VLOOKUP($A85,'A&V_Bild.&Spirit.'!$A:$G,3,FALSE)),\"\",(VLOOKUP($A85,'A&V_Bild.&Spirit.'!$A:$G,3,FALSE)))","v":"Gemeindereisen (Tagesausflüge, Tagesreisen, AZ Reisetage)"},{"$f":"IF(ISERROR(VLOOKUP($A85,'A&V_Bild.&Spirit.'!$A:$G,6,FALSE)),\"\",(VLOOKUP($A85,'A&V_Bild.&Spirit.'!$A:$G,6,FALSE)))","v":0},null,null,null,{"$f":"IF(ISERROR(VLOOKUP($A85,'A&V_Bild.&Spirit.'!$A:$G,7,FALSE)),\"\",(VLOOKUP($A85,'A&V_Bild.&Spirit.'!$A:$G,7,FALSE)))","v":0}]
[{"$f":"CONCATENATE($C$6,'A&V_Bild.&Spirit.'!B187)","v":"E3"},{"$f":"IF(ISERROR(VLOOKUP($A86,'A&V_Bild.&Spirit.'!$A:$G,3,FALSE)),\"\",(VLOOKUP($A86,'A&V_Bild.&Spirit.'!$A:$G,3,FALSE)))","v":"Gemeindeferien (Mehrtägige Reisen, AZ Reisetage)"},{"$f":"IF(ISERROR(VLOOKUP($A86,'A&V_Bild.&Spirit.'!$A:$G,6,FALSE)),\"\",(VLOOKUP($A86,'A&V_Bild.&Spirit.'!$A:$G,6,FALSE)))","v":0},null,null,null,{"$f":"IF(ISERROR(VLOOKUP($A86,'A&V_Bild.&Spirit.'!$A:$G,7,FALSE)),\"\",(VLOOKUP($A86,'A&V_Bild.&Spirit.'!$A:$G,7,FALSE)))","v":0}]
[{"$f":"CONCATENATE($C$6,'A&V_Bild.&Spirit.'!B188)","v":"E4"},{"$f":"IF(ISERROR(VLOOKUP($A87,'A&V_Bild.&Spirit.'!$A:$G,3,FALSE)),\"\",(VLOOKUP($A87,'A&V_Bild.&Spirit.'!$A:$G,3,FALSE)))","v":"Gruppen/Freiwillige"},{"$f":"IF(ISERROR(VLOOKUP($A87,'A&V_Bild.&Spirit.'!$A:$G,6,FALSE)),\"\",(VLOOKUP($A87,'A&V_Bild.&Spirit.'!$A:$G,6,FALSE)))","v":0},null,null,null,{"$f":"IF(ISERROR(VLOOKUP($A87,'A&V_Bild.&Spirit.'!$A:$G,7,FALSE)),\"\",(VLOOKUP($A87,'A&V_Bild.&Spirit.'!$A:$G,7,FALSE)))","v":0}]
[{"$f":"CONCATENATE($C$6,'A&V_Bild.&Spirit.'!B189)","v":"E5"},{"$f":"IF(ISERROR(VLOOKUP($A88,'A&V_Bild.&Spirit.'!$A:$G,3,FALSE)),\"\",(VLOOKUP($A88,'A&V_Bild.&Spirit.'!$A:$G,3,FALSE)))","v":"Besondere und übrige Aufgaben"},{"$f":"IF(ISERROR(VLOOKUP($A88,'A&V_Bild.&Spirit.'!$A:$G,6,FALSE)),\"\",(VLOOKUP($A88,'A&V_Bild.&Spirit.'!$A:$G,6,FALSE)))","v":0},null,null,null,{"$f":"IF(ISERROR(VLOOKUP($A88,'A&V_Bild.&Spirit.'!$A:$G,7,FALSE)),\"\",(VLOOKUP($A88,'A&V_Bild.&Spirit.'!$A:$G,7,FALSE)))","v":0}]
[{"$f":"CONCATENATE($C$6,'A&V_Bild.&Spirit.'!B190)","v":"E6"},{"$f":"IF(ISERROR(VLOOKUP($A89,'A&V_Bild.&Spirit.'!$A:$G,3,FALSE)),\"\",(VLOOKUP($A89,'A&V_Bild.&Spirit.'!$A:$G,3,FALSE)))","v":"…"},{"$f":"IF(ISERROR(VLOOKUP($A89,'A&V_Bild.&Spirit.'!$A:$G,6,FALSE)),\"\",(VLOOKUP($A89,'A&V_Bild.&Spirit.'!$A:$G,6,FALSE)))","v":0},null,null,null,{"$f":"IF(ISERROR(VLOOKUP($A89,'A&V_Bild.&Spirit.'!$A:$G,7,FALSE)),\"\",(VLOOKUP($A89,'A&V_Bild.&Spirit.'!$A:$G,7,FALSE)))","v":0}]
[{"$f":"CONCATENATE($C$6,'A&V_Bild.&Spirit.'!B191)","v":"E7"},{"$f":"IF(ISERROR(VLOOKUP($A90,'A&V_Bild.&Spirit.'!$A:$G,3,FALSE)),\"\",(VLOOKUP($A90,'A&V_Bild.&Spirit.'!$A:$G,3,FALSE)))","v":"…"},{"$f":"IF(ISERROR(VLOOKUP($A90,'A&V_Bild.&Spirit.'!$A:$G,6,FALSE)),\"\",(VLOOKUP($A90,'A&V_Bild.&Spirit.'!$A:$G,6,FALSE)))","v":0},null,null,null,{"$f":"IF(ISERROR(VLOOKUP($A90,'A&V_Bild.&Spirit.'!$A:$G,7,FALSE)),\"\",(VLOOKUP($A90,'A&V_Bild.&Spirit.'!$A:$G,7,FALSE)))","v":0}]
[{"$f":"CONCATENATE($C$6,'A&V_Bild.&Spirit.'!B192)","v":"E8"},{"$f":"IF(ISERROR(VLOOKUP($A91,'A&V_Bild.&Spirit.'!$A:$G,3,FALSE)),\"\",(VLOOKUP($A91,'A&V_Bild.&Spirit.'!$A:$G,3,FALSE)))","v":"…"},{"$f":"IF(ISERROR(VLOOKUP($A91,'A&V_Bild.&Spirit.'!$A:$G,6,FALSE)),\"\",(VLOOKUP($A91,'A&V_Bild.&Spirit.'!$A:$G,6,FALSE)))","v":0},null,null,null,{"$f":"IF(ISERROR(VLOOKUP($A91,'A&V_Bild.&Spirit.'!$A:$G,7,FALSE)),\"\",(VLOOKUP($A91,'A&V_Bild.&Spirit.'!$A:$G,7,FALSE)))","v":0}]
[{"$f":"CONCATENATE($C$6,'A&V_Bild.&Spirit.'!B193)","v":"E9"},{"$f":"IF(ISERROR(VLOOKUP($A92,'A&V_Bild.&Spirit.'!$A:$G,3,FALSE)),\"\",(VLOOKUP($A92,'A&V_Bild.&Spirit.'!$A:$G,3,FALSE)))","v":"…"},{"$f":"IF(ISERROR(VLOOKUP($A92,'A&V_Bild.&Spirit.'!$A:$G,6,FALSE)),\"\",(VLOOKUP($A92,'A&V_Bild.&Spirit.'!$A:$G,6,FALSE)))","v":0},null,null,null,{"$f":"IF(ISERROR(VLOOKUP($A92,'A&V_Bild.&Spirit.'!$A:$G,7,FALSE)),\"\",(VLOOKUP($A92,'A&V_Bild.&Spirit.'!$A:$G,7,FALSE)))","v":0}]
[{"$f":"CONCATENATE($C$6,'A&V_Bild.&Spirit.'!B194)","v":"E10"},{"$f":"IF(ISERROR(VLOOKUP($A93,'A&V_Bild.&Spirit.'!$A:$G,3,FALSE)),\"\",(VLOOKUP($A93,'A&V_Bild.&Spirit.'!$A:$G,3,FALSE)))","v":"…"},{"$f":"IF(ISERROR(VLOOKUP($A93,'A&V_Bild.&Spirit.'!$A:$G,6,FALSE)),\"\",(VLOOKUP($A93,'A&V_Bild.&Spirit.'!$A:$G,6,FALSE)))","v":0},null,null,null,{"$f":"IF(ISERROR(VLOOKUP($A93,'A&V_Bild.&Spirit.'!$A:$G,7,FALSE)),\"\",(VLOOKUP($A93,'A&V_Bild.&Spirit.'!$A:$G,7,FALSE)))","v":0}]
[null,null,"a"]
[{"$f":"CONCATENATE($C$6,'A&V_Aufb.&Leit.'!B17)","v":"G0"},{"$f":"'A&V_Aufb.&Leit.'!C17","v":"Arbeitsbereich Gemeindeleitung"},{"$f":"'A&V_Aufb.&Leit.'!F17","v":"Anzahl"},null,null,null,{"$f":"'A&V_Aufb.&Leit.'!G17","v":"Bemerkung (Hauptverantwortung, Planung, konzeptioneller Ansatz)"}]
[null,null,"a"]
[{"$f":"CONCATENATE($C$6,'A&V_Aufb.&Leit.'!B19)","v":"G1"},{"$f":"IF(ISERROR(VLOOKUP($A97,'A&V_Aufb.&Leit.'!$A:$G,3,FALSE)),\"\",(VLOOKUP($A97,'A&V_Aufb.&Leit.'!$A:$G,3,FALSE)))","v":"Sitzungen Pfarrkonvent"},{"$f":"IF(ISERROR(VLOOKUP($A97,'A&V_Aufb.&Leit.'!$A:$G,6,FALSE)),\"\",(VLOOKUP($A97,'A&V_Aufb.&Leit.'!$A:$G,6,FALSE)))","v":0},null,null,null,{"$f":"IF(ISERROR(VLOOKUP($A97,'A&V_Aufb.&Leit.'!$A:$G,7,FALSE)),\"\",(VLOOKUP($A97,'A&V_Aufb.&Leit.'!$A:$G,7,FALSE)))","v":0}]
[{"$f":"CONCATENATE($C$6,'A&V_Aufb.&Leit.'!B20)","v":"G2"},{"$f":"IF(ISERROR(VLOOKUP($A98,'A&V_Aufb.&Leit.'!$A:$G,3,FALSE)),\"\",(VLOOKUP($A98,'A&V_Aufb.&Leit.'!$A:$G,3,FALSE)))","v":"Leitung Pfarrkonvent (in AT)"},{"$f":"IF(ISERROR(VLOOKUP($A98,'A&V_Aufb.&Leit.'!$A:$G,6,FALSE)),\"\",(VLOOKUP($A98,'A&V_Aufb.&Leit.'!$A:$G,6,FALSE)))","v":0},null,null,null,{"$f":"IF(ISERROR(VLOOKUP($A98,'A&V_Aufb.&Leit.'!$A:$G,7,FALSE)),\"\",(VLOOKUP($A98,'A&V_Aufb.&Leit.'!$A:$G,7,FALSE)))","v":0}]
[{"$f":"CONCATENATE($C$6,'A&V_Aufb.&Leit.'!B21)","v":"G3"},{"$f":"IF(ISERROR(VLOOKUP($A99,'A&V_Aufb.&Leit.'!$A:$G,3,FALSE)),\"\",(VLOOKUP($A99,'A&V_Aufb.&Leit.'!$A:$G,3,FALSE)))","v":"Vertretung des Pfarrkonvents in der KP"},{"$f":"IF(ISERROR(VLOOKUP($A99,'A&V_Aufb.&Leit.'!$A:$G,6,FALSE)),\"\",(VLOOKUP($A99,'A&V_Aufb.&Leit.'!$A:$G,6,FALSE)))","v":0},null,null,null,{"$f":"IF(ISERROR(VLOOKUP($A99,'A&V_Aufb.&Leit.'!$A:$G,7,FALSE)),\"\",(VLOOKUP($A99,'A&V_Aufb.&Leit.'!$A:$G,7,FALSE)))","v":0}]
[{"$f":"CONCATENATE($C$6,'A&V_Aufb.&Leit.'!B22)","v":"G4"},{"$f":"IF(ISERROR(VLOOKUP($A100,'A&V_Aufb.&Leit.'!$A:$G,3,FALSE)),\"\",(VLOOKUP($A100,'A&V_Aufb.&Leit.'!$A:$G,3,FALSE)))","v":"Sitzungen Gemeindekonvent"},{"$f":"IF(ISERROR(VLOOKUP($A100,'A&V_Aufb.&Leit.'!$A:$G,6,FALSE)),\"\",(VLOOKUP($A100,'A&V_Aufb.&Leit.'!$A:$G,6,FALSE)))","v":0},null,null,null,{"$f":"IF(ISERROR(VLOOKUP($A100,'A&V_Aufb.&Leit.'!$A:$G,7,FALSE)),\"\",(VLOOKUP($A100,'A&V_Aufb.&Leit.'!$A:$G,7,FALSE)))","v":0}]
[{"$f":"CONCATENATE($C$6,'A&V_Aufb.&Leit.'!B23)","v":"G5"},{"$f":"IF(ISERROR(VLOOKUP($A101,'A&V_Aufb.&Leit.'!$A:$G,3,FALSE)),\"\",(VLOOKUP($A101,'A&V_Aufb.&Leit.'!$A:$G,3,FALSE)))","v":"Kommissionen"},{"$f":"IF(ISERROR(VLOOKUP($A101,'A&V_Aufb.&Leit.'!$A:$G,6,FALSE)),\"\",(VLOOKUP($A101,'A&V_Aufb.&Leit.'!$A:$G,6,FALSE)))","v":0},null,null,null,{"$f":"IF(ISERROR(VLOOKUP($A101,'A&V_Aufb.&Leit.'!$A:$G,7,FALSE)),\"\",(VLOOKUP($A101,'A&V_Aufb.&Leit.'!$A:$G,7,FALSE)))","v":0}]
[{"$f":"CONCATENATE($C$6,'A&V_Aufb.&Leit.'!B24)","v":"G6"},{"$f":"IF(ISERROR(VLOOKUP($A102,'A&V_Aufb.&Leit.'!$A:$G,3,FALSE)),\"\",(VLOOKUP($A102,'A&V_Aufb.&Leit.'!$A:$G,3,FALSE)))","v":"Arbeitsgruppen"},{"$f":"IF(ISERROR(VLOOKUP($A102,'A&V_Aufb.&Leit.'!$A:$G,6,FALSE)),\"\",(VLOOKUP($A102,'A&V_Aufb.&Leit.'!$A:$G,6,FALSE)))","v":0},null,null,null,{"$f":"IF(ISERROR(VLOOKUP($A102,'A&V_Aufb.&Leit.'!$A:$G,7,FALSE)),\"\",(VLOOKUP($A102,'A&V_Aufb.&Leit.'!$A:$G,7,FALSE)))","v":0}]
[{"$f":"CONCATENATE($C$6,'A&V_Aufb.&Leit.'!B25)","v":"G7"},{"$f":"IF(ISERROR(VLOOKUP($A103,'A&V_Aufb.&Leit.'!$A:$G,3,FALSE)),\"\",(VLOOKUP($A103,'A&V_Aufb.&Leit.'!$A:$G,3,FALSE)))","v":"Schwerpunktleitung"},{"$f":"IF(ISERROR(VLOOKUP($A103,'A&V_Aufb.&Leit.'!$A:$G,6,FALSE)),\"\",(VLOOKUP($A103,'A&V_Aufb.&Leit.'!$A:$G,6,FALSE)))","v":0},null,null,null,{"$f":"IF(ISERROR(VLOOKUP($A103,'A&V_Aufb.&Leit.'!$A:$G,7,FALSE)),\"\",(VLOOKUP($A103,'A&V_Aufb.&Leit.'!$A:$G,7,FALSE)))","v":0}]
[{"$f":"CONCATENATE($C$6,'A&V_Aufb.&Leit.'!B26)","v":"G8"},{"$f":"IF(ISERROR(VLOOKUP($A104,'A&V_Aufb.&Leit.'!$A:$G,3,FALSE)),\"\",(VLOOKUP($A104,'A&V_Aufb.&Leit.'!$A:$G,3,FALSE)))","v":"…"},{"$f":"IF(ISERROR(VLOOKUP($A104,'A&V_Aufb.&Leit.'!$A:$G,6,FALSE)),\"\",(VLOOKUP($A104,'A&V_Aufb.&Leit.'!$A:$G,6,FALSE)))","v":0},null,null,null,{"$f":"IF(ISERROR(VLOOKUP($A104,'A&V_Aufb.&Leit.'!$A:$G,7,FALSE)),\"\",(VLOOKUP($A104,'A&V_Aufb.&Leit.'!$A:$G,7,FALSE)))","v":0}]
[{"$f":"CONCATENATE($C$6,'A&V_Aufb.&Leit.'!B27)","v":"G9"},{"$f":"IF(ISERROR(VLOOKUP($A105,'A&V_Aufb.&Leit.'!$A:$G,3,FALSE)),\"\",(VLOOKUP($A105,'A&V_Aufb.&Leit.'!$A:$G,3,FALSE)))","v":"…"},{"$f":"IF(ISERROR(VLOOKUP($A105,'A&V_Aufb.&Leit.'!$A:$G,6,FALSE)),\"\",(VLOOKUP($A105,'A&V_Aufb.&Leit.'!$A:$G,6,FALSE)))","v":0},null,null,null,{"$f":"IF(ISERROR(VLOOKUP($A105,'A&V_Aufb.&Leit.'!$A:$G,7,FALSE)),\"\",(VLOOKUP($A105,'A&V_Aufb.&Leit.'!$A:$G,7,FALSE)))","v":0}]
[{"$f":"CONCATENATE($C$6,'A&V_Aufb.&Leit.'!B28)","v":"G10"},{"$f":"IF(ISERROR(VLOOKUP($A106,'A&V_Aufb.&Leit.'!$A:$G,3,FALSE)),\"\",(VLOOKUP($A106,'A&V_Aufb.&Leit.'!$A:$G,3,FALSE)))","v":"…"},{"$f":"IF(ISERROR(VLOOKUP($A106,'A&V_Aufb.&Leit.'!$A:$G,6,FALSE)),\"\",(VLOOKUP($A106,'A&V_Aufb.&Leit.'!$A:$G,6,FALSE)))","v":0},null,null,null,{"$f":"IF(ISERROR(VLOOKUP($A106,'A&V_Aufb.&Leit.'!$A:$G,7,FALSE)),\"\",(VLOOKUP($A106,'A&V_Aufb.&Leit.'!$A:$G,7,FALSE)))","v":0}]
[{"$f":"CONCATENATE($C$6,'A&V_Aufb.&Leit.'!B29)","v":"G11"},{"$f":"IF(ISERROR(VLOOKUP($A107,'A&V_Aufb.&Leit.'!$A:$G,3,FALSE)),\"\",(VLOOKUP($A107,'A&V_Aufb.&Leit.'!$A:$G,3,FALSE)))","v":"…"},{"$f":"IF(ISERROR(VLOOKUP($A107,'A&V_Aufb.&Leit.'!$A:$G,6,FALSE)),\"\",(VLOOKUP($A107,'A&V_Aufb.&Leit.'!$A:$G,6,FALSE)))","v":0},null,null,null,{"$f":"IF(ISERROR(VLOOKUP($A107,'A&V_Aufb.&Leit.'!$A:$G,7,FALSE)),\"\",(VLOOKUP($A107,'A&V_Aufb.&Leit.'!$A:$G,7,FALSE)))","v":0}]
[{"$f":"CONCATENATE($C$6,'A&V_Aufb.&Leit.'!B30)","v":"G12"},{"$f":"IF(ISERROR(VLOOKUP($A108,'A&V_Aufb.&Leit.'!$A:$G,3,FALSE)),\"\",(VLOOKUP($A108,'A&V_Aufb.&Leit.'!$A:$G,3,FALSE)))","v":"…"},{"$f":"IF(ISERROR(VLOOKUP($A108,'A&V_Aufb.&Leit.'!$A:$G,6,FALSE)),\"\",(VLOOKUP($A108,'A&V_Aufb.&Leit.'!$A:$G,6,FALSE)))","v":0},null,null,null,{"$f":"IF(ISERROR(VLOOKUP($A108,'A&V_Aufb.&Leit.'!$A:$G,7,FALSE)),\"\",(VLOOKUP($A108,'A&V_Aufb.&Leit.'!$A:$G,7,FALSE)))","v":0}]
[null,null,"a"]
[{"$f":"CONCATENATE($C$6,'A&V_Aufb.&Leit.'!B32)","v":""},{"$f":"'A&V_Aufb.&Leit.'!C178","v":"Arbeitsbereich Gemeindeaufbau"},{"$f":"'A&V_Aufb.&Leit.'!F178","v":"Anzahl"},null,null,null,{"$f":"'A&V_Aufb.&Leit.'!G178","v":"Bemerkung (Hauptverantwortung, Planung, konzeptioneller Ansatz)"}]
[null,null,"a",null,null,null,{"$f":"'A&V_Aufb.&Leit.'!G179","v":0}]
[{"$f":"CONCATENATE($C$6,'A&V_Aufb.&Leit.'!B180)","v":"Ge1"},{"$f":"IF(ISERROR(VLOOKUP($A112,'A&V_Aufb.&Leit.'!$A:$G,3,FALSE)),\"\",(VLOOKUP($A112,'A&V_Aufb.&Leit.'!$A:$G,3,FALSE)))","v":"…"},{"$f":"IF(ISERROR(VLOOKUP($A112,'A&V_Aufb.&Leit.'!$A:$G,6,FALSE)),\"\",(VLOOKUP($A112,'A&V_Aufb.&Leit.'!$A:$G,6,FALSE)))","v":0},null,null,null,{"$f":"IF(ISERROR(VLOOKUP($A112,'A&V_Aufb.&Leit.'!$A:$G,7,FALSE)),\"\",(VLOOKUP($A112,'A&V_Aufb.&Leit.'!$A:$G,7,FALSE)))","v":0}]
[{"$f":"CONCATENATE($C$6,'A&V_Aufb.&Leit.'!B181)","v":"Ge2"},{"$f":"IF(ISERROR(VLOOKUP($A113,'A&V_Aufb.&Leit.'!$A:$G,3,FALSE)),\"\",(VLOOKUP($A113,'A&V_Aufb.&Leit.'!$A:$G,3,FALSE)))","v":"…"},{"$f":"IF(ISERROR(VLOOKUP($A113,'A&V_Aufb.&Leit.'!$A:$G,6,FALSE)),\"\",(VLOOKUP($A113,'A&V_Aufb.&Leit.'!$A:$G,6,FALSE)))","v":0},null,null,null,{"$f":"IF(ISERROR(VLOOKUP($A113,'A&V_Aufb.&Leit.'!$A:$G,7,FALSE)),\"\",(VLOOKUP($A113,'A&V_Aufb.&Leit.'!$A:$G,7,FALSE)))","v":0}]
[{"$f":"CONCATENATE($C$6,'A&V_Aufb.&Leit.'!B182)","v":"Ge3"},{"$f":"IF(ISERROR(VLOOKUP($A114,'A&V_Aufb.&Leit.'!$A:$G,3,FALSE)),\"\",(VLOOKUP($A114,'A&V_Aufb.&Leit.'!$A:$G,3,FALSE)))","v":"…"},{"$f":"IF(ISERROR(VLOOKUP($A114,'A&V_Aufb.&Leit.'!$A:$G,6,FALSE)),\"\",(VLOOKUP($A114,'A&V_Aufb.&Leit.'!$A:$G,6,FALSE)))","v":0},null,null,null,{"$f":"IF(ISERROR(VLOOKUP($A114,'A&V_Aufb.&Leit.'!$A:$G,7,FALSE)),\"\",(VLOOKUP($A114,'A&V_Aufb.&Leit.'!$A:$G,7,FALSE)))","v":0}]
[{"$f":"CONCATENATE($C$6,'A&V_Aufb.&Leit.'!B183)","v":"Ge4"},{"$f":"IF(ISERROR(VLOOKUP($A115,'A&V_Aufb.&Leit.'!$A:$G,3,FALSE)),\"\",(VLOOKUP($A115,'A&V_Aufb.&Leit.'!$A:$G,3,FALSE)))","v":"…"},{"$f":"IF(ISERROR(VLOOKUP($A115,'A&V_Aufb.&Leit.'!$A:$G,6,FALSE)),\"\",(VLOOKUP($A115,'A&V_Aufb.&Leit.'!$A:$G,6,FALSE)))","v":0},null,null,null,{"$f":"IF(ISERROR(VLOOKUP($A115,'A&V_Aufb.&Leit.'!$A:$G,7,FALSE)),\"\",(VLOOKUP($A115,'A&V_Aufb.&Leit.'!$A:$G,7,FALSE)))","v":0}]
[{"$f":"CONCATENATE($C$6,'A&V_Aufb.&Leit.'!B184)","v":"Ge5"},{"$f":"IF(ISERROR(VLOOKUP($A116,'A&V_Aufb.&Leit.'!$A:$G,3,FALSE)),\"\",(VLOOKUP($A116,'A&V_Aufb.&Leit.'!$A:$G,3,FALSE)))","v":"…"},{"$f":"IF(ISERROR(VLOOKUP($A116,'A&V_Aufb.&Leit.'!$A:$G,6,FALSE)),\"\",(VLOOKUP($A116,'A&V_Aufb.&Leit.'!$A:$G,6,FALSE)))","v":0},null,null,null,{"$f":"IF(ISERROR(VLOOKUP($A116,'A&V_Aufb.&Leit.'!$A:$G,7,FALSE)),\"\",(VLOOKUP($A116,'A&V_Aufb.&Leit.'!$A:$G,7,FALSE)))","v":0}]
[{"$f":"CONCATENATE($C$6,'A&V_Aufb.&Leit.'!B185)","v":"Ge6"},{"$f":"IF(ISERROR(VLOOKUP($A117,'A&V_Aufb.&Leit.'!$A:$G,3,FALSE)),\"\",(VLOOKUP($A117,'A&V_Aufb.&Leit.'!$A:$G,3,FALSE)))","v":"…"},{"$f":"IF(ISERROR(VLOOKUP($A117,'A&V_Aufb.&Leit.'!$A:$G,6,FALSE)),\"\",(VLOOKUP($A117,'A&V_Aufb.&Leit.'!$A:$G,6,FALSE)))","v":0},null,null,null,{"$f":"IF(ISERROR(VLOOKUP($A117,'A&V_Aufb.&Leit.'!$A:$G,7,FALSE)),\"\",(VLOOKUP($A117,'A&V_Aufb.&Leit.'!$A:$G,7,FALSE)))","v":0}]
[{"$f":"CONCATENATE($C$6,'A&V_Aufb.&Leit.'!B186)","v":"Ge7"},{"$f":"IF(ISERROR(VLOOKUP($A118,'A&V_Aufb.&Leit.'!$A:$G,3,FALSE)),\"\",(VLOOKUP($A118,'A&V_Aufb.&Leit.'!$A:$G,3,FALSE)))","v":"…"},{"$f":"IF(ISERROR(VLOOKUP($A118,'A&V_Aufb.&Leit.'!$A:$G,6,FALSE)),\"\",(VLOOKUP($A118,'A&V_Aufb.&Leit.'!$A:$G,6,FALSE)))","v":0},null,null,null,{"$f":"IF(ISERROR(VLOOKUP($A118,'A&V_Aufb.&Leit.'!$A:$G,7,FALSE)),\"\",(VLOOKUP($A118,'A&V_Aufb.&Leit.'!$A:$G,7,FALSE)))","v":0}]
[{"$f":"CONCATENATE($C$6,'A&V_Aufb.&Leit.'!B187)","v":"Ge8"},{"$f":"IF(ISERROR(VLOOKUP($A119,'A&V_Aufb.&Leit.'!$A:$G,3,FALSE)),\"\",(VLOOKUP($A119,'A&V_Aufb.&Leit.'!$A:$G,3,FALSE)))","v":"…"},{"$f":"IF(ISERROR(VLOOKUP($A119,'A&V_Aufb.&Leit.'!$A:$G,6,FALSE)),\"\",(VLOOKUP($A119,'A&V_Aufb.&Leit.'!$A:$G,6,FALSE)))","v":0},null,null,null,{"$f":"IF(ISERROR(VLOOKUP($A119,'A&V_Aufb.&Leit.'!$A:$G,7,FALSE)),\"\",(VLOOKUP($A119,'A&V_Aufb.&Leit.'!$A:$G,7,FALSE)))","v":0}]
[{"$f":"CONCATENATE($C$6,'A&V_Aufb.&Leit.'!B188)","v":"Ge9"},{"$f":"IF(ISERROR(VLOOKUP($A120,'A&V_Aufb.&Leit.'!$A:$G,3,FALSE)),\"\",(VLOOKUP($A120,'A&V_Aufb.&Leit.'!$A:$G,3,FALSE)))","v":"…"},{"$f":"IF(ISERROR(VLOOKUP($A120,'A&V_Aufb.&Leit.'!$A:$G,6,FALSE)),\"\",(VLOOKUP($A120,'A&V_Aufb.&Leit.'!$A:$G,6,FALSE)))","v":0},null,null,null,{"$f":"IF(ISERROR(VLOOKUP($A120,'A&V_Aufb.&Leit.'!$A:$G,7,FALSE)),\"\",(VLOOKUP($A120,'A&V_Aufb.&Leit.'!$A:$G,7,FALSE)))","v":0}]
[{"$f":"CONCATENATE($C$6,'A&V_Aufb.&Leit.'!B189)","v":"Ge10"},{"$f":"IF(ISERROR(VLOOKUP($A121,'A&V_Aufb.&Leit.'!$A:$G,3,FALSE)),\"\",(VLOOKUP($A121,'A&V_Aufb.&Leit.'!$A:$G,3,FALSE)))","v":"…"},{"$f":"IF(ISERROR(VLOOKUP($A121,'A&V_Aufb.&Leit.'!$A:$G,6,FALSE)),\"\",(VLOOKUP($A121,'A&V_Aufb.&Leit.'!$A:$G,6,FALSE)))","v":0},null,null,null,{"$f":"IF(ISERROR(VLOOKUP($A121,'A&V_Aufb.&Leit.'!$A:$G,7,FALSE)),\"\",(VLOOKUP($A121,'A&V_Aufb.&Leit.'!$A:$G,7,FALSE)))","v":0}]
[null,null,"a"]
[{"$f":"CONCATENATE($C$6,'A&V_W.Dienste'!B17)","v":"WD0"},{"$f":"'A&V_W.Dienste'!C17","v":"Arbeitsbereich Weitere Dienste"},{"$f":"'A&V_W.Dienste'!F17","v":"Anzahl "},null,null,null,{"$f":"'A&V_W.Dienste'!G17","v":"Bemerkung (Hauptverantwortung, Planung, konzeptioneller Ansatz)"}]
[null,null,"a"]
[{"$f":"CONCATENATE($C$6,'A&V_W.Dienste'!B19)","v":"WD1"},{"$f":"IF(ISERROR(VLOOKUP($A125,'A&V_W.Dienste'!$A:$G,3,FALSE)),\"\",(VLOOKUP($A125,'A&V_W.Dienste'!$A:$G,3,FALSE)))","v":"Armeeseelsorge"},{"$f":"IF(ISERROR(VLOOKUP($A125,'A&V_W.Dienste'!$A:$G,6,FALSE)),\"\",(VLOOKUP($A125,'A&V_W.Dienste'!$A:$G,6,FALSE)))","v":0},null,null,null,{"$f":"IF(ISERROR(VLOOKUP($A125,'A&V_W.Dienste'!$A:$G,7,FALSE)),\"\",(VLOOKUP($A125,'A&V_W.Dienste'!$A:$G,7,FALSE)))","v":0}]
[{"$f":"CONCATENATE($C$6,'A&V_W.Dienste'!B20)","v":"WD2"},{"$f":"IF(ISERROR(VLOOKUP($A126,'A&V_W.Dienste'!$A:$G,3,FALSE)),\"\",(VLOOKUP($A126,'A&V_W.Dienste'!$A:$G,3,FALSE)))","v":"Militär- / Bevölkerungsschutzdienst"},{"$f":"IF(ISERROR(VLOOKUP($A126,'A&V_W.Dienste'!$A:$G,6,FALSE)),\"\",(VLOOKUP($A126,'A&V_W.Dienste'!$A:$G,6,FALSE)))","v":0},null,null,null,{"$f":"IF(ISERROR(VLOOKUP($A126,'A&V_W.Dienste'!$A:$G,7,FALSE)),\"\",(VLOOKUP($A126,'A&V_W.Dienste'!$A:$G,7,FALSE)))","v":0}]
[{"$f":"CONCATENATE($C$6,'A&V_W.Dienste'!B21)","v":"WD3"},{"$f":"IF(ISERROR(VLOOKUP($A127,'A&V_W.Dienste'!$A:$G,3,FALSE)),\"\",(VLOOKUP($A127,'A&V_W.Dienste'!$A:$G,3,FALSE)))","v":"WEA"},{"$f":"IF(ISERROR(VLOOKUP($A127,'A&V_W.Dienste'!$A:$G,6,FALSE)),\"\",(VLOOKUP($A127,'A&V_W.Dienste'!$A:$G,6,FALSE)))","v":0},null,null,null,{"$f":"IF(ISERROR(VLOOKUP($A127,'A&V_W.Dienste'!$A:$G,7,FALSE)),\"\",(VLOOKUP($A127,'A&V_W.Dienste'!$A:$G,7,FALSE)))","v":0}]
[{"$f":"CONCATENATE($C$6,'A&V_W.Dienste'!B22)","v":"WD4"},{"$f":"IF(ISERROR(VLOOKUP($A128,'A&V_W.Dienste'!$A:$G,3,FALSE)),\"\",(VLOOKUP($A128,'A&V_W.Dienste'!$A:$G,3,FALSE)))","v":"Langzeitweiterbildung"},{"$f":"IF(ISERROR(VLOOKUP($A128,'A&V_W.Dienste'!$A:$G,6,FALSE)),\"\",(VLOOKUP($A128,'A&V_W.Dienste'!$A:$G,6,FALSE)))","v":0},null,null,null,{"$f":"IF(ISERROR(VLOOKUP($A128,'A&V_W.Dienste'!$A:$G,7,FALSE)),\"\",(VLOOKUP($A128,'A&V_W.Dienste'!$A:$G,7,FALSE)))","v":0}]
[{"$f":"CONCATENATE($C$6,'A&V_W.Dienste'!B23)","v":"WD5"},{"$f":"IF(ISERROR(VLOOKUP($A129,'A&V_W.Dienste'!$A:$G,3,FALSE)),\"\",(VLOOKUP($A129,'A&V_W.Dienste'!$A:$G,3,FALSE)))","v":"Öffentliche Ämter, Nebenbesch."},{"$f":"IF(ISERROR(VLOOKUP($A129,'A&V_W.Dienste'!$A:$G,6,FALSE)),\"\",(VLOOKUP($A129,'A&V_W.Dienste'!$A:$G,6,FALSE)))","v":0},null,null,null,{"$f":"IF(ISERROR(VLOOKUP($A129,'A&V_W.Dienste'!$A:$G,7,FALSE)),\"\",(VLOOKUP($A129,'A&V_W.Dienste'!$A:$G,7,FALSE)))","v":0}]
[{"$f":"CONCATENATE($C$6,'A&V_W.Dienste'!B24)","v":"WD6"},{"$f":"IF(ISERROR(VLOOKUP($A130,'A&V_W.Dienste'!$A:$G,3,FALSE)),\"\",(VLOOKUP($A130,'A&V_W.Dienste'!$A:$G,3,FALSE)))","v":"Besondere und übrige Aufgaben"},{"$f":"IF(ISERROR(VLOOKUP($A130,'A&V_W.Dienste'!$A:$G,6,FALSE)),\"\",(VLOOKUP($A130,'A&V_W.Dienste'!$A:$G,6,FALSE)))","v":0},null,null,null,{"$f":"IF(ISERROR(VLOOKUP($A130,'A&V_W.Dienste'!$A:$G,7,FALSE)),\"\",(VLOOKUP($A130,'A&V_W.Dienste'!$A:$G,7,FALSE)))","v":0}]
[{"$f":"CONCATENATE($C$6,'A&V_W.Dienste'!B25)","v":"WD7"},{"$f":"IF(ISERROR(VLOOKUP($A131,'A&V_W.Dienste'!$A:$G,3,FALSE)),\"\",(VLOOKUP($A131,'A&V_W.Dienste'!$A:$G,3,FALSE)))","v":"…"},{"$f":"IF(ISERROR(VLOOKUP($A131,'A&V_W.Dienste'!$A:$G,6,FALSE)),\"\",(VLOOKUP($A131,'A&V_W.Dienste'!$A:$G,6,FALSE)))","v":0},null,null,null,{"$f":"IF(ISERROR(VLOOKUP($A131,'A&V_W.Dienste'!$A:$G,7,FALSE)),\"\",(VLOOKUP($A131,'A&V_W.Dienste'!$A:$G,7,FALSE)))","v":0}]
[{"$f":"CONCATENATE($C$6,'A&V_W.Dienste'!B26)","v":"WD8"},{"$f":"IF(ISERROR(VLOOKUP($A132,'A&V_W.Dienste'!$A:$G,3,FALSE)),\"\",(VLOOKUP($A132,'A&V_W.Dienste'!$A:$G,3,FALSE)))","v":"…"},{"$f":"IF(ISERROR(VLOOKUP($A132,'A&V_W.Dienste'!$A:$G,6,FALSE)),\"\",(VLOOKUP($A132,'A&V_W.Dienste'!$A:$G,6,FALSE)))","v":0},null,null,null,{"$f":"IF(ISERROR(VLOOKUP($A132,'A&V_W.Dienste'!$A:$G,7,FALSE)),\"\",(VLOOKUP($A132,'A&V_W.Dienste'!$A:$G,7,FALSE)))","v":0}]
[{"$f":"CONCATENATE($C$6,'A&V_W.Dienste'!B27)","v":"WD9"},{"$f":"IF(ISERROR(VLOOKUP($A133,'A&V_W.Dienste'!$A:$G,3,FALSE)),\"\",(VLOOKUP($A133,'A&V_W.Dienste'!$A:$G,3,FALSE)))","v":"…"},{"$f":"IF(ISERROR(VLOOKUP($A133,'A&V_W.Dienste'!$A:$G,6,FALSE)),\"\",(VLOOKUP($A133,'A&V_W.Dienste'!$A:$G,6,FALSE)))","v":0},null,null,null,{"$f":"IF(ISERROR(VLOOKUP($A133,'A&V_W.Dienste'!$A:$G,7,FALSE)),\"\",(VLOOKUP($A133,'A&V_W.Dienste'!$A:$G,7,FALSE)))","v":0}]
[{"$f":"CONCATENATE($C$6,'A&V_W.Dienste'!B28)","v":"WD10"},{"$f":"IF(ISERROR(VLOOKUP($A134,'A&V_W.Dienste'!$A:$G,3,FALSE)),\"\",(VLOOKUP($A134,'A&V_W.Dienste'!$A:$G,3,FALSE)))","v":"…"},{"$f":"IF(ISERROR(VLOOKUP($A134,'A&V_W.Dienste'!$A:$G,6,FALSE)),\"\",(VLOOKUP($A134,'A&V_W.Dienste'!$A:$G,6,FALSE)))","v":0},null,null,null,{"$f":"IF(ISERROR(VLOOKUP($A134,'A&V_W.Dienste'!$A:$G,7,FALSE)),\"\",(VLOOKUP($A134,'A&V_W.Dienste'!$A:$G,7,FALSE)))","v":0}]
[null,null,"a"]
[null,null,"a"]
[]
[]
[]
[]
[]
[]
[]
[null,"Summe Zeitbedarf Aufgaben- und Verantwortungsbereich für alle Mitarbeitenden",null,null,null,{"$f":"+'A&V_Verk.&GD'!#REF!+'A&V_Diak.&Seels.'!#REF!+'A&V_Bild.&Spirit.'!#REF!+'A&V_Aufb.&Leit.'!#REF!+'A&V_W.Dienste'!#REF!","v":{"$error":"#REF!"}}]

{"sheet":"Gesetzestexte","index":20,"n_rows":23,"n_cols":2,"rows_kept":23,"cut":false,"hidden":true,"merged":[]}
[null,"Gesetzestexte und Erläuterungen"]
[]
[null,"Auszug aus der Kirchenordnung (KO, LS 181.10)"]
[]
[null,"tbu\nHier folgen die relevanten Gesetzestexte"]
[]
[null,"Auszug aus der Kirchenordnung (KO, LS 181.10)"]
[null,"§ 15\n1\nDie Landeskirche arbeitet mit der Theologischen Fakultät  der  Universität  Zürich  zusammen,  namentlich  bei  der  Aus-  und  Weiterbildung  von  Theologinnen  und  Theologen  sowie  zur  Bearbei-tung wissenschaftlich-theologischer Fragestellungen.\n2\nDer Kirchenrat nimmt zu Berufungsanträgen der Theologischen Fakultät Stellung.\n3\nDie Theologische Fakultät ist eingeladen, eine Vertretung in die Kirchensynode abzuordnen\n3 Der Kirchenrat regelt in der Vollzugsverordnung die Berechnung des Ferienanspruchs und den Bezug der Ferien."]
[]
[null,"Pfarramtliche Aufgaben gemäss Art. 112 und 113 der Kirchenordnung werden in der Kirchgemeinde wahrgenommen. Über Ausnahmen entscheidet die Kirchenpflege. \nDer Pfarrkonvent organisiert die Aufgaben- und Verantwortungsbereiche in Bezug auf die einzelnen Pfarrstellen und Pfarrpersonen. Er berücksichtigt dabei insbesondere die durch die Kirchenpflege festgelegte strategische Ausrichtung der Kirchgemeinde sowie von der Kirchenpflege erteilte Kommissions- oder Teamaufträge"]
[]
[]
[null,"§ 115 \n1 In Kirchgemeinden mit einem Pfarrkonvent erarbeitet dieser innert sechs Monaten seit der letzten Wahl gemäss Art. 125 eine Pfarrdienstordnung und legt sie der Kirchenpflege zur Genehmigung vor.\n2 Die Pfarrdienstordnung bezweckt insbesondere, die Arbeit der Pfarrerinnen und Pfarrer unter Wahrung des Gesamtzusammenhanges der Gemeinde unter diesen aufzuteilen.\n"]
[]
[null,"§ 29 \n1 Die Landeskirche nimmt ihren Auftrag wahr durch die Verkündigung des Evangeliums in Wort und Tat in den vier Handlungsfeldern Verkündigung und Gottesdienst, Diakonie und Seelsorge, Bildung und Spiritualität sowie Gemeindeaufbau und Leitung.\n"]
[]
[null,"§ 150 1 Die Kirchenpflege, die Pfarrerinnen und Pfarrer sowie die Angestellten sind in gemeinsamer Verantwortung zum Aufbau der Gemeinde gerufen.\n2 Die Kirchenpflege nimmt ihre Aufgaben im Rahmen der behördlichen Verantwortung gemäss Kirchenordnung und kantonalem Recht wahr.\n3 Die Pfarrerinnen und Pfarrer sowie die Angestellten erfüllen ihre Aufgaben je in ihrem besonderen Dienst gemäss der Kirchenordnung, den Vorgaben der Kirchenpflege und den besonderen Gegebenheiten der Kirchgemeinde.\n"]
[]
[]
[]
[]
[]
[null,"Art. 115 1 In Kirchgemeinden mit einem Pfarrkonvent erarbeitet dieser innert sechs Monaten seit der letzten Wahl gemäss Art. 125 eine Pfarrdienstordnung und legt sie der Kirchenpflege zur Genehmigung vor.\n2 Die Pfarrdienstordnung bezweckt insbesondere, die Arbeit der Pfarrerinnen und Pfarrer unter Wahrung des Gesamtzusammenhanges der Gemeinde unter diesen aufzuteilen.\n KO\nArt. 29 1 Die Landeskirche nimmt ihren Auftrag wahr durch die Verkündigung des Evangeliums in Wort und Tat in den vier Handlungsfeldern Verkündigung und Gottesdienst, Diakonie und Seelsorge, Bildung und Spiritualität sowie Gemeindeaufbau und Leitung.\n KO\nArt. 150 1 Die Kirchenpflege, die Pfarrerinnen und Pfarrer sowie die Angestellten sind in gemeinsamer Verantwortung zum Aufbau der Gemeinde gerufen.\n2 Die Kirchenpflege nimmt ihre Aufgaben im Rahmen der behördlichen Verantwortung gemäss Kirchenordnung und kantonalem Recht wahr.\n3 Die Pfarrerinnen und Pfarrer sowie die Angestellten erfüllen ihre Aufgaben je in ihrem besonderen Dienst gemäss der Kirchenordnung, den Vorgaben der Kirchenpflege und den besonderen Gegebenheiten der Kirchgemeinde.\n KO Art. 162 Abs. 1 unverändert. Konstituierung\n2 An den Sitzungen der Kirchenpflege nehmen mit beratender\nStimme und Antragsrecht teil:\na. in einer Kirchgemeinde ohne Pfarrkonvent die Pfarrerin oder der\nPfarrer,\nb. in einer Kirchgemeinde mit einem Pfarrkonvent die oder der Vor-\nsitzende und die weitere Vertretung des Pfarrkonventes gemäss\nArt. 114 Abs. 3 lit. b sowie weitere Pfarrerinnen und Pfarrer auf\nEinladung der Kirchenpflege,\n KO Art. 114 1 Sind im Pfarramt einer Kirchgemeinde mehrere Pfarrerinnen und Pfarrer tätig, so bilden sie den Pfarrkonvent.\n2 Der Pfarrkonvent verantwortet den Aufbau der Gemeinde in theologischer Hinsicht. Er ist Ort der Aussprache, des Austausches und der Koordination.\n Auszug aus dem Leitfaden Organisationsmodelle:\nTeams erhalten von der Kirchenpflege ihre spezifische Aufgaben und personelle Teambesetzungen – zeitlich befristet oder unbefristet – zugewiesen. \nEine solche Teamaufgabe kann erfüllt werden an einem bestimmten kirchlichen Ort (z.B. im Quartier x, im Kirchgemeindehaus y) und /oder in einer bestimmten kirchlichen Form (z.B. als Familienkirche, als mobiles Kirchencafé). Der Teamauftrag kann einen lebensräumlichen (Erfüllung des kirchlichen Auftrages für die Menschen in den Dörfern A und B, kirchliche Bildungsarbeit im südlichen Bezirksteil) und/oder einen lebensweltlichen (Taizé-Feiern, Streetchurch) Schwerpunkt besitzen. Ort/Form und lebensräumliche / lebensweltliche Ausrichtung können kombiniert werden und sind im Auftrag für ein Team schriftlich festzuhalten.\nTeams mit ihren Aufträgen sind damit entscheidende Elemente des Gemeindeaufbaus. Sie bilden das operative Gegenstück zur strategischen Leitung \nder Kirchgemeinde, welche die Kirchenpflege wahrnimmt, unterstützt durch Gemeindekonvent und Pfarrkonvent.\n \n Auszug aus dem Leitfaden Organisationsmodelle:\nKommissionen erhalten von der Kirchenpflege Aufträge, die sie mit den ihnen von der Kirchenpflege zugewiesenen Teams selbstständig erledigen. \nDie Kirchenpflege kann die delegierten Aufgaben offener oder detaillierter \ndefinieren und dadurch den Kommissionen mehr oder weniger Handlungsautonomie und Entscheidungsbefugnisse gewähren. Wenig Handlungsautonomie bedeutet: Die Kommission führt mit ihrem Team einen detaillierten \nAuftrag aus, den ihr die Kirchenpflege vorgibt. Eine grosse Handlungsautonomie bedeutet: Der Auftrag der Kommission ist offen formuliert. Er hat \ndie Form eines Leistungsauftrags, der es der Kommission freistellt, wie sie \nmit ihrem Team die Leistungen erbringt. Dazu steht der Kommission ein \nGlobalbudget zur Verfügung, das sie eigenverantwortlich zur Erreichung \nder Ziele einsetzen kann.\n Auszug aus dem Leitfaden Organisationsmodelle:\nMit «lebensRÄUMLICHEROrientierung»werden kirchliche Orte und Formen bezeichnet, die territorial gefasst sind, d.h. die innerhalb der Fläche eines bestimmten Gebietes Kirche gestalten. Die Kirchenpflege entscheidet, ob sie die interdisziplinären Teams dieses lebensräumlichen Bereiches nach Themen/Ressorts ausrichtet oder entlang von geographischen Orten und Quartieren.\nMit «lebensWELTLICHER Orientierung»werden kirchliche Orte und Formen bezeichnet, die eine bestimmte Zielgruppe, ein bestimmtes Milieu ansprechen. Diese Orte und Formen zeichnen sich oft aus durch einen hohen Grad von Beteiligung und Mitgestaltung der Teilnehmenden. Sie sind zwar in einer Kirchgemeinde angesiedelt, entwickeln aber regionale oder überregionale Ausstrahlungskraft.\nZusammen bilden die beiden «Typen» von kirchlichen Orten und Formen eine mixed economy – ein sich gegenseitig befruchtendes Geflecht von verschiedenartigen kirchlichen Orten und Formen innerhalb einer Kirchgemeinde. Alle diese kirchlichen Orte und Formen werden durch Teams und \nKommissionen verantwortet und gestaltet.\n Siehe oben, allenfalls hier einfügen.\nKO\nArt. 150 1 Die Kirchenpflege, die Pfarrerinnen und Pfarrer sowie die Angestellten sind in gemeinsamer Verantwortung zum Aufbau der Gemeinde gerufen.\n2 Die Kirchenpflege nimmt ihre Aufgaben im Rahmen der behördlichen Verantwortung gemäss Kirchenordnung und kantonalem Recht wahr.\n3 Die Pfarrerinnen und Pfarrer sowie die Angestellten erfüllen ihre Aufgaben je in ihrem besonderen Dienst gemäss der Kirchenordnung, den Vorgaben der Kirchenpflege und den besonderen Gegebenheiten der Kirchgemeinde.\n KO Art. 150, s.o.\n PVO § 91. 1 Die Tätigkeit im Pfarramt kennzeichnet sich als umfassen-\nden Dienst im Rahmen der Landeskirche.\n2 Der Kirchenrat regelt die zeitliche Beanspruchung der Pfarrerin-\nnen und Pfarrer in der Vollzugsverordnung.\n \nVVO PVO § 131. \n1 Die zeitliche Beanspruchung der in einer Kirchgemeinde \ntätigen Pfarrerinnen und Pfarrer richtet sich nach den Erfordernissen \ndes Pfarramtes als umfassender Dienst im Rahmen der Landeskirche \nund nach den Aufgaben gemäss Art. 113 der Kirchenordnung.\n2 Die zeitliche Beanspruchung orientiert sich an einer 5½-Tage-\nWoche.\n3 In einer Kirchgemeinde tätige Pfarrerinnen und Pfarrer sind im \nRahmen der Erfordernisse des Pfarramtes und der Aufgaben gemäss \nArt. 113 der Kirchenordnung in der Einteilung ihrer Arbeitszeit frei. \nSie legen ihre Freitage in Absprache mit der Kirchenpflege fest.\n4 Der Kirchenrat kann in einer Kirchgemeinde tätige Pfarrerinnen \nund Pfarrer verpflichten, auf Vertrauensbasis eine persönliche Zeit-\nbuchhaltung zu führen.\n"]